Workbook

Sheet Admin
B4: Process Year
B5: 2017 | C5: I1
B7: First True Up Month
B8: =B5*100+1 -> 201701 | C8: I2 | D8: I3
B10: Second True Up Month
B11: =B8+1 -> 201702 | C11: I4 | D11: I5
B13: Third True Up Month
B14: =B11+1 -> 201703 | C14: I6 | D14: I7
B16: Fourth True Up Month
B17: =B14+1 -> 201704 | C17: I8 | D17: I9
B19: Fifth True Up Month
B20: =B17+1 -> 201705 | C20: I10 | D20: I11
B22: Sixth True Up Month
B23: =B20+1 -> 201706 | C23: I12 | D23: I13
B25: Seventh True Up Month
B26: =B23+1 -> 201707 | C26: I14 | D26: I15
B28: Eighth True Up Month
B29: =B26+1 -> 201708 | C29: I16 | D29: I17
B31: Ninth True Up Month
B32: =B29+1 -> 201709 | C32: I18 | D32: I19
B34: Tenth True Up Month
B35: =B32+1 -> 201710 | C35: I20 | D35: I21
B37: Eleventh True Up Month
B38: =B35+1 -> 201711 | C38: I22 | D38: I23
B40: Twelveth True Up Month
B41: =B38+1 -> 201712 | C41: I24 | D41: I25

Sheet I1 Reconciliation
C2: =Admin!$B$8 -> 201701 | D2: =Admin!$B$8 -> 201701 | E2: =C2+1 -> 201702 | F2: =D2+1 -> 201702 | G2: =E2+1 -> 201703 | H2: 201703 | I2: 201704 | J2: 201704 | K2: 201705 | L2: 201705 | M2: 201706 | N2: 201706 | O2: 201707 | P2: 201707 | Q2: 201708 | R2: 201708 | S2: 201709 | T2: 201709 | U2: 201710 | V2: 201710 | W2: 201711 | X2: 201711 | Y2: 201712 | Z2: 201712 | AA2: =Admin!B5 -> 2017
C3: =A4 & "Input "& C2 & " Trueup Sett" -> Input 201701 Trueup Sett | D3: =D4 & " Input Rev " & D2 & " Init" -> I3 Input Rev 201701 Init | E3: =C4 & "Input "& E2 & " Trueup Sett" -> I2Input 201702 Trueup Sett | F3: =F4 & " Input Rev " & F2 & " Init" -> I5 Input Rev 201702 Init | G3: =E4 & "Input "& G2 & " Trueup Sett" -> I4Input 201703 Trueup Sett | H3: =H4 & " Input Rev " & H2 & " Init" -> I7 Input Rev 201703 Init | I3: =G4 & "Input "& I2 & " Trueup Sett" -> I6Input 201704 Trueup Sett | J3: =J4 & " Input Rev " & J2 & " Init" -> I9 Input Rev 201704 Init | K3: =I4 & "Input "& K2 & " Trueup Sett" -> I8Input 201705 Trueup Sett | L3: =L4 & " Input Rev " & L2 & " Init" -> I11 Input Rev 201705 Init | M3: =K4 & "Input "& M2 & " Trueup Sett" -> I10Input 201706 Trueup Sett | N3: =N4 & " Input Rev " & N2 & " Init" -> I13 Input Rev 201706 Init | O3: =M4 & "Input "& O2 & " Trueup Sett" -> I12Input 201707 Trueup Sett | P3: =P4 & " Input Rev " & P2 & " Init" -> I15 Input Rev 201707 Init | Q3: =O4 & "Input "& Q2 & " Trueup Sett" -> I14Input 201708 Trueup Sett | R3: =R4 & " Input Rev " & R2 & " Init" -> I17 Input Rev 201708 Init | S3: =Q4 & "Input "& S2 & " Trueup Sett" -> I16Input 201709 Trueup Sett | T3: =T4 & " Input Rev " & T2 & " Init" -> I19 Input Rev 201709 Init | U3: =S4 & "Input "& U2 & " Trueup Sett" -> I18Input 201710 Trueup Sett | V3: =V4 & " Input Rev " & V2 & " Init" -> I21 Input Rev 201710 Init | W3: =U4 & "Input "& W2 & " Trueup Sett" -> I20Input 201711 Trueup Sett | X3: =X4 & " Input Rev " & X2 & " Init" -> I23 Input Rev 201711 Init | Y3: =W4 & "Input "& Y2 & " Trueup Sett" -> I22Input 201712 Trueup Sett | Z3: =Z4 & " Input Rev " & Z2 & " Init" -> I25 Input Rev 201712 Init | AA3: Total IESO Settlement
C4: I2 | D4: I3 | E4: I4 | F4: I5 | G4: I6 | H4: I7 | I4: I8 | J4: I9 | K4: I10 | L4: I11 | M4: I12 | N4: I13 | O4: I14 | P4: I15 | Q4: I16 | R4: I17 | S4: I18 | T4: I19 | U4: I20 | V4: I21 | W4: I22 | X4: I23 | Y4: I24 | Z4: I25
B5: RPP Revenue Prices
B6: RPPT1 | C6: ='I2 Input 01 Trueup Sett '!Z6 -> -286.2749432 | D6: ='I3 Input Rev 01 Init'!C7 -> 4536.476241 | E6: ='I4 Input 02 Trueup Sett'!Z6 -> -3176.995862 | F6: ='I5 Input Rev 02 Init'!C7 -> 440.8896315 | G6: ='I6 Input 03 Trueup Sett'!Z6 -> 2519.37303 | H6: ='I7 Input Rev 03 Init'!C7 -> 1687.424957 | I6: ='I8 Input 04 Trueup Sett'!Z6 -> -12723.22942 | J6: ='I9 Input Rev 04 Init'!C7 -> -36.3594656 | K6: ='I10 Input 05 Trueup Sett'!Z6 -> -19805.96246 | L6: ='I11 Input Rev 05 Init'!C7 -> 12454.77888 | M6: ='I12 Input 06 Trueup Sett'!Z6 -> -22599.67248 | N6: ='I13 Input Rev 06 Init'!C7 -> 19279.04 | O6: ='I14 Input 07 Trueup Sett'!Z6 -> -27101.31739 | P6: ='I15 Input Rev 07 Init'!C7 -> 21757.79 | Q6: ='I16 Input 08 Trueup Sett'!Z6 -> -10634.5252 | R6: ='I17 Input Rev 08 Init'!C7 -> 23329.73 | S6: ='I18 Input 09 Trueup Sett'!Z6 -> -13472.18818 | T6: ='I19 Input Rev 09 Init'!C7 -> 24922.62 | U6: ='I20 Input 10 Trueup Sett'!Z6 -> -32821.65064 | V6: ='I21 Input Rev 10 Init'!C7 -> 18115.21 | W6: ='I22 Input 11 Trueup Sett'!Z6 -> -26411.03154 | X6: ='I23 Input Rev 11 Init'!C7 -> 30510.3 | Y6: ='I24 Input 12 Trueup Sett'!Z6 -> -29033.69285 | Z6: ='I25 Input Rev 12 Init'!C7 -> 14365.01 | AA6: =SUM(C6:Z6) -> -24184.2577
B7: RPPT2 | C7: ='I2 Input 01 Trueup Sett '!Z7 -> 11460.4476 | D7: ='I3 Input Rev 01 Init'!C8 -> -6457.024039 | E7: ='I4 Input 02 Trueup Sett'!Z7 -> 7770.527464 | F7: ='I5 Input Rev 02 Init'!C8 -> -9989.926048 | G7: ='I6 Input 03 Trueup Sett'!Z7 -> 14209.99181 | H7: ='I7 Input Rev 03 Init'!C8 -> -12417.95702 | I7: ='I8 Input 04 Trueup Sett'!Z7 -> -762.8484206 | J7: ='I9 Input Rev 04 Init'!C8 -> -10330.96695 | K7: ='I10 Input 05 Trueup Sett'!Z7 -> -7234.764002 | L7: ='I11 Input Rev 05 Init'!C8 -> -33.43387928 | M7: ='I12 Input 06 Trueup Sett'!Z7 -> -9035.404717 | N7: ='I13 Input Rev 06 Init'!C8 -> 7407.74 | O7: ='I14 Input 07 Trueup Sett'!Z7 -> -13788.25986 | P7: ='I15 Input Rev 07 Init'!C8 -> 7981.03 | Q7: ='I16 Input 08 Trueup Sett'!Z7 -> -3881.259277 | R7: ='I17 Input Rev 08 Init'!C8 -> 14530.73 | S7: ='I18 Input 09 Trueup Sett'!Z7 -> -5294.176358 | T7: ='I19 Input Rev 09 Init'!C8 -> 14808.23 | U7: ='I20 Input 10 Trueup Sett'!Z7 -> -19317.48995 | V7: ='I21 Input Rev 10 Init'!C8 -> 9045.91 | W7: ='I22 Input 11 Trueup Sett'!Z7 -> -10683.98751 | X7: ='I23 Input Rev 11 Init'!C8 -> 17251.64 | Y7: ='I24 Input 12 Trueup Sett'!Z7 -> -15428.44023 | Z7: ='I25 Input Rev 12 Init'!C8 -> 23640.04 | AA7: =SUM(C7:Z7) -> 3450.34862
B8: RPPTOUMID | C8: ='I2 Input 01 Trueup Sett '!Z8 -> 48675.33406 | D8: ='I3 Input Rev 01 Init'!C9 -> -21303.89535 | E8: ='I4 Input 02 Trueup Sett'!Z8 -> 35210.35338 | F8: ='I5 Input Rev 02 Init'!C9 -> -52734.14398 | G8: ='I6 Input 03 Trueup Sett'!Z8 -> 57789.45044 | H8: ='I7 Input Rev 03 Init'!C9 -> -42579.67546 | I8: ='I8 Input 04 Trueup Sett'!Z8 -> 9056.87881 | J8: ='I9 Input Rev 04 Init'!C9 -> -47125.96548 | K8: ='I10 Input 05 Trueup Sett'!Z8 -> -15074.38813 | L8: ='I11 Input Rev 05 Init'!C9 -> -22524.95182 | M8: ='I12 Input 06 Trueup Sett'!Z8 -> -21702.41239 | N8: ='I13 Input Rev 06 Init'!C9 -> 11450.93 | O8: ='I14 Input 07 Trueup Sett'!Z8 -> -45179.10771 | P8: ='I15 Input Rev 07 Init'!C9 -> 12475.99 | Q8: ='I16 Input 08 Trueup Sett'!Z8 -> -44104.61767 | R8: ='I17 Input Rev 08 Init'!C9 -> 46186.5 | S8: ='I18 Input 09 Trueup Sett'!Z8 -> -14623.45937 | T8: ='I19 Input Rev 09 Init'!C9 -> 31155.94 | U8: ='I20 Input 10 Trueup Sett'!Z8 -> -61460.60959 | V8: ='I21 Input Rev 10 Init'!C9 -> 30123.66 | W8: ='I22 Input 11 Trueup Sett'!Z8 -> -23750.88956 | X8: ='I23 Input Rev 11 Init'!C9 -> 41410.09 | Y8: ='I24 Input 12 Trueup Sett'!Z8 -> -33635.40401 | Z8: ='I25 Input Rev 12 Init'!C9 -> 29110.36 | AA8: -93154.03384
B9: RPPTOUOFF | C9: ='I2 Input 01 Trueup Sett '!Z9 -> -100708.8183 | D9: ='I3 Input Rev 01 Init'!C10 -> 171089.6883 | E9: ='I4 Input 02 Trueup Sett'!Z9 -> -109937.4432 | F9: ='I5 Input Rev 02 Init'!C10 -> 131751.3625 | G9: ='I6 Input 03 Trueup Sett'!Z9 -> -56017.16206 | H9: ='I7 Input Rev 03 Init'!C10 -> 108750.3545 | I9: ='I8 Input 04 Trueup Sett'!Z9 -> -164445.4891 | J9: ='I9 Input Rev 04 Init'!C10 -> 77932.60844 | K9: ='I10 Input 05 Trueup Sett'!Z9 -> -213121.154 | L9: ='I11 Input Rev 05 Init'!C10 -> 167556.7795 | M9: ='I12 Input 06 Trueup Sett'!Z9 -> -262435.2207 | N9: ='I13 Input Rev 06 Init'!C10 -> 198779.58 | O9: ='I14 Input 07 Trueup Sett'!Z9 -> -305293.0103 | P9: ='I15 Input Rev 07 Init'!C10 -> 181064.98 | Q9: ='I16 Input 08 Trueup Sett'!Z9 -> -356608.6192 | R9: ='I17 Input Rev 08 Init'!C10 -> 323761.96 | S9: ='I18 Input 09 Trueup Sett'!Z9 -> -149953.8233 | T9: ='I19 Input Rev 09 Init'!C10 -> 226657.25 | U9: ='I20 Input 10 Trueup Sett'!Z9 -> -335406.8406 | V9: ='I21 Input Rev 10 Init'!C10 -> 261613.3 | W9: ='I22 Input 11 Trueup Sett'!Z9 -> -226067.2078 | X9: ='I23 Input Rev 11 Init'!C10 -> 250907.19 | Y9: ='I24 Input 12 Trueup Sett'!Z9 -> -333446.2739 | Z9: ='I25 Input Rev 12 Init'!C10 -> 355675.23 | AA9: -157900.7792
B10: RPPTOUON | C10: ='I2 Input 01 Trueup Sett '!Z10 -> 135341.3803 | D10: ='I3 Input Rev 01 Init'!C11 -> -105675.2157 | E10: ='I4 Input 02 Trueup Sett'!Z10 -> 112830.3155 | F10: ='I5 Input Rev 02 Init'!C11 -> -149602.2276 | G10: ='I6 Input 03 Trueup Sett'!Z10 -> 143573.3682 | H10: ='I7 Input Rev 03 Init'!C11 -> -129296.5006 | I10: ='I8 Input 04 Trueup Sett'!Z10 -> 73926.97757 | J10: ='I9 Input Rev 04 Init'!C11 -> -128415.7664 | K10: ='I10 Input 05 Trueup Sett'!Z10 -> 43010.04192 | L10: ='I11 Input Rev 05 Init'!C11 -> -102768.9037 | M10: ='I12 Input 06 Trueup Sett'!Z10 -> 47630.9939 | N10: ='I13 Input Rev 06 Init'!C11 -> -46612.56 | O10: ='I14 Input 07 Trueup Sett'!Z10 -> 14474.84619 | P10: ='I15 Input Rev 07 Init'!C11 -> -38021.77 | Q10: ='I16 Input 08 Trueup Sett'!Z10 -> 28652.77208 | R10: ='I17 Input Rev 08 Init'!C11 -> -20874.47 | S10: ='I18 Input 09 Trueup Sett'!Z10 -> 28867.08046 | T10: ='I19 Input Rev 09 Init'!C11 -> -14996.39 | U10: ='I20 Input 10 Trueup Sett'!Z10 -> -10062.89597 | V10: ='I21 Input Rev 10 Init'!C11 -> -32498.81 | W10: ='I22 Input 11 Trueup Sett'!Z10 -> 32617.70633 | X10: ='I23 Input Rev 11 Init'!C11 -> -1767.91 | Y10: ='I24 Input 12 Trueup Sett'!Z10 -> 29179.102 | Z10: ='I25 Input Rev 12 Init'!C11 -> -60549.1 | AA10: -151037.9355
B11: RPPULOMID
B12: RPPULOOFF
B13: RPPULOON
B14: RPPULOOVN
B15: Total RPP For Settlement | C15: =SUM(C6:C14) -> 94482.06866 | D15: =SUM(D6:D14) -> 42190.02948 | E15: 42696.75729 | F15: -80134.04545 | G15: 162075.0215 | H15: -73856.35365 | I15: -94947.71054 | J15: -107976.4499 | K15: -212226.2266 | L15: 54684.26892 | M15: -268141.7164 | N15: 190304.73 | O15: -376886.8491 | P15: 185258.02 | Q15: -386576.2492 | R15: 386934.45 | S15: -154476.5667 | T15: 282547.65 | U15: -459069.4868 | V15: 286399.27 | W15: -254295.4101 | X15: 338311.31 | Y15: -382364.709 | Z15: 362241.54 | AA15: -422826.6575
D16: =C15+D15 -> 136672.0981 | F16: =E15+F15 -> -37437.28816 | H16: =G15+H15 -> 88218.66781 | J16: =I15+J15 -> -202924.1604 | L16: =K15+L15 -> -157541.9577 | N16: =M15+N15 -> -77836.98636 | P16: =O15+P15 -> -191628.8291 | R16: =Q15+R15 -> 358.2007661 | T16: =S15+T15 -> 128071.0833 | V16: =U15+V15 -> -172670.2168 | X16: =W15+X15 -> 84015.89994 | Z16: =Y15+Z15 -> -20123.16897
B18: Total RPP kWh For Settlement Reported
B19: Tier 1 | C19: ='I2 Input 01 Trueup Sett '!V6 -> 676992.7824 | D19: =-'I3 Input Rev 01 Init'!B7 -> -640638.16 | E19: ='I4 Input 02 Trueup Sett'!V6 -> 700308.6915 | F19: =-'I5 Input Rev 02 Init'!B7 -> -681515.89 | G19: ='I6 Input 03 Trueup Sett'!V6 -> 792141.3048 | H19: =-'I7 Input Rev 03 Init'!B7 -> -791845.15 | I19: ='I8 Input 04 Trueup Sett'!V6 -> 657065.6515 | J19: =-'I9 Input Rev 04 Init'!B7 -> -686534.4 | K19: ='I10 Input 05 Trueup Sett'!V6 -> 582059.2631 | L19: =-'I11 Input Rev 05 Init'!B7 -> -709051.84 | M19: ='I12 Input 06 Trueup Sett'!V6 -> 642773.105 | N19: =-'I13 Input Rev 06 Init'!B7 -> -560675.97 | O19: ='I14 Input 07 Trueup Sett'!V6 -> 565809.5065 | P19: =-'I15 Input Rev 07 Init'!B7 -> -625910.37 | Q19: ='I16 Input 08 Trueup Sett'!V6 -> 245713.3582 | R19: =-'I17 Input Rev 08 Init'!B7 -> -451477.45 | S19: ='I18 Input 09 Trueup Sett'!V6 -> 396639.0252 | T19: =-'I19 Input Rev 09 Init'!B7 -> -583923.19 | U19: ='I20 Input 10 Trueup Sett'!V6 -> 563854.214 | V19: =-'I21 Input Rev 10 Init'!B7 -> -496760.62 | W19: ='I22 Input 11 Trueup Sett'!V6 -> 761241.5492 | X19: =-'I23 Input Rev 11 Init'!B7 -> -565013.29 | Y19: ='I24 Input 12 Trueup Sett'!V6 -> 797776.6592 | Z19: =-'I25 Input Rev 12 Init'!B7 -> -768426.8 | AA19: =SUM(C19:Z19) -> -179398.0193
B20: Tier 2 | C20: ='I2 Input 01 Trueup Sett '!V7 -> 651696.4454 | D20: =-'I3 Input Rev 01 Init'!B8 -> -588917.13 | E20: ='I4 Input 02 Trueup Sett'!V7 -> 579398.8019 | F20: =-'I5 Input Rev 02 Init'!B8 -> -575278.72 | G20: ='I6 Input 03 Trueup Sett'!V7 -> 672348.9217 | H20: =-'I7 Input Rev 03 Init'!B8 -> -782299.56 | I20: ='I8 Input 04 Trueup Sett'!V7 -> 382205.009 | J20: =-'I9 Input Rev 04 Init'!B8 -> -574029.85 | K20: ='I10 Input 05 Trueup Sett'!V7 -> 377161.8276 | L20: =-'I11 Input Rev 05 Init'!B8 -> -403289.34 | M20: ='I12 Input 06 Trueup Sett'!V7 -> 446122.3225 | N20: =-'I13 Input Rev 06 Init'!B8 -> -388703.95 | O20: ='I14 Input 07 Trueup Sett'!V7 -> 390848.4995 | P20: =-'I15 Input Rev 07 Init'!B8 -> -410137.69 | Q20: ='I16 Input 08 Trueup Sett'!V7 -> 126630.5412 | R20: =-'I17 Input Rev 08 Init'!B8 -> -379900.41 | S20: ='I18 Input 09 Trueup Sett'!V7 -> 251351.1767 | T20: =-'I19 Input Rev 09 Init'!B8 -> -498881.79 | U20: ='I20 Input 10 Trueup Sett'!V7 -> 426649.7907 | V20: =-'I21 Input Rev 10 Init'!B8 -> -385600.12 | W20: ='I22 Input 11 Trueup Sett'!V7 -> 491734.5808 | X20: =-'I23 Input Rev 11 Init'!B8 -> -420773.61 | Y20: ='I24 Input 12 Trueup Sett'!V7 -> 659429.8274 | Z20: =-'I25 Input Rev 12 Init'!B8 -> -500919.86 | AA20: =SUM(C20:Z20) -> -453154.2857
B21: TOU Off-peak | C21: ='I2 Input 01 Trueup Sett '!V8 -> 1690979.748 | D21: =-'I3 Input Rev 01 Init'!B9 -> -1614802.11 | E21: ='I4 Input 02 Trueup Sett'!V8 -> 1477908.792 | F21: =-'I5 Input Rev 02 Init'!B9 -> -1908300.85 | G21: ='I6 Input 03 Trueup Sett'!V8 -> 1648839.735 | H21: =-'I7 Input Rev 03 Init'!B9 -> -1656106.2 | I21: ='I8 Input 04 Trueup Sett'!V8 -> 1343251.842 | J21: =-'I9 Input Rev 04 Init'!B9 -> -1551753.91 | K21: ='I10 Input 05 Trueup Sett'!V8 -> 1306422.191 | L21: =-'I11 Input Rev 05 Init'!B9 -> -1621182.12 | M21: ='I12 Input 06 Trueup Sett'!V8 -> 1577646.812 | N21: =-'I13 Input Rev 06 Init'!B9 -> -1310339.77 | O21: ='I14 Input 07 Trueup Sett'!V8 -> 1547110.605 | P21: =-'I15 Input Rev 07 Init'!B9 -> -1127895.82 | Q21: ='I16 Input 08 Trueup Sett'!V8 -> 1920300.546 | R21: =-'I17 Input Rev 08 Init'!B9 -> -1711299.65 | S21: ='I18 Input 09 Trueup Sett'!V8 -> 1099694.54 | T21: =-'I19 Input Rev 09 Init'!B9 -> -1200648.1 | U21: ='I20 Input 10 Trueup Sett'!V8 -> 1392843.49 | V21: =-'I21 Input Rev 10 Init'!B9 -> -1637740.7 | W21: ='I22 Input 11 Trueup Sett'!V8 -> 1479210.264 | X21: =-'I23 Input Rev 11 Init'!B9 -> -1165990.96 | Y21: ='I24 Input 12 Trueup Sett'!V8 -> 1656557.355 | Z21: =-'I25 Input Rev 12 Init'!B9 -> -1672286.47 | AA21: -37580.74181
B22: TOU Mid-peak | C22: ='I2 Input 01 Trueup Sett '!V9 -> 6210841.425 | D22: =-'I3 Input Rev 01 Init'!B10 -> -5379037.23 | E22: ='I4 Input 02 Trueup Sett'!V9 -> 5191879.793 | F22: =-'I5 Input Rev 02 Init'!B10 -> -7586442.43 | G22: ='I6 Input 03 Trueup Sett'!V9 -> 5629854.046 | H22: =-'I7 Input Rev 03 Init'!B10 -> -5632675.56 | I22: ='I8 Input 04 Trueup Sett'!V9 -> 4517163.23 | J22: =-'I9 Input Rev 04 Init'!B10 -> -5327192.9 | K22: ='I10 Input 05 Trueup Sett'!V9 -> 4390834.891 | L22: =-'I11 Input Rev 05 Init'!B10 -> -5561533.83 | M22: ='I12 Input 06 Trueup Sett'!V9 -> 5258632.07 | N22: =-'I13 Input Rev 06 Init'!B10 -> -4351333.72 | O22: ='I14 Input 07 Trueup Sett'!V9 -> 5035051.012 | P22: =-'I15 Input Rev 07 Init'!B10 -> -3814504.1 | Q22: ='I16 Input 08 Trueup Sett'!V9 -> 6732370.349 | R22: =-'I17 Input Rev 08 Init'!B10 -> -5464580.84 | S22: ='I18 Input 09 Trueup Sett'!V9 -> 3463305.925 | T22: =-'I19 Input Rev 09 Init'!B10 -> -4049462.11 | U22: ='I20 Input 10 Trueup Sett'!V9 -> 4524761.482 | V22: =-'I21 Input Rev 10 Init'!B10 -> -5406671.21 | W22: ='I22 Input 11 Trueup Sett'!V9 -> 4908495.144 | X22: =-'I23 Input Rev 11 Init'!B10 -> -3829653.78 | Y22: ='I24 Input 12 Trueup Sett'!V9 -> 6509676.384 | Z22: =-'I25 Input Rev 12 Init'!B10 -> -5460063.93 | AA22: 509714.111
B23: TOU On-peak | C23: ='I2 Input 01 Trueup Sett '!V10 -> 1762588.221 | D23: =-'I3 Input Rev 01 Init'!B11 -> -1726897.1 | E23: ='I4 Input 02 Trueup Sett'!V10 -> 1570913.958 | F23: =-'I5 Input Rev 02 Init'!B11 -> -1977945.27 | G23: ='I6 Input 03 Trueup Sett'!V10 -> 1728779.726 | H23: =-'I7 Input Rev 03 Init'!B11 -> -1754048.63 | I23: ='I8 Input 04 Trueup Sett'!V10 -> 1360952.592 | J23: =-'I9 Input Rev 04 Init'!B11 -> -1638577.8 | K23: ='I10 Input 05 Trueup Sett'!V10 -> 1297500.723 | L23: =-'I11 Input Rev 05 Init'!B11 -> -1664301.21 | M23: ='I12 Input 06 Trueup Sett'!V10 -> 1625817.344 | N23: =-'I13 Input Rev 06 Init'!B11 -> -1296897.78 | O23: ='I14 Input 07 Trueup Sett'!V10 -> 1683764.066 | P23: =-'I15 Input Rev 07 Init'!B11 -> -1163260.89 | Q23: ='I16 Input 08 Trueup Sett'!V10 -> 2041877.091 | R23: =-'I17 Input Rev 08 Init'!B11 -> -1835832.94 | S23: ='I18 Input 09 Trueup Sett'!V10 -> 1217901.756 | T23: =-'I19 Input Rev 09 Init'!B11 -> -1357817.19 | U23: ='I20 Input 10 Trueup Sett'!V10 -> 1412028.217 | V23: =-'I21 Input Rev 10 Init'!B11 -> -1744816.76 | W23: ='I22 Input 11 Trueup Sett'!V10 -> 1557392.094 | X23: =-'I23 Input Rev 11 Init'!B11 -> -1204159.89 | Y23: ='I24 Input 12 Trueup Sett'!V10 -> 1747638.61 | Z23: =-'I25 Input Rev 12 Init'!B11 -> -1720062.43 | AA23: -77463.49295
W24: ='I22 Input 11 Trueup Sett'!V11 -> 0 | Y24: ='I24 Input 12 Trueup Sett'!V11 -> 0 | AA24: 0
W25: ='I22 Input 11 Trueup Sett'!V12 -> 0 | Y25: ='I24 Input 12 Trueup Sett'!V12 -> 0 | AA25: 0
W26: ='I22 Input 11 Trueup Sett'!V13 -> 0 | Y26: ='I24 Input 12 Trueup Sett'!V13 -> 0 | AA26: 0
W27: ='I22 Input 11 Trueup Sett'!V14 -> 0 | Y27: ='I24 Input 12 Trueup Sett'!V14 -> 0 | AA27: 0
B28: Total RPP For Settlement | C28: =SUM(C19:C27) -> 10993098.62 | D28: -9950291.73 | E28: 9520410.036 | F28: -12729483.16 | G28: 10471963.73 | H28: -10616975.1 | I28: 8260638.324 | J28: -9778088.86 | K28: 7953978.895 | L28: -9959358.34 | M28: 9550991.653 | N28: -7907951.19 | O28: 9222583.689 | P28: -7141708.87 | Q28: 11066891.89 | R28: -9843091.29 | S28: 6428892.423 | T28: -7690732.38 | U28: 8320137.193 | V28: -9671589.41 | W28: =SUM(W19:W27) -> 9198073.631 | X28: =SUM(X19:X27) -> -7185591.53 | Y28: =SUM(Y19:Y27) -> 11371078.84 | Z28: =SUM(Z19:Z27) -> -10121759.49 | AA28: =SUM(AA19:AA27) -> -237882.4287
D29: =C28+D28 -> 1042806.892 | F29: =E28+F28 -> -3209073.124 | H29: =G28+H28 -> -145011.3668 | J29: =I28+J28 -> -1517450.536 | L29: =K28+L28 -> -2005379.445 | N29: =M28+N28 -> 1643040.463 | P29: =O28+P28 -> 2080874.819 | R29: =Q28+R28 -> 1223800.596 | T29: =S28+T28 -> -1261839.957 | V29: =U28+V28 -> -1351452.217 | X29: =W28+X28 -> 2012482.101 | Z29: =Y28+Z28 -> 1249319.346

Sheet I1a ER Summary
AR3: MAB
B4: kWh Volumes | C4: $ RPP Revenue | D4: $ RPP Energy | E4: $ GA | F4: $ RPP Settlement | G4: Rev RPP Settlement | H4: Net RPP Sett | J4: IESO Energy kWh | K4: IESO Energy Cost | L4: FIT/mFIT kWh | M4: FIT/mFIT kWh | N4: Total Energy kWh | O4: Total Energy Cost | Q4: CT 148 | S4: Wholesale kWh | T4: Retail kWh | U4: Diff kWh | V4: Diff % | X4: RPP kWh | Y4: COP kWh | Z4: Diff kWh | AA4: Diff % | AC4: RPP/WHSL | AE4: Energy Purchases | AF4: Energy Revenue | AG4: RPP Revenue | AH4: Non RPP Revenue | AJ4: RPP kWh | AK4: Non RPP kWh | AL4: Total kWh | AN4: Class A kWh | AP4: Non RPP Class B | AR4: Class B | AS4: Diff
A5: =Admin!B8 -> 201701 | B5: ='I2 Input 01 Trueup Sett '!V15 -> 10993098.62 | C5: ='I2 Input 01 Trueup Sett '!W15 -> 1229398.516 | D5: ='I2 Input 01 Trueup Sett '!X15 -> 230184.4813 | E5: ='I2 Input 01 Trueup Sett '!Y15 -> 904731.9663 | F5: ='I2 Input 01 Trueup Sett '!Z15 -> 94482.06866 | G5: ='I3 Input Rev 01 Init'!C12 -> 42190.02948 | H5: =F5+G5 -> 136672.0981 | J5: ='I2 Input 01 Trueup Sett '!C10 -> 21925824.48 | K5: ='I2 Input 01 Trueup Sett '!D10 -> 479880.53 | L5: =N5-J5 -> 171709.87 | M5: =O5-K5 -> 3484.39 | N5: ='I2 Input 01 Trueup Sett '!C11 -> 22097534.35 | O5: ='I2 Input 01 Trueup Sett '!D11 -> 483364.92 | Q5: ='I2 Input 01 Trueup Sett '!B65 -> 1803983.71 | S5: ='I2 Input 01 Trueup Sett '!$C$11 -> 22097534.35 | T5: ='I2 Input 01 Trueup Sett '!$C$30 -> 21855738.14 | U5: =S5-T5 -> 241796.2057 | V5: =T5/S5-1 -> -0.01094222558 | X5: =SUM('I2 Input 01 Trueup Sett '!C20:C25) -> 10872809.66 | Y5: ='I2 Input 01 Trueup Sett '!C41 -> 10870062.3 | Z5: =X5-Y5 -> 2747.352255 | AA5: =Y5/X5-1 -> -0.0002526809851 | AC5: =X5/S5 -> 0.492037233 | AE5: ='I2 Input 01 Trueup Sett '!D11 -> 483364.92 | AF5: ='I2 Input 01 Trueup Sett '!D30 -> 1449974.086 | AG5: =C5 -> 1229398.516 | AH5: =AF5-AG5 -> 220575.5702 | AJ5: =X5 -> 10872809.66 | AK5: =T5-X5 -> 10982928.49 | AL5: =SUM(AJ5:AK5) -> 21855738.14 | AN5: ='I2 Input 01 Trueup Sett '!B57 -> 0 | AP5: =AK5-AN5 -> 10982928.49 | AR5: 6766968.728 | AS5: =AP5-AR5 -> 4215959.76 | AU5: =X5 -> 10872809.66 | AV5: ='I2 Input 01 Trueup Sett '!V15 -> 10993098.62 | AW5: =AV5/AU5-1 -> 0.01106328252
A6: =A5+1 -> 201702 | B6: ='I4 Input 02 Trueup Sett'!V15 -> 9520410.036 | C6: ='I4 Input 02 Trueup Sett'!W15 -> 1071794.007 | D6: ='I4 Input 02 Trueup Sett'!X15 -> 206533.7895 | E6: ='I4 Input 02 Trueup Sett'!Y15 -> 822563.4598 | F6: ='I4 Input 02 Trueup Sett'!Z15 -> 42696.75729 | G6: ='I5 Input Rev 02 Init'!C12 -> -80134.04545 | H6: =F6+G6 -> -37437.28816 | J6: ='I4 Input 02 Trueup Sett'!C10 -> 20023711.51 | K6: ='I4 Input 02 Trueup Sett'!D10 -> 426485.3 | L6: =N6-J6 -> 256642.13 | M6: =O6-K6 -> 3961.83 | N6: ='I4 Input 02 Trueup Sett'!C11 -> 20280353.64 | O6: ='I4 Input 02 Trueup Sett'!D11 -> 430447.13 | Q6: ='I4 Input 02 Trueup Sett'!B77 -> 1717488.02 | S6: ='I4 Input 02 Trueup Sett'!C11 -> 20280353.64 | T6: ='I4 Input 02 Trueup Sett'!C30 -> 20515495.2 | U6: =S6-T6 -> -235141.5635 | V6: =T6/S6-1 -> 0.01159454947 | X6: =SUM('I4 Input 02 Trueup Sett'!C20:C25) -> 9630794.901 | Y6: ='I4 Input 02 Trueup Sett'!C44 -> 9624406.432 | Z6: =X6-Y6 -> 6388.468909 | AA6: =Y6/X6-1 -> -0.0006633376554 | AC6: =X6/S6 -> 0.4748829863 | AE6: ='I4 Input 02 Trueup Sett'!D11 -> 430447.13 | AF6: ='I4 Input 02 Trueup Sett'!D30 -> 1317144.482 | AG6: 1071794.007 | AH6: =AF6-AG6 -> 245350.4758 | AJ6: =X6 -> 9630794.901 | AK6: =T6-X6 -> 10884700.3 | AL6: =SUM(AJ6:AK6) -> 20515495.2 | AN6: ='I4 Input 02 Trueup Sett'!B64 -> 0 | AP6: =AK6-AN6 -> 10884700.3 | AR6: 6189134.882 | AS6: 4695565.42 | AU6: =X6 -> 9630794.901 | AV6: ='I4 Input 02 Trueup Sett'!V15 -> 9520410.036 | AW6: =AV6/AU6-1 -> -0.01146165672
A7: =A6+1 -> 201703 | B7: ='I6 Input 03 Trueup Sett'!V15 -> 10471963.73 | C7: ='I6 Input 03 Trueup Sett'!W15 -> 1181550.882 | D7: ='I6 Input 03 Trueup Sett'!X15 -> 271777.6644 | E7: ='I6 Input 03 Trueup Sett'!Y15 -> 747698.1966 | F7: ='I6 Input 03 Trueup Sett'!Z15 -> 162075.0215 | G7: ='I7 Input Rev 03 Init'!C12 -> -73856.35365 | H7: =F7+G7 -> 88218.66781 | J7: ='I6 Input 03 Trueup Sett'!C10 -> 21990613.46 | K7: ='I6 Input 03 Trueup Sett'!D10 -> 569611.47 | L7: 439237.62 | M7: 6993.52 | N7: ='I6 Input 03 Trueup Sett'!C11 -> 22429851.08 | O7: ='I6 Input 03 Trueup Sett'!D11 -> 576604.99 | Q7: ='I6 Input 03 Trueup Sett'!B76 -> 1568990.01 | S7: ='I6 Input 03 Trueup Sett'!C11 -> 22429851.08 | T7: ='I6 Input 03 Trueup Sett'!C30 -> 22059996.4 | U7: 369854.683 | V7: -0.01648939539 | X7: =SUM('I6 Input 03 Trueup Sett'!C20:C25) -> 10299287.38 | Y7: ='I6 Input 03 Trueup Sett'!C44 -> 8548721.483 | Z7: 1750565.9 | AA7: -0.1699696139 | AC7: 0.4591776979 | AE7: ='I6 Input 03 Trueup Sett'!D11 -> 576604.99 | AF7: ='I6 Input 03 Trueup Sett'!D30 -> 1462494.987 | AG7: 1181550.882 | AH7: 280944.1049 | AJ7: 10299287.38 | AK7: 11760709.01 | AL7: 22059996.4 | AN7: ='I6 Input 03 Trueup Sett'!B64 -> 0 | AP7: 11760709.01 | AR7: 6799351.878 | AS7: 4961357.136 | AU7: 10299287.38 | AV7: ='I6 Input 03 Trueup Sett'!V15 -> 10471963.73 | AW7: =AV7/AU7-1 -> 0.01676585419
A8: 201704 | B8: ='I8 Input 04 Trueup Sett'!V15 -> 8260638.324 | C8: ='I8 Input 04 Trueup Sett'!W15 -> 912716.933 | D8: ='I8 Input 04 Trueup Sett'!X15 -> 117167.8542 | E8: ='I8 Input 04 Trueup Sett'!Y15 -> 890496.7893 | F8: ='I8 Input 04 Trueup Sett'!Z15 -> -94947.71054 | G8: ='I9 Input Rev 04 Init'!C12 -> -107976.4499 | H8: -202924.1604 | J8: ='I8 Input 04 Trueup Sett'!C10 -> 18291643.18 | K8: ='I8 Input 04 Trueup Sett'!D10 -> 208452.39 | L8: 573989.4 | M8: 3191.26 | N8: ='I8 Input 04 Trueup Sett'!C11 -> 18865632.58 | O8: ='I8 Input 04 Trueup Sett'!D11 -> 211643.65 | Q8: ='I8 Input 04 Trueup Sett'!B76 -> 1970599.21 | S8: ='I8 Input 04 Trueup Sett'!C11 -> 18865632.58 | T8: ='I8 Input 04 Trueup Sett'!C30 -> 19270591.32 | U8: -404958.7426 | V8: 0.02146542083 | X8: =SUM('I8 Input 04 Trueup Sett'!C20:C25) -> 8437956.402 | Y8: ='I8 Input 04 Trueup Sett'!C44 -> 5973700.843 | Z8: 2464255.559 | AA8: -0.2920441208 | AC8: 0.4472660202 | AE8: ='I8 Input 04 Trueup Sett'!D11 -> 211643.65 | AF8: ='I8 Input 04 Trueup Sett'!D30 -> 1064392.072 | AG8: 912716.933 | AH8: 151675.1389 | AJ8: 8437956.402 | AK8: 10832634.92 | AL8: 19270591.32 | AN8: ='I8 Input 04 Trueup Sett'!B64 -> 0 | AP8: 10832634.92 | AR8: 5857784.718 | AS8: 4974850.203 | AU8: 8437956.402 | AV8: ='I8 Input 04 Trueup Sett'!V15 -> 8260638.324 | AW8: =AV8/AU8-1 -> -0.0210143392
A9: 201705 | B9: ='I10 Input 05 Trueup Sett'!V15 -> 7953978.895 | C9: ='I10 Input 05 Trueup Sett'!W15 -> 797297.0977 | D9: ='I10 Input 05 Trueup Sett'!X15 -> 30388.48892 | E9: ='I10 Input 05 Trueup Sett'!Y15 -> 979134.8354 | F9: ='I10 Input 05 Trueup Sett'!Z15 -> -212226.2266 | G9: ='I11 Input Rev 05 Init'!C12 -> 54684.26892 | H9: -157541.9577 | J9: ='I10 Input 05 Trueup Sett'!C10 -> 18534327.65 | K9: ='I10 Input 05 Trueup Sett'!D10 -> 62514.7 | L9: 652179.92 | M9: 1611.95 | N9: ='I10 Input 05 Trueup Sett'!C11 -> 19186507.57 | O9: ='I10 Input 05 Trueup Sett'!D11 -> 64126.65 | Q9: ='I10 Input 05 Trueup Sett'!B76 -> 2280690.22 | S9: ='I10 Input 05 Trueup Sett'!C11 -> 19186507.57 | T9: ='I10 Input 05 Trueup Sett'!C30 -> 19384793.94 | U9: -198286.3708 | V9: 0.01033467764 | X9: =SUM('I10 Input 05 Trueup Sett'!C20:C25) -> 8036180.703 | Y9: ='I10 Input 05 Trueup Sett'!C44 -> 7985639.338 | Z9: 50541.36536 | AA9: -0.006289227087 | AC9: 0.4188454138 | AE9: ='I10 Input 05 Trueup Sett'!D11 -> 64126.65 | AF9: ='I10 Input 05 Trueup Sett'!D30 -> 843761.7942 | AG9: 797297.0977 | AH9: 46464.69651 | AJ9: 8036180.703 | AK9: 11348613.24 | AL9: 19384793.94 | AN9: ='I10 Input 05 Trueup Sett'!B64 -> 0 | AP9: 11348613.24 | AR9: 6011389.318 | AS9: 5337223.92 | AU9: 8036180.703 | AV9: ='I10 Input 05 Trueup Sett'!V15 -> 7953978.895 | AW9: -0.01022896459
A10: 201706 | B10: ='I12 Input 06 Trueup Sett'!V15 -> 9550991.653 | C10: ='I12 Input 06 Trueup Sett'!W15 -> 922330.3763 | D10: ='I12 Input 06 Trueup Sett'!X15 -> 58679.54539 | E10: ='I12 Input 06 Trueup Sett'!Y15 -> 1131792.547 | F10: ='I12 Input 06 Trueup Sett'!Z15 -> -268141.7164 | G10: ='I13 Input Rev 06 Init'!C12 -> 190304.73 | H10: -77836.98636 | J10: ='I12 Input 06 Trueup Sett'!C10 -> 18529689.54 | K10: ='I12 Input 06 Trueup Sett'!D10 -> 106302.81 | L10: 721717.92 | M10: 3358.31 | N10: ='I12 Input 06 Trueup Sett'!C11 -> 19251407.46 | O10: ='I12 Input 06 Trueup Sett'!D11 -> 109661.12 | Q10: ='I12 Input 06 Trueup Sett'!B76 -> 2196779.74 | S10: ='I12 Input 06 Trueup Sett'!C11 -> 19251407.46 | T10: ='I12 Input 06 Trueup Sett'!C30 -> 16477541.52 | U10: 2773865.941 | V10: -0.1440863971 | X10: =SUM('I12 Input 06 Trueup Sett'!C20:C25) -> 8174823.677 | Y10: ='I12 Input 06 Trueup Sett'!C44 -> 8171268.449 | Z10: 3555.227415 | AA10: -0.0004348995838 | AC10: 0.4246351179 | AE10: ='I12 Input 06 Trueup Sett'!D11 -> 109661.12 | AF10: ='I12 Input 06 Trueup Sett'!D30 -> 850745.1664 | AG10: 922330.3763 | AH10: -71585.20991 | AJ10: 8174823.677 | AK10: 8302717.843 | AL10: 16477541.52 | AN10: ='I12 Input 06 Trueup Sett'!B64 -> 0 | AP10: 8302717.843 | AR10: 6142902.903 | AS10: 2159814.94 | AU10: 8174823.677 | AV10: ='I12 Input 06 Trueup Sett'!V15 -> 9550991.653 | AW10: 0.1683422213
A11: 201707 | B11: ='I14 Input 07 Trueup Sett'!V15 -> 9222583.689 | C11: ='I14 Input 07 Trueup Sett'!W15 -> 794418.5933 | D11: ='I14 Input 07 Trueup Sett'!X15 -> 130998.0269 | E11: ='I14 Input 07 Trueup Sett'!Y15 -> 1040307.415 | F11: ='I14 Input 07 Trueup Sett'!Z15 -> -376886.8491 | G11: ='I15 Input Rev 07 Init'!C12 -> 185258.02 | H11: -191628.8291 | J11: ='I14 Input 07 Trueup Sett'!C10 -> 19814277.62 | K11: ='I14 Input 07 Trueup Sett'!D10 -> 271459.38 | L11: 723258.78 | M11: 12210.82 | N11: ='I14 Input 07 Trueup Sett'!C11 -> 20537536.4 | O11: ='I14 Input 07 Trueup Sett'!D11 -> 283670.2 | Q11: ='I14 Input 07 Trueup Sett'!B76 -> 1648642.37 | S11: ='I14 Input 07 Trueup Sett'!C11 -> 20537536.4 | T11: ='I14 Input 07 Trueup Sett'!C30 -> 20174909.15 | U11: 362627.2549 | V11: -0.017656804 | X11: =SUM('I14 Input 07 Trueup Sett'!C20:C25) -> 8994873.272 | Y11: ='I14 Input 07 Trueup Sett'!C44 -> 9020638.686 | Z11: -25765.41483 | AA11: 0.002864455569 | AC11: 0.4379723593 | AE11: ='I14 Input 07 Trueup Sett'!D11 -> 283670.2 | AF11: ='I14 Input 07 Trueup Sett'!D30 -> 920826.152 | AG11: 794418.5933 | AH11: 126407.5588 | AJ11: 8994873.272 | AK11: 11180035.87 | AL11: 20174909.15 | AN11: ='I14 Input 07 Trueup Sett'!B64 -> 5850636.05 | AP11: 5329399.823 | AR11: 6625667.557 | AS11: -1296267.734 | AU11: 8994873.272 | AV11: ='I14 Input 07 Trueup Sett'!V15 -> 9222583.689 | AW11: 0.02531557814
A12: 201708 | B12: ='I16 Input 08 Trueup Sett'!V15 -> 11066891.89 | C12: ='I16 Input 08 Trueup Sett'!W15 -> 919989.2985 | D12: ='I16 Input 08 Trueup Sett'!X15 -> 187702.8161 | E12: ='I16 Input 08 Trueup Sett'!Y15 -> 1118862.732 | F12: ='I16 Input 08 Trueup Sett'!Z15 -> -386576.2492 | G12: ='I17 Input Rev 08 Init'!C12 -> 386934.45 | H12: 358.2007661 | J12: ='I16 Input 08 Trueup Sett'!C10 -> 20365731.67 | K12: ='I16 Input 08 Trueup Sett'!D10 -> 356010.57 | L12: 764907.61 | M12: 15500.39 | N12: ='I16 Input 08 Trueup Sett'!C11 -> 21130639.28 | O12: ='I16 Input 08 Trueup Sett'!D11 -> 371510.96 | Q12: ='I16 Input 08 Trueup Sett'!B76 -> 1477715.4 | S12: ='I16 Input 08 Trueup Sett'!C11 -> 21130639.28 | T12: ='I16 Input 08 Trueup Sett'!C30 -> 15478896.13 | U12: 5651743.152 | V12: -0.2674667376 | X12: =SUM('I16 Input 08 Trueup Sett'!C20:C25) -> 6787828.978 | Y12: ='I16 Input 08 Trueup Sett'!C44 -> 6781592.343 | Z12: 6236.635396 | AA12: -0.0009187967783 | AC12: 0.3212315959 | AE12: ='I16 Input 08 Trueup Sett'!D11 -> 371510.96 | AF12: ='I16 Input 08 Trueup Sett'!D30 -> 712184.2631 | AG12: 919989.2985 | AH12: -207805.0354 | AJ12: 6787828.978 | AK12: 8691067.15 | AL12: 15478896.13 | AN12: ='I16 Input 08 Trueup Sett'!B64 -> 6513600.04 | AP12: 2177467.11 | AR12: 6475196.01 | AS12: -4297728.9 | AU12: 6787828.978 | AV12: ='I16 Input 08 Trueup Sett'!V15 -> 11066891.89 | AW12: 0.6304022864
A13: 201709 | B13: ='I18 Input 09 Trueup Sett'!V15 -> 6428892.423 | C13: ='I18 Input 09 Trueup Sett'!W15 -> 543552.7731 | D13: ='I18 Input 09 Trueup Sett'!X15 -> 128429.4931 | E13: ='I18 Input 09 Trueup Sett'!Y15 -> 569599.8466 | F13: ='I18 Input 09 Trueup Sett'!Z15 -> -154476.5667 | G13: ='I19 Input Rev 09 Init'!C12 -> 282547.65 | H13: 128071.0833 | J13: ='I18 Input 09 Trueup Sett'!C10 -> 18873800.57 | K13: ='I18 Input 09 Trueup Sett'!D10 -> 440483.34 | L13: 663227.87 | M13: 16325.08 | N13: ='I18 Input 09 Trueup Sett'!C11 -> 19537028.44 | O13: ='I18 Input 09 Trueup Sett'!D11 -> 456808.42 | Q13: ='I18 Input 09 Trueup Sett'!B76 -> 1199095.99 | S13: ='I18 Input 09 Trueup Sett'!C11 -> 19537028.44 | T13: ='I18 Input 09 Trueup Sett'!C30 -> 27076254.72 | U13: -7539226.276 | V13: 0.3858942162 | X13: =SUM('I18 Input 09 Trueup Sett'!C20:C25) -> 10005111.64 | Y13: ='I18 Input 09 Trueup Sett'!C44 -> 8218367.925 | Z13: 1786743.715 | AA13: -0.1785830863 | AC13: 0.512110205 | AE13: ='I18 Input 09 Trueup Sett'!D11 -> 456808.42 | AF13: ='I18 Input 09 Trueup Sett'!D30 -> 1227943.2 | AG13: 543552.7731 | AH13: 684390.4273 | AJ13: 10005111.64 | AK13: 17071143.08 | AL13: 27076254.72 | AN13: ='I18 Input 09 Trueup Sett'!B64 -> 5983923.4 | AP13: 11087219.68 | AR13: 6202121.122 | AS13: 4885098.554 | AU13: 10005111.64 | AV13: ='I18 Input 09 Trueup Sett'!V15 -> 6428892.423 | AW13: -0.3574392116
A14: 201710 | B14: ='I20 Input 10 Trueup Sett'!V15 -> 8320137.193 | C14: ='I20 Input 10 Trueup Sett'!W15 -> 694675.3238 | D14: ='I20 Input 10 Trueup Sett'!X15 -> 108735.5442 | E14: ='I20 Input 10 Trueup Sett'!Y15 -> 1045009.266 | F14: ='I20 Input 10 Trueup Sett'!Z15 -> -459069.4868 | G14: ='I21 Input Rev 10 Init'!C12 -> 286399.27 | H14: -172670.2168 | J14: ='I20 Input 10 Trueup Sett'!C10 -> 19169810.36 | K14: ='I20 Input 10 Trueup Sett'!D10 -> 166786.91 | L14: 396122.71 | M14: 2735.62 | N14: ='I20 Input 10 Trueup Sett'!C11 -> 19565933.07 | O14: ='I20 Input 10 Trueup Sett'!D11 -> 169522.53 | Q14: ='I20 Input 10 Trueup Sett'!B76 -> 1666225.59 | S14: ='I20 Input 10 Trueup Sett'!C11 -> 19565933.07 | T14: ='I20 Input 10 Trueup Sett'!C30 -> 20303619.45 | U14: -737686.3771 | V14: 0.03770259125 | X14: =SUM('I20 Input 10 Trueup Sett'!C20:C25) -> 8785159.73 | Y14: ='I20 Input 10 Trueup Sett'!C44 -> 7731888.444 | Z14: 1053271.286 | AA14: -0.1198921043 | AC14: 0.449002851 | AE14: ='I20 Input 10 Trueup Sett'!D11 -> 169522.53 | AF14: ='I20 Input 10 Trueup Sett'!D30 -> 836621.0956 | AG14: 694675.3238 | AH14: 141945.7719 | AJ14: 8785159.73 | AK14: 11518459.72 | AL14: 20303619.45 | AN14: ='I20 Input 10 Trueup Sett'!B64 -> 6367321.45 | AP14: 5151138.267 | AR14: 6145165.96 | AS14: -994027.6931 | AU14: 8785159.73 | AV14: ='I20 Input 10 Trueup Sett'!V15 -> 8320137.193 | AW14: -0.0529327356
A15: 201711 | B15: ='I22 Input 11 Trueup Sett'!V15 -> 9198073.631 | C15: ='I22 Input 11 Trueup Sett'!W15 -> 768050.7084 | D15: ='I22 Input 11 Trueup Sett'!X15 -> 130132.9937 | E15: ='I22 Input 11 Trueup Sett'!Y15 -> 892213.1247 | F15: ='I22 Input 11 Trueup Sett'!Z15 -> -254295.4101 | G15: ='I23 Input Rev 11 Init'!C12 -> 338311.31 | H15: 84015.89994 | J15: ='I22 Input 11 Trueup Sett'!C10 -> 20523019.26 | K15: ='I22 Input 11 Trueup Sett'!D10 -> 290916.23 | L15: 229013.3 | M15: 2678.76 | N15: ='I22 Input 11 Trueup Sett'!C11 -> 20752032.56 | O15: ='I22 Input 11 Trueup Sett'!D11 -> 293594.99 | Q15: ='I22 Input 11 Trueup Sett'!B76 -> 1439098.76 | S15: ='I22 Input 11 Trueup Sett'!C11 -> 20752032.56 | T15: ='I22 Input 11 Trueup Sett'!C31 -> 20527057.83 | U15: 224974.731 | V15: -0.01084109377 | X15: =SUM('I22 Input 11 Trueup Sett'!C20:C25) -> 7524450.31 | Y15: ='I22 Input 11 Trueup Sett'!C44 -> 7821277.301 | Z15: -296826.9904 | AA15: 0.03944832886 | AC15: 0.3625885941 | AE15: ='I22 Input 11 Trueup Sett'!D11 -> 293594.99 | AF15: ='I22 Input 11 Trueup Sett'!D31 -> 917021.606 | AG15: 768050.7084 | AH15: 148970.8977 | AJ15: 7524450.31 | AK15: 13002607.52 | AL15: 20527057.83 | AN15: ='I22 Input 11 Trueup Sett'!B64 -> 5962889.24 | AP15: 7039718.279 | AR15: 6209418.74 | AS15: 830299.5386 | AU15: 7524450.31 | AV15: ='I22 Input 11 Trueup Sett'!V15 -> 9198073.631 | AW15: 0.2224246625
A16: 201712 | B16: ='I24 Input 12 Trueup Sett'!V15 -> 11371078.84 | C16: ='I24 Input 12 Trueup Sett'!W15 -> 925987.9247 | D16: ='I24 Input 12 Trueup Sett'!X15 -> 261076.2686 | E16: ='I24 Input 12 Trueup Sett'!Y15 -> 1047276.365 | F16: ='I24 Input 12 Trueup Sett'!Z15 -> -382364.709 | G16: ='I25 Input Rev 12 Init'!C12 -> 362241.54 | H16: -20123.16897 | J16: ='I24 Input 12 Trueup Sett'!C10 -> 22764446.94 | K16: ='I24 Input 12 Trueup Sett'!D10 -> 471563.97 | L16: 118004.7 | M16: 2352.97 | N16: ='I24 Input 12 Trueup Sett'!C11 -> 22882451.64 | O16: ='I24 Input 12 Trueup Sett'!D11 -> 473916.94 | Q16: ='I24 Input 12 Trueup Sett'!B76 -> 1636027.87 | S16: ='I24 Input 12 Trueup Sett'!C11 -> 22882451.64 | T16: ='I24 Input 12 Trueup Sett'!C31 -> 23777469.22 | U16: -895017.5796 | V16: 0.03911371009 | X16: =SUM('I24 Input 12 Trueup Sett'!C20:C25) -> 10113629 | Y16: ='I24 Input 12 Trueup Sett'!C44 -> 10317361.38 | Z16: -203732.3828 | AA16: 0.02014434015 | AC16: 0.4419818803 | AE16: ='I24 Input 12 Trueup Sett'!D11 -> 473916.94 | AF16: ='I24 Input 12 Trueup Sett'!D31 -> 1194704.557 | AG16: 925987.9247 | AH16: 268716.6322 | AJ16: 10113629 | AK16: 13663840.22 | AL16: 23777469.22 | AN16: ='I24 Input 12 Trueup Sett'!B64 -> 5311367.6 | AP16: 8352472.618 | AR16: 6004138.1 | AS16: 2348334.518 | AU16: 10113629 | AV16: ='I24 Input 12 Trueup Sett'!V15 -> 11371078.84 | AW16: 0.1243322089
B17: =SUM(B5:B16) -> 112358738.9 | C17: 10761762.43 | D17: 1861806.966 | E17: 11189686.54 | F17: =SUM(F5:F16) -> -2289731.077 | G17: =SUM(G5:G16) -> 1866904.419 | H17: =SUM(H5:H16) -> -422826.6575 | J17: 240806896.2 | K17: 3850467.6 | L17: 5710011.83 | M17: 74404.9 | N17: 246516908.1 | O17: 3924872.5 | Q17: 20605336.89 | S17: =SUM(S5:S16) -> 246516908.1 | T17: 246902363 | U17: -385454.9422 | V17: =T17/S17-1 -> 0.001563604481 | X17: =SUM(X5:X16) -> 107662905.7 | Y17: 101064924.9 | Z17: 6597980.721 | AA17: =Y17/X17-1 -> -0.06128369545 | AC17: 0.4367363947 | AE17: =SUM(AE5:AE16) -> 3924872.5 | AF17: 12797813.46 | AG17: 10761762.43 | AH17: 2036051.029 | AJ17: =SUM(AJ5:AJ16) -> 107662905.7 | AK17: 139239457.4 | AL17: 246902363 | AN17: 35989737.78 | AP17: =SUM(AP5:AP16) -> 103249719.6 | AR17: =SUM(AR5:AR16) -> 75429239.92 | AS17: =SUM(AS5:AS16) -> 27820479.66 | AU17: =SUM(AU5:AU16) -> 107662905.7 | AV17: =SUM(AV5:AV16) -> 112358738.9 | AW17: 0.04361607407
A20: 4705 GA | B20: ='Rec1 1588 Commodity'!F23 -> 527560.4345
A22: 4707 GA | B22: ='Rec2 1589 Class B'!J23 -> -2617628.555
A24: Should Be $0 | B24: =SUM(B20:B23) -> -2090068.12
A26: (Owed To)/Owed From IESO | B26: =-H17 -> 422826.6575
A28: (Owed To)/Owed From Power Consumer | B28: ='Rec1 1588 Commodity'!L20 -> 27014.50502
A30: (Owed To)/Owed From Class B | B30: ='Rec2 1589 Class B'!K20 -> 132797.9782
A32: (Owed To)/Owed From | B32: =SUM(B26:B31) -> 582639.1407
A35: Unresolved Difference as % of Expected GA Payments to IESO | B35: ='Rev3 GA Analysis '!D67 -> 0.007461387106
A37: Account 1588 as % of Account 4705 | B37: ='Rev3 GA Analysis '!G99 -> 0.002106422409

Sheet I1b RPP Rates
A3: RPP Rates | P3: RPP Rates Split | AF3: Calc RPP kWh Volumes | AH3: RS RPP kWh Volume
B4: =Admin!B8 -> 201701 | C4: =B4+1 -> 201702 | D4: =C4+1 -> 201703 | E4: 201704 | F4: 201705 | G4: 201706 | H4: 201707 | I4: 201708 | J4: 201709 | K4: 201710 | L4: 201711 | M4: 201712 | Q4: =B4 -> 201701 | R4: =Q4+1 -> 201702 | S4: =R4+1 -> 201703 | T4: =S4+1 -> 201704 | U4: =T4+1 -> 201705 | V4: =U4+1 -> 201706 | W4: =V4+1 -> 201707 | X4: =W4+1 -> 201708 | Y4: =X4+1 -> 201709 | Z4: =Y4+1 -> 201710 | AA4: =Z4+1 -> 201711 | AB4: =AA4+1 -> 201712 | AE4: ='I1a ER Summary'!A5 -> 201701 | AF4: ='I1a ER Summary'!B5 -> 10993098.62 | AH4: ='I1a ER Summary'!X5 -> 10872809.66 | AI4: =AF4-AH4 -> 120288.965 | AJ4: =AI4/AF4 -> 0.01094222558
A5: RPPT1 | B5: ='I2 Input 01 Trueup Sett '!Q6 -> 0.1029916362 | C5: ='I4 Input 02 Trueup Sett'!Q6 -> 0.1030518283 | D5: ='I6 Input 03 Trueup Sett'!Q6 -> 0.1030309644 | E5: ='I8 Input 04 Trueup Sett'!Q6 -> 0.1024716066 | F5: ='I10 Input 05 Trueup Sett'!Q6 -> 0.09204518723 | G5: ='I12 Input 06 Trueup Sett'!Q6 -> 0.08928135355 | H5: ='I14 Input 07 Trueup Sett'!Q6 -> 0.0789780491 | I5: ='I16 Input 08 Trueup Sett'!Q6 -> 0.07737046003 | J5: ='I18 Input 09 Trueup Sett'!Q6 -> 0.07709712463 | K5: ='I20 Input 10 Trueup Sett'!Q6 -> 0.07706794427 | L5: ='I22 Input 11 Trueup Sett'!Q6 -> 0.07703264878 | M5: ='I24 Input 12 Trueup Sett'!Q6 -> 0.07700346525 | P5: RPPT1 | Q5: ='I2 Input 01 Trueup Sett '!L18 -> 0.06158343573 | R5: ='I4 Input 02 Trueup Sett'!L18 -> 0.07355866909 | S5: ='I6 Input 03 Trueup Sett'!L18 -> 0.07564400765 | T5: ='I8 Input 04 Trueup Sett'!L18 -> 0.0795417528 | U5: ='I10 Input 05 Trueup Sett'!L18 -> 0.0731783766 | V5: ='I12 Input 06 Trueup Sett'!L18 -> 0.06729909609 | W5: ='I14 Input 07 Trueup Sett'!L18 -> 0.06135043341 | X5: ='I16 Input 08 Trueup Sett'!L18 -> 0.02220256245 | Y5: ='I18 Input 09 Trueup Sett'!L18 -> 0.06169632327 | Z5: ='I20 Input 10 Trueup Sett'!L18 -> 0.06776982169 | AA5: ='I22 Input 11 Trueup Sett'!L18 -> 0.0827609758 | AB5: ='I24 Input 12 Trueup Sett'!L18 -> 0.07015839664 | AE5: ='I1a ER Summary'!A6 -> 201702 | AF5: ='I1a ER Summary'!B6 -> 9520410.036 | AH5: ='I1a ER Summary'!X6 -> 9630794.901 | AI5: =AF5-AH5 -> -110384.8651 | AJ5: =AI5/AF5 -> -0.01159454947
A6: RPPT2 | B6: ='I2 Input 01 Trueup Sett '!Q7 -> 0.1210000599 | C6: ='I4 Input 02 Trueup Sett'!Q7 -> 0.1209997559 | D6: ='I6 Input 03 Trueup Sett'!Q7 -> 0.1209853527 | E6: ='I8 Input 04 Trueup Sett'!Q7 -> 0.1198394034 | F6: ='I10 Input 05 Trueup Sett'!Q7 -> 0.1068904642 | G6: ='I12 Input 06 Trueup Sett'!Q7 -> 0.1041877957 | H6: ='I14 Input 07 Trueup Sett'!Q7 -> 0.09159859524 | I6: ='I16 Input 08 Trueup Sett'!Q7 -> 0.0900004057 | J6: ='I18 Input 09 Trueup Sett'!Q7 -> 0.09000012432 | K6: ='I20 Input 10 Trueup Sett'!Q7 -> 0.0900002487 | L6: ='I22 Input 11 Trueup Sett'!Q7 -> 0.09000018535 | M6: ='I24 Input 12 Trueup Sett'!Q7 -> 0.0900000877 | P6: RPPT2 | Q6: ='I2 Input 01 Trueup Sett '!L19 -> 0.05928232501 | R6: ='I4 Input 02 Trueup Sett'!L19 -> 0.06085859745 | S6: ='I6 Input 03 Trueup Sett'!L19 -> 0.06420466484 | T6: ='I8 Input 04 Trueup Sett'!L19 -> 0.04626821729 | U6: ='I10 Input 05 Trueup Sett'!L19 -> 0.04741800708 | V6: ='I12 Input 06 Trueup Sett'!L19 -> 0.04670952909 | W6: ='I14 Input 07 Trueup Sett'!L19 -> 0.04237950152 | X6: ='I16 Input 08 Trueup Sett'!L19 -> 0.01144228592 | Y6: ='I18 Input 09 Trueup Sett'!L19 -> 0.03909711971 | Z6: ='I20 Input 10 Trueup Sett'!L19 -> 0.05127917734 | AA6: ='I22 Input 11 Trueup Sett'!L19 -> 0.05346060496 | AB6: ='I24 Input 12 Trueup Sett'!L19 -> 0.05799184377 | AE6: ='I1a ER Summary'!A7 -> 201703 | AF6: ='I1a ER Summary'!B7 -> 10471963.73 | AH6: ='I1a ER Summary'!X7 -> 10299287.38 | AI6: 172676.3505 | AJ6: 0.01648939539
A7: RPPTOUMID | B7: ='I2 Input 01 Trueup Sett '!Q8 -> 0.1320001507 | C7: ='I4 Input 02 Trueup Sett'!Q8 -> 0.1319967219 | D7: ='I6 Input 03 Trueup Sett'!Q8 -> 0.1319953595 | E7: ='I8 Input 04 Trueup Sett'!Q8 -> 0.1287477532 | F7: ='I10 Input 05 Trueup Sett'!Q8 -> 0.1154981472 | G7: ='I12 Input 06 Trueup Sett'!Q8 -> 0.1109137283 | H7: ='I14 Input 07 Trueup Sett'!Q8 -> 0.09781657604 | I7: ='I16 Input 08 Trueup Sett'!Q8 -> 0.0950030182 | J7: ='I18 Input 09 Trueup Sett'!Q8 -> 0.09500050609 | K7: ='I20 Input 10 Trueup Sett'!Q8 -> 0.09500129098 | L7: ='I22 Input 11 Trueup Sett'!Q8 -> 0.09499999889 | M7: ='I24 Input 12 Trueup Sett'!Q8 -> 0.09499970577 | P7: RPPTOUMID | Q7: ='I2 Input 01 Trueup Sett '!L20 -> 0.1538219392 | R7: ='I4 Input 02 Trueup Sett'!L20 -> 0.155235834 | S7: ='I6 Input 03 Trueup Sett'!L20 -> 0.1574527736 | T7: ='I8 Input 04 Trueup Sett'!L20 -> 0.1626087222 | U7: ='I10 Input 05 Trueup Sett'!L20 -> 0.164247631 | V7: ='I12 Input 06 Trueup Sett'!L20 -> 0.165181467 | W7: ='I14 Input 07 Trueup Sett'!L20 -> 0.1677524061 | X7: ='I16 Input 08 Trueup Sett'!L20 -> 0.1735176024 | Y7: ='I18 Input 09 Trueup Sett'!L20 -> 0.1710550539 | Z7: ='I20 Input 10 Trueup Sett'!L20 -> 0.1674063128 | AA7: ='I22 Input 11 Trueup Sett'!L20 -> 0.1608173975 | AB7: ='I24 Input 12 Trueup Sett'!L20 -> 0.1456816348 | AE7: ='I1a ER Summary'!A8 -> 201704 | AF7: ='I1a ER Summary'!B8 -> 8260638.324 | AH7: ='I1a ER Summary'!X8 -> 8437956.402 | AI7: -177318.0779 | AJ7: -0.02146542083
A8: RPPTOUOFF | B8: ='I2 Input 01 Trueup Sett '!Q9 -> 0.08699986165 | C8: ='I4 Input 02 Trueup Sett'!Q9 -> 0.08699739696 | D8: ='I6 Input 03 Trueup Sett'!Q9 -> 0.08699678405 | E8: ='I8 Input 04 Trueup Sett'!Q9 -> 0.08560065769 | F8: ='I10 Input 05 Trueup Sett'!Q9 -> 0.0784990986 | G8: ='I12 Input 06 Trueup Sett'!Q9 -> 0.07476431412 | H8: ='I14 Input 07 Trueup Sett'!Q9 -> 0.06638527552 | I8: ='I16 Input 08 Trueup Sett'!Q9 -> 0.06500132638 | J8: ='I18 Input 09 Trueup Sett'!Q9 -> 0.06500036726 | K8: ='I20 Input 10 Trueup Sett'!Q9 -> 0.06500032334 | L8: ='I22 Input 11 Trueup Sett'!Q9 -> 0.06500014817 | M8: ='I24 Input 12 Trueup Sett'!Q9 -> 0.06408093417 | P8: RPPTOUOFF | Q8: ='I2 Input 01 Trueup Sett '!L21 -> 0.5649764128 | R8: ='I4 Input 02 Trueup Sett'!L21 -> 0.5453420361 | S8: ='I6 Input 03 Trueup Sett'!L21 -> 0.5376120649 | T8: ='I8 Input 04 Trueup Sett'!L21 -> 0.5468298033 | U8: ='I10 Input 05 Trueup Sett'!L21 -> 0.5520299902 | V8: ='I12 Input 06 Trueup Sett'!L21 -> 0.5505849299 | W8: ='I14 Input 07 Trueup Sett'!L21 -> 0.5459479883 | X8: ='I16 Input 08 Trueup Sett'!L21 -> 0.608334338 | Y8: ='I18 Input 09 Trueup Sett'!L21 -> 0.5387095781 | Z8: ='I20 Input 10 Trueup Sett'!L21 -> 0.5438325567 | AA8: ='I22 Input 11 Trueup Sett'!L21 -> 0.5336438194 | AB8: ='I24 Input 12 Trueup Sett'!L21 -> 0.5724765854 | AE8: ='I1a ER Summary'!A9 -> 201705 | AF8: ='I1a ER Summary'!B9 -> 7953978.895 | AH8: ='I1a ER Summary'!X9 -> 8036180.703 | AI8: -82201.80785 | AJ8: -0.01033467764
A9: RPPTOUON | B9: ='I2 Input 01 Trueup Sett '!Q10 -> 0.1800004578 | C9: ='I4 Input 02 Trueup Sett'!Q10 -> 0.1799969103 | D9: ='I6 Input 03 Trueup Sett'!Q10 -> 0.1799957701 | E9: ='I8 Input 04 Trueup Sett'!Q10 -> 0.1763252748 | F9: ='I10 Input 05 Trueup Sett'!Q10 -> 0.1601852037 | G9: ='I12 Input 06 Trueup Sett'!Q10 -> 0.1539665654 | H9: ='I14 Input 07 Trueup Sett'!Q10 -> 0.1356155429 | I9: ='I16 Input 08 Trueup Sett'!Q10 -> 0.1320031426 | J9: ='I18 Input 09 Trueup Sett'!Q10 -> 0.132000559 | K9: ='I20 Input 10 Trueup Sett'!Q10 -> 0.1320007349 | L9: ='I22 Input 11 Trueup Sett'!Q10 -> 0.1320002636 | M9: ='I24 Input 12 Trueup Sett'!Q10 -> 0.1320004083 | P9: RPPTOUON | Q9: ='I2 Input 01 Trueup Sett '!L22 -> 0.1603358872 | R9: ='I4 Input 02 Trueup Sett'!L22 -> 0.1650048634 | S9: ='I6 Input 03 Trueup Sett'!L22 -> 0.165086489 | T9: ='I8 Input 04 Trueup Sett'!L22 -> 0.1647515045 | U9: ='I10 Input 05 Trueup Sett'!L22 -> 0.1631259951 | V9: ='I12 Input 06 Trueup Sett'!L22 -> 0.170224978 | W9: ='I14 Input 07 Trueup Sett'!L22 -> 0.1825696706 | X9: ='I16 Input 08 Trueup Sett'!L22 -> 0.1845032112 | Y9: ='I18 Input 09 Trueup Sett'!L22 -> 0.189441925 | Z9: ='I20 Input 10 Trueup Sett'!L22 -> 0.1697121314 | AA9: ='I22 Input 11 Trueup Sett'!L22 -> 0.1693172023 | AB9: ='I24 Input 12 Trueup Sett'!L22 -> 0.1536915393 | AE9: ='I1a ER Summary'!A10 -> 201706 | AF9: ='I1a ER Summary'!B10 -> 9550991.653 | AH9: ='I1a ER Summary'!X10 -> 8174823.677 | AI9: 1376167.976 | AJ9: 0.1440863971
A10: RPPULOMID | B10: ='I2 Input 01 Trueup Sett '!Q11 -> 0 | C10: ='I4 Input 02 Trueup Sett'!Q11 -> 0 | D10: ='I6 Input 03 Trueup Sett'!Q11 -> 0 | E10: ='I8 Input 04 Trueup Sett'!Q11 -> 0 | F10: ='I10 Input 05 Trueup Sett'!Q11 -> 0 | G10: ='I12 Input 06 Trueup Sett'!Q11 -> 0 | H10: ='I14 Input 07 Trueup Sett'!Q11 -> 0 | I10: ='I16 Input 08 Trueup Sett'!Q11 -> 0 | J10: ='I18 Input 09 Trueup Sett'!Q11 -> 0 | K10: ='I20 Input 10 Trueup Sett'!Q11 -> 0 | L10: ='I22 Input 11 Trueup Sett'!Q11 -> 0 | M10: ='I24 Input 12 Trueup Sett'!Q11 -> 0 | P10: RPPULOMID | Q10: ='I2 Input 01 Trueup Sett '!AF11 -> 0 | R10: ='I4 Input 02 Trueup Sett'!AF11 -> 0 | S10: ='I6 Input 03 Trueup Sett'!AF11 -> 0 | T10: ='I8 Input 04 Trueup Sett'!AF11 -> 0 | U10: ='I10 Input 05 Trueup Sett'!AF11 -> 0 | V10: ='I12 Input 06 Trueup Sett'!AF11 -> 0 | W10: ='I14 Input 07 Trueup Sett'!AF11 -> 0 | X10: ='I16 Input 08 Trueup Sett'!AF11 -> 0 | Y10: ='I18 Input 09 Trueup Sett'!AF11 -> 0 | Z10: ='I20 Input 10 Trueup Sett'!AF11 -> 0 | AA10: ='I22 Input 11 Trueup Sett'!AF11 -> 0 | AB10: ='I24 Input 12 Trueup Sett'!AF11 -> 0 | AE10: ='I1a ER Summary'!A11 -> 201707 | AF10: ='I1a ER Summary'!B11 -> 9222583.689 | AH10: ='I1a ER Summary'!X11 -> 8994873.272 | AI10: 227710.4172 | AJ10: 0.02469052327
A11: RPPULOOFF | B11: ='I2 Input 01 Trueup Sett '!Q12 -> 0 | C11: ='I4 Input 02 Trueup Sett'!Q12 -> 0 | D11: ='I6 Input 03 Trueup Sett'!Q12 -> 0 | E11: ='I8 Input 04 Trueup Sett'!Q12 -> 0 | F11: ='I10 Input 05 Trueup Sett'!Q12 -> 0 | G11: ='I12 Input 06 Trueup Sett'!Q12 -> 0 | H11: ='I14 Input 07 Trueup Sett'!Q12 -> 0 | I11: ='I16 Input 08 Trueup Sett'!Q12 -> 0 | J11: ='I18 Input 09 Trueup Sett'!Q12 -> 0 | K11: ='I20 Input 10 Trueup Sett'!Q12 -> 0 | L11: ='I22 Input 11 Trueup Sett'!Q12 -> 0 | M11: ='I24 Input 12 Trueup Sett'!Q12 -> 0 | P11: RPPULOOFF | Q11: ='I2 Input 01 Trueup Sett '!AF12 -> 0 | R11: ='I4 Input 02 Trueup Sett'!AF12 -> 0 | S11: ='I6 Input 03 Trueup Sett'!AF12 -> 0 | T11: ='I8 Input 04 Trueup Sett'!AF12 -> 0 | U11: ='I10 Input 05 Trueup Sett'!AF12 -> 0 | V11: ='I12 Input 06 Trueup Sett'!AF12 -> 0 | W11: ='I14 Input 07 Trueup Sett'!AF12 -> 0 | X11: ='I16 Input 08 Trueup Sett'!AF12 -> 0 | Y11: ='I18 Input 09 Trueup Sett'!AF12 -> 0 | Z11: ='I20 Input 10 Trueup Sett'!AF12 -> 0 | AA11: ='I22 Input 11 Trueup Sett'!AF12 -> 0 | AB11: ='I24 Input 12 Trueup Sett'!AF12 -> 0 | AE11: ='I1a ER Summary'!A12 -> 201708 | AF11: ='I1a ER Summary'!B12 -> 11066891.89 | AH11: ='I1a ER Summary'!X12 -> 6787828.978 | AI11: 4279062.908 | AJ11: 0.3866544421
A12: RPPULOON | B12: ='I2 Input 01 Trueup Sett '!Q13 -> 0 | C12: ='I4 Input 02 Trueup Sett'!Q13 -> 0 | D12: ='I6 Input 03 Trueup Sett'!Q13 -> 0 | E12: ='I8 Input 04 Trueup Sett'!Q13 -> 0 | F12: ='I10 Input 05 Trueup Sett'!Q13 -> 0 | G12: ='I12 Input 06 Trueup Sett'!Q13 -> 0 | H12: ='I14 Input 07 Trueup Sett'!Q13 -> 0 | I12: ='I16 Input 08 Trueup Sett'!Q13 -> 0 | J12: ='I18 Input 09 Trueup Sett'!Q13 -> 0 | K12: ='I20 Input 10 Trueup Sett'!Q13 -> 0 | L12: ='I22 Input 11 Trueup Sett'!Q13 -> 0 | M12: ='I24 Input 12 Trueup Sett'!Q13 -> 0 | P12: RPPULOON | Q12: ='I2 Input 01 Trueup Sett '!AF13 -> 0 | R12: ='I4 Input 02 Trueup Sett'!AF13 -> 0 | S12: ='I6 Input 03 Trueup Sett'!AF13 -> 0 | T12: ='I8 Input 04 Trueup Sett'!AF13 -> 0 | U12: ='I10 Input 05 Trueup Sett'!AF13 -> 0 | V12: ='I12 Input 06 Trueup Sett'!AF13 -> 0 | W12: ='I14 Input 07 Trueup Sett'!AF13 -> 0 | X12: ='I16 Input 08 Trueup Sett'!AF13 -> 0 | Y12: ='I18 Input 09 Trueup Sett'!AF13 -> 0 | Z12: ='I20 Input 10 Trueup Sett'!AF13 -> 0 | AA12: ='I22 Input 11 Trueup Sett'!AF13 -> 0 | AB12: ='I24 Input 12 Trueup Sett'!AF13 -> 0 | AE12: ='I1a ER Summary'!A13 -> 201709 | AF12: ='I1a ER Summary'!B13 -> 6428892.423 | AH12: ='I1a ER Summary'!X13 -> 10005111.64 | AI12: -3576219.216 | AJ12: -0.5562729909
A13: RPPULOOVN | B13: ='I2 Input 01 Trueup Sett '!Q14 -> 0 | C13: ='I4 Input 02 Trueup Sett'!Q14 -> 0 | D13: ='I6 Input 03 Trueup Sett'!Q14 -> 0 | E13: ='I8 Input 04 Trueup Sett'!Q14 -> 0 | F13: ='I10 Input 05 Trueup Sett'!Q14 -> 0 | G13: ='I12 Input 06 Trueup Sett'!Q14 -> 0 | H13: ='I14 Input 07 Trueup Sett'!Q14 -> 0 | I13: ='I16 Input 08 Trueup Sett'!Q14 -> 0 | J13: ='I18 Input 09 Trueup Sett'!Q14 -> 0 | K13: ='I20 Input 10 Trueup Sett'!Q14 -> 0 | L13: ='I22 Input 11 Trueup Sett'!Q14 -> 0 | M13: ='I24 Input 12 Trueup Sett'!Q14 -> 0 | P13: RPPULOOVN | Q13: ='I2 Input 01 Trueup Sett '!AF14 -> 0 | R13: ='I4 Input 02 Trueup Sett'!AF14 -> 0 | S13: ='I6 Input 03 Trueup Sett'!AF14 -> 0 | T13: ='I8 Input 04 Trueup Sett'!AF14 -> 0 | U13: ='I10 Input 05 Trueup Sett'!AF14 -> 0 | V13: ='I12 Input 06 Trueup Sett'!AF14 -> 0 | W13: ='I14 Input 07 Trueup Sett'!AF14 -> 0 | X13: ='I16 Input 08 Trueup Sett'!AF14 -> 0 | Y13: ='I18 Input 09 Trueup Sett'!AF14 -> 0 | Z13: ='I20 Input 10 Trueup Sett'!AF14 -> 0 | AA13: ='I22 Input 11 Trueup Sett'!AF14 -> 0 | AB13: ='I24 Input 12 Trueup Sett'!AF14 -> 0 | AE13: ='I1a ER Summary'!A14 -> 201710 | AF13: ='I1a ER Summary'!B14 -> 8320137.193 | AH13: ='I1a ER Summary'!X14 -> 8785159.73 | AI13: -465022.5372 | AJ13: -0.05589121025
Q14: =SUM(Q5:Q13) -> 1 | R14: =SUM(R5:R13) -> 1 | S14: 1 | T14: 1 | U14: 1 | V14: 1 | W14: 1 | X14: 1 | Y14: 1 | Z14: 1 | AA14: 1 | AB14: 1 | AE14: ='I1a ER Summary'!A15 -> 201711 | AF14: ='I1a ER Summary'!B15 -> 9198073.631 | AH14: ='I1a ER Summary'!X15 -> 7524450.31 | AI14: 1673623.321 | AJ14: 0.1819536773
AE15: ='I1a ER Summary'!A16 -> 201712 | AF15: ='I1a ER Summary'!B16 -> 11371078.84 | AH15: ='I1a ER Summary'!X16 -> 10113629 | AI15: 1257449.834 | AJ15: 0.1105831603
A16: Year | B16: 2017 | AF16: =SUM(AF4:AF15) -> 112358738.9 | AH16: =SUM(AH4:AH15) -> 107662905.7 | AI16: =SUM(AI4:AI15) -> 4695833.267 | AJ16: 0.04179321798
B18: Month
A19: Rate | B19: 1 | C19: 2 | D19: 3 | E19: 4 | F19: 5 | G19: 6 | H19: 7 | I19: 8 | J19: 9 | K19: 10 | L19: 11 | M19: 12
A20: 1
A21: Mid-Peak | B21: 13.2 | C21: 13.2 | D21: 13.2 | E21: 13.2 | F21: 11.3 | G21: 11.3 | H21: 9.5 | I21: 9.5 | J21: 9.5 | K21: 9.5 | L21: 9.5 | M21: 9.5
A22: Off-Peak | B22: 8.7 | C22: 8.7 | D22: 8.7 | E22: 8.7 | F22: 7.7 | G22: 7.7 | H22: 6.5 | I22: 6.5 | J22: 6.5 | K22: 6.5 | L22: 6.5 | M22: 6.5
A23: On-Peak | B23: 18 | C23: 18 | D23: 18 | E23: 18 | F23: 15.7 | G23: 15.7 | H23: 13.2 | I23: 13.2 | J23: 13.2 | K23: 13.2 | L23: 13.2 | M23: 13.2

Sheet I2 Input 01 Trueup Sett
A1: Date: | B1: =Admin!B8 -> 201701 | C1: Trueup | K1: ="Data for 1st True up of RPP Settlement based on Actual IESO Invoice" -> Data for 1st True up of RPP Settlement based on Actual IESO Invoice | P1: For Reconciliation
A3: Wholesale Electricty | B3: Year | C3: 2017 | E3: Rate | P3: Actual RPP Revenue and GA
A4: Redshift Wholesale Report.xlsm | B4: dateref | C4: 201701 | K4: Wholesale Volume data per IESO Power Bill: | L4: GA RPP/non-RPP Ratios | M4: GA Volumes | N4: Energy Volumes | P4: =B1 -> 201701
K5: AQEW | M5: =C10 -> 21925824.48 | N5: =+M5 -> 21925824.48 | P5: RPP Revenue Prices | Q5: RPP Rate | R5: Estimated RPP Energy Price | S5: GA actual IESO billed | T5: Total Commodity | U5: Difference | V5: kWh Volumes | W5: $ Estimated RPP Revenue | X5: $ Estimated RPP Energy | Y5: $ Estimated GA | Z5: $ Estimated RPP Settlement
B6: Wholesale | K6: Embedded Generation | M6: =SUM(C8:C9) -> 171709.87 | N6: =+M6 -> 171709.87 | P6: RPPT1 | Q6: =E20 -> 0.1029916362 | R6: =E39 -> 0.02111450342 | S6: =L32 -> 0.08229999542 | T6: =R6+S6 -> 0.1034144988 | U6: =+Q6-T6 -> -0.0004228626222 | V6: =M18 -> 676992.7824 | W6: =Q6*V6 -> 69724.59438 | X6: =R6*V6 -> 14294.36642 | Y6: =+V6*S6 -> 55716.5029 | Z6: =W6-X6-Y6 -> -286.2749432
B7: Source | C7: kWh | D7: Total Cost | K7: Class A customer Volumes for GA (TLF included) | M7: =-B57 -> 0 | P7: RPPT2 | Q7: =E21 -> 0.1210000599 | R7: =R6 -> 0.02111450342 | S7: =S6 -> 0.08229999542 | T7: =R7+S7 -> 0.1034144988 | U7: =+Q7-T7 -> 0.01758556101 | V7: =M19 -> 651696.4454 | W7: =Q7*V7 -> 78855.3089 | X7: =R7*V7 -> 13760.24683 | Y7: =+V7*S7 -> 53634.61447 | Z7: =W7-X7-Y7 -> 11460.4476
B8: FIT | C8: 162626.16 | D8: 3303.48 | E8: =D8/C8 -> 0.02031333704 | M8: =+M5+M6+M7 -> 22097534.35 | N8: =+N5+N6+N7 -> 22097534.35 | P8: RPPTOUMID | Q8: =E23 -> 0.1320001507 | R8: =E40 -> 0.0209148702 | S8: =S7 -> 0.08229999542 | T8: 0.1032148656 | U8: 0.02878528506 | V8: 1690979.748 | W8: 223209.5815 | X8: 35366.62193 | Y8: 139167.6255 | Z8: 48675.33406
B9: microFIT | C9: 9083.71 | D9: 180.91 | E9: =D9/C9 -> 0.01991587138 | P9: RPPTOUOFF | Q9: =E24 -> 0.08699986165 | R9: =R8 -> 0.0209148702 | S9: 0.08229999542 | T9: 0.1032148656 | U9: -0.01621500397 | V9: 6210841.425 | W9: 540342.3448 | X9: 129898.9422 | Y9: 511152.2209 | Z9: -100708.8183
B10: WHOLESALE | C10: 21925824.48 | D10: 479880.53 | E10: =D10/C10 -> 0.02188654435 | K10: Estimated Retail Volume Revenue Data (TLF Included) | L10: RPP/non-RPP Ratios | M10: GA Volumes | N10: Energy Volumes | P10: RPPTOUON | Q10: 0.1800004578 | R10: =R9 -> 0.0209148702 | S10: 0.08229999542 | T10: 0.1032148656 | U10: 0.07678559216 | V10: 1762588.221 | W10: 317266.6867 | X10: 36864.30386 | Y10: 145061.0025 | Z10: 135341.3803
B11: Grand Total | C11: 22097534.35 | D11: 483364.92 | K11: Estimated Retail Revenue Data (Net of Retail Billed/Unbilled) | M11: =+M15 -> 22097534.35 | N11: =+N15 -> 22097534.35 | P11: RPPULOMID | Q11: 0 | R11: 0 | S11: 0 | T11: 0 | U11: 0 | V11: 0 | W11: 0 | X11: 0 | Y11: 0 | Z11: 0
P12: RPPULOOFF | Q12: 0 | R12: 0 | S12: 0 | T12: 0 | U12: 0 | V12: 0 | W12: 0 | X12: 0 | Y12: 0 | Z12: 0
K13: Estimated RPP Sales Quantities | L13: =SUM(C20:C25)/(C30-B57) -> 0.4974807799 | M13: =M8*L13 -> 10993098.62 | N13: =M13 -> 10993098.62 | P13: RPPULOON | Q13: 0 | R13: 0 | S13: 0 | T13: 0 | U13: 0 | V13: 0 | W13: 0 | X13: 0 | Y13: 0 | Z13: 0
A14: RPP Revenue Volume and Price Data | K14: Estimated non-RPP Sales Quantities | L14: =1-L13 -> 0.5025192201 | M14: =M8*L14 -> 11104435.73 | N14: =N8-N13 -> 11104435.73 | P14: RPPULOOVN | Q14: 0 | R14: 0 | S14: 0 | T14: 0 | U14: 0 | V14: 0 | W14: 0 | X14: 0 | Y14: 0 | Z14: 0
A15: ER Summary.xlsm | B15: bill_year | C15: 2017 | K15: Estimated Retail Revenue kWh Volumes | L15: =+L13+L14 -> 1 | M15: =+M13+M14 -> 22097534.35 | N15: =+N13+N14 -> 22097534.35 | V15: =SUM(V6:V14) -> 10993098.62 | W15: =SUM(W6:W14) -> 1229398.516 | X15: =SUM(X6:X14) -> 230184.4813 | Y15: =SUM(Y6:Y14) -> 904731.9663 | Z15: =SUM(Z6:Z14) -> 94482.06866
B16: bill_month | C16: 1 | Z16: =W15-X15-Y15-Z15 -> 0
K17: Estimated RPP Revenue Volume and Price Data | L17: Actual % | M17: kWh Volumes
B18: Row Labels | C18: usagebilled | D18: amountbilled | E18: Rate | K18: RPPT1 | L18: =C20/SUM($C$20:$C$25) -> 0.06158343573 | M18: =$M$13*L18 -> 676992.7824
B19: RPPTIER | K19: RPPT2 | L19: =C21/SUM($C$20:$C$25) -> 0.05928232501 | M19: =$M$13*L19 -> 651696.4454
B20: RPPT1 | C20: 669584.9747 | D20: 68961.65214 | E20: =D20/C20 -> 0.1029916362 | K20: RPPTOUMID | L20: =C23/SUM($C$20:$C$25) -> 0.1538219392 | M20: 1690979.748
B21: RPPT2 | C21: 644565.4359 | D21: 77992.45632 | E21: =D21/C21 -> 0.1210000599 | K21: RPPTOUOFF | L21: =C24/SUM($C$20:$C$25) -> 0.5649764128 | M21: 6210841.425
B22: RPPTOU | K22: RPPTOUON | L22: 0.1603358872 | M22: 1762588.221
B23: RPPTOUMID | C23: 1672476.666 | D23: 220767.1719 | E23: 0.1320001507 | K23: RPPULOMID | L23: 0 | M23: 0
B24: RPPTOUOFF | C24: 6142880.998 | D24: 534429.7969 | E24: 0.08699986165 | K24: RPPULOOFF | L24: 0 | M24: 0
B25: RPPTOUON | C25: 1743301.583 | D25: 313795.083 | E25: 0.1800004578 | K25: RPPULOON | L25: 0 | M25: 0
B26: RETAIL | K26: RPPULOOVN | L26: 0 | M26: 0
B27: NSLS | C27: 4125548.13 | D27: 87137.51783 | E27: 0.02112144013 | L27: =SUM(L18:L26) -> 1 | M27: =SUM(M18:M26) -> 10993098.62
B28: INTERVAL
B29: HOEP | C29: 6857380.357 | D29: 146890.4083 | E29: 0.02142077596
B30: Grand Total | C30: 21855738.14 | D30: 1449974.086
K31: Global Adjustment | L31: per kWh
C32: =C30/C11-1 -> -0.01094222558 | K32: Class B - GA actual8 | L32: =B49/100 -> 0.08229999542 | N32: GA Posted Price
K33: Class B - GA actual IESO billed | L33: =+M33/M8 -> 0.08163733028 | M33: =B65 -> 1803983.71 | N33: GA Billed by IESO CT 148
A34: RPP COP Volume and Price Data
A35: ER COP Summary.xlsm | B35: bill_year | C35: 2017
B36: bill_month | C36: 1
B38: Row Labels | C38: usagebilled | D38: amountbilled | E38: Rate
B39: RPPTIERED | C39: 1313331.616 | D39: 27730.3449 | E39: =D39/C39 -> 0.02111450342
B40: RPPTOU | C40: 9556730.689 | D40: 199877.7819 | E40: 0.0209148702
B41: Grand Total | C41: 10870062.3 | D41: 227608.1268
C43: =SUM(C20:C25)-C41 -> 2747.352255
C44: =C43/C41 -> 0.0002527448489
A45: Global Adjustment - Actual
A46: IESO GA Reconciliation.xlsm
A47: ga_actual | B47: year
A48: month | B48: 2017
A49: 201701 | B49: 8.229999542
A51: Class A kWh
A52: Redshift Class A Report.xlsm
A53: Year | B53: 2017
A55: Class A | B55: Value
A56: kWh
A57: =A49 -> 201701 | B57: 0
A59: IESO Class B
A60: IESO Invoice Reconciliation.xlsm
A61: chargetype | B61: 148
A63: Sum of chargeamount | B63: year
A64: month | B64: 2017
A65: 201701 | B65: 1803983.71

Sheet I3 Input Rev 01 Init
A1: Reverse IESO Posted
A2: Reverse Previously submitted CT142 By Date Ref.xlsx
A5: =Admin!B8 -> 201701
A6: RPP Revenue Prices | B6: kWh Volumes | C6: $ RPP Settlement
A7: RPPTiered_1 | B7: 640638.16 | C7: 4536.476241
A8: RPPTiered_2 | B8: 588917.13 | C8: -6457.024039
A9: RPPTOU_MID | B9: 1614802.11 | C9: -21303.89535
A10: RPPTOU_OFF | B10: 5379037.23 | C10: 171089.6883
A11: RPPTOU_ON | B11: 1726897.1 | C11: -105675.2157
A12: Grand Total | B12: 9950291.73 | C12: 42190.02948

Sheet I4 Input 02 Trueup Sett
A1: Date: | B1: =Admin!B8+1 -> 201702 | C1: Trueup | K1: ="Data for 1st True up of RPP Settlement based on Actual IESO Invoice" -> Data for 1st True up of RPP Settlement based on Actual IESO Invoice | P1: For Reconciliation
A3: Wholesale Electricty | B3: Year | C3: 2017 | E3: Rate | P3: Actual RPP Revenue and GA
B4: dateref | C4: 201702 | K4: Wholesale Volume data per IESO Power Bill: | L4: GA RPP/non-RPP Ratios | M4: GA Volumes | N4: Energy Volumes | P4: =B1 -> 201702
K5: AQEW | M5: =C10 -> 20023711.51 | N5: =+M5 -> 20023711.51 | P5: RPP Revenue Prices | Q5: RPP Rate | R5: Estimated RPP Energy Price | S5: GA actual IESO billed | T5: Total Commodity | U5: Difference | V5: kWh Volumes | W5: $ Estimated RPP Revenue | X5: $ Estimated RPP Energy | Y5: $ Estimated GA | Z5: $ Estimated RPP Settlement
B6: Wholesale | K6: Embedded Generation | M6: =SUM(C8:C9) -> 256642.13 | N6: =+M6 -> 256642.13 | P6: RPPT1 | Q6: =E20 -> 0.1030518283 | R6: =E42 -> 0.02118838984 | S6: =L32 -> 0.08640000343 | T6: =R6+S6 -> 0.1075883933 | U6: =+Q6-T6 -> -0.004536564947 | V6: =M18 -> 700308.6915 | W6: =Q6*V6 -> 72168.09105 | X6: =R6*V6 -> 14838.41357 | Y6: =+V6*S6 -> 60506.67335 | Z6: =W6-X6-Y6 -> -3176.995862
A7: FIT/mFIT | B7: Source | C7: kWh | D7: Total Cost | K7: Class A customer Volumes for GA (TLF included) | M7: =-B64 -> 0 | P7: RPPT2 | Q7: =E21 -> 0.1209997559 | R7: =R6 -> 0.02118838984 | S7: =S6 -> 0.08640000343 | T7: =R7+S7 -> 0.1075883933 | U7: =+Q7-T7 -> 0.01341136267 | V7: =M19 -> 579398.8019 | W7: =Q7*V7 -> 70107.11363 | X7: =R7*V7 -> 12276.52769 | Y7: =+V7*S7 -> 50060.05848 | Z7: =W7-X7-Y7 -> 7770.527464
B8: FIT | C8: 242298.14 | D8: 3733.72 | E8: =D8/C8 -> 0.01540961066 | M8: =+M5+M6+M7 -> 20280353.64 | N8: =+N5+N6+N7 -> 20280353.64 | P8: RPPTOUMID | Q8: =E23 -> 0.1319967219 | R8: =E43 -> 0.02177227576 | S8: =S7 -> 0.08640000343 | T8: 0.1081722792 | U8: 0.02382444274 | V8: 1477908.792 | W8: 195079.1158 | X8: 32177.43776 | Y8: 127691.3247 | Z8: 35210.35338
B9: microFIT | C9: 14343.99 | D9: 228.11 | E9: =D9/C9 -> 0.0159028276 | P9: RPPTOUOFF | Q9: =E24 -> 0.08699739696 | R9: =R8 -> 0.02177227576 | S9: 0.08640000343 | T9: 0.1081722792 | U9: -0.02117488224 | V9: 5191879.793 | W9: 451680.0273 | X9: 113039.0386 | Y9: 448578.4319 | Z9: -109937.4432
B10: WHOLESALE | C10: 20023711.51 | D10: 426485.3 | E10: =D10/C10 -> 0.02129901341 | K10: Estimated Retail Volume Revenue Data (TLF Included) | L10: RPP/non-RPP Ratios | M10: GA Volumes | N10: Energy Volumes | P10: RPPTOUON | Q10: 0.1799969103 | R10: =R9 -> 0.02177227576 | S10: 0.08640000343 | T10: 0.1081722792 | U10: 0.07182463111 | V10: 1570913.958 | W10: 282759.6588 | X10: 34202.37189 | Y10: 135726.9713 | Z10: 112830.3155
A11: Total Wholesale Electricity | B11: Grand Total | C11: 20280353.64 | D11: 430447.13 | K11: Estimated Retail Revenue Data (Net of Retail Billed/Unbilled) | M11: =+M15 -> 20280353.64 | N11: =+N15 -> 20280353.64 | P11: RPPULOMID | Q11: 0 | R11: 0 | S11: 0 | T11: 0 | U11: 0 | V11: 0 | W11: 0 | X11: 0 | Y11: 0 | Z11: 0
P12: RPPULOOFF | Q12: 0 | R12: 0 | S12: 0 | T12: 0 | U12: 0 | V12: 0 | W12: 0 | X12: 0 | Y12: 0 | Z12: 0
K13: Estimated RPP Sales Quantities | L13: =SUM(C20:C25)/(C30-B64) -> 0.4694400406 | M13: =M8*L13 -> 9520410.036 | N13: =M13 -> 9520410.036 | P13: RPPULOON | Q13: 0 | R13: 0 | S13: 0 | T13: 0 | U13: 0 | V13: 0 | W13: 0 | X13: 0 | Y13: 0 | Z13: 0
A14: RPP Revenue Volume and Price Data | K14: Estimated non-RPP Sales Quantities | L14: =1-L13 -> 0.5305599594 | M14: =M8*L14 -> 10759943.6 | N14: =N8-N13 -> 10759943.6 | P14: RPPULOOVN | Q14: 0 | R14: 0 | S14: 0 | T14: 0 | U14: 0 | V14: 0 | W14: 0 | X14: 0 | Y14: 0 | Z14: 0
B15: bill_year | C15: 2017 | K15: Estimated Retail Revenue kWh Volumes | L15: =+L13+L14 -> 1 | M15: =+M13+M14 -> 20280353.64 | N15: =+N13+N14 -> 20280353.64 | V15: =SUM(V6:V14) -> 9520410.036 | W15: =SUM(W6:W14) -> 1071794.007 | X15: =SUM(X6:X14) -> 206533.7895 | Y15: =SUM(Y6:Y14) -> 822563.4598 | Z15: =SUM(Z6:Z14) -> 42696.75729
B16: bill_month | C16: 2 | Z16: =W15-X15-Y15-Z15 -> 5.820766091e-11
K17: Estimated RPP Revenue Volume and Price Data | L17: Actual % | M17: kWh Volumes
B18: Row Labels | C18: usagebilled | D18: amountbilled | E18: Rate | K18: RPPT1 | L18: =C20/SUM($C$20:$C$25) -> 0.07355866909 | M18: =$M$13*L18 -> 700308.6915
B19: RPPTIER | K19: RPPT2 | L19: =C21/SUM($C$20:$C$25) -> 0.06085859745 | M19: =$M$13*L19 -> 579398.8019
B20: RPPT1 | C20: 708428.4552 | D20: 73004.84755 | E20: =D20/C20 -> 0.1030518283 | K20: RPPTOUMID | L20: =C23/SUM($C$20:$C$25) -> 0.155235834 | M20: 1477908.792
B21: RPPT2 | C21: 586116.67 | D21: 70919.97403 | E21: =D21/C21 -> 0.1209997559 | K21: RPPTOUOFF | L21: =C24/SUM($C$20:$C$25) -> 0.5453420361 | M21: 5191879.793
B22: RPPTOU | K22: RPPTOUON | L22: 0.1650048634 | M22: 1570913.958
B23: RPPTOUMID | C23: 1495044.478 | D23: 197340.9703 | E23: 0.1319967219 | K23: RPPULOMID | L23: 0 | M23: 0
B24: RPPTOUOFF | C24: 5252077.3 | D24: 456917.0537 | E24: 0.08699739696 | K24: RPPULOOFF | L24: 0 | M24: 0
B25: RPPTOUON | C25: 1589127.997 | D25: 286038.1296 | E25: 0.1799969103 | K25: RPPULOON | L25: 0 | M25: 0
B26: RETAIL | K26: RPPULOOVN | L26: 0 | M26: 0
B27: NSLS | C27: 3897557.355 | D27: 84190.83138 | E27: 0.02160092173 | L27: =SUM(L18:L26) -> 1 | M27: =SUM(M18:M26) -> 9520410.036
B28: INTERVAL
B29: HOEP | C29: 6987142.948 | D29: 148732.6758 | E29: 0.02128662271
B30: Grand Total | C30: 20515495.2 | D30: 1317144.482
K31: Global Adjustment | L31: per kWh
C32: =C30/C11-1 -> 0.01159454947 | K32: Class B - GA actual8 | L32: =B69/100 -> 0.08640000343 | N32: GA Posted Price
K33: Class B - GA actual IESO billed | L33: =+M33/M8 -> 0.08468728162 | M33: =B77 -> 1717488.02 | N33: GA Billed by IESO CT 148
A37: RPP COP Volume and Price Data
B38: bill_year | C38: 2017
B39: bill_month | C39: 2
B41: Row Labels | C41: usagebilled | D41: amountbilled | E41: Rate
B42: RPPTIERED | C42: 1291681.106 | D42: 27368.64283 | E42: =D42/C42 -> 0.02118838984
B43: RPPTOU | C43: 8332725.326 | D43: 181422.3937 | E43: 0.02177227576
B44: Grand Total | C44: 9624406.432 | D44: 208791.0365
C46: =SUM(C20:C25)-C44 -> 6388.468909
C47: =C46/C44 -> 0.0006637779643
A60: Year | B60: 2017
A62: Class A | B62: Value
A63: kWh
A64: =A69 -> 201702 | B64: 0
A67: ga_actual | B67: year
A68: month | B68: 2017
A69: 201702 | B69: 8.640000343
A73: chargetype | B73: 148
A75: Sum of chargeamount | B75: year
A76: month | B76: 2017
A77: 201702 | B77: 1717488.02

Sheet I5 Input Rev 02 Init
A1: Reverse IESO Posted
A5: =Admin!B11 -> 201702
A6: RPP Revenue Prices | B6: kWh Volumes | C6: $ RPP Settlement
A7: RPPTiered_1 | B7: 681515.89 | C7: 440.8896315
A8: RPPTiered_2 | B8: 575278.72 | C8: -9989.926048
A9: RPPTOU_MID | B9: 1908300.85 | C9: -52734.14398
A10: RPPTOU_OFF | B10: 7586442.43 | C10: 131751.3625
A11: RPPTOU_ON | B11: 1977945.27 | C11: -149602.2276
A12: Grand Total | B12: 12729483.16 | C12: -80134.04545

Sheet I6 Input 03 Trueup Sett
A1: Date: | B1: =Admin!B8+2 -> 201703 | C1: Trueup | K1: ="Data for 1st True up of RPP Settlement based on Actual IESO Invoice" -> Data for 1st True up of RPP Settlement based on Actual IESO Invoice | P1: For Reconciliation
A3: Wholesale Electricty | B3: Year | C3: 2017 | E3: Rate | P3: Actual RPP Revenue and GA
B4: dateref | C4: 201703 | K4: Wholesale Volume data per IESO Power Bill: | L4: GA RPP/non-RPP Ratios | M4: GA Volumes | N4: Energy Volumes | P4: =B1 -> 201703
K5: AQEW | M5: =C10 -> 21990613.46 | N5: =+M5 -> 21990613.46 | P5: RPP Revenue Prices | Q5: RPP Rate | R5: Estimated RPP Energy Price | S5: GA actual IESO billed | T5: Total Commodity | U5: Difference | V5: kWh Volumes | W5: $ Estimated RPP Revenue | X5: $ Estimated RPP Energy | Y5: $ Estimated GA | Z5: $ Estimated RPP Settlement
B6: Wholesale | K6: Embedded Generation | M6: =SUM(C8:C9) -> 439237.62 | N6: =+M6 -> 439237.62 | P6: RPPT1 | Q6: =E20 -> 0.1030309644 | R6: =E42 -> 0.02845050667 | S6: =L32 -> 0.07139999866 | T6: =R6+S6 -> 0.09985050533 | U6: =+Q6-T6 -> 0.003180459111 | V6: =M18 -> 792141.3048 | W6: =Q6*V6 -> 81615.08261 | X6: =R6*V6 -> 22536.82147 | Y6: =+V6*S6 -> 56558.8881 | Z6: =W6-X6-Y6 -> 2519.37303
A7: FIT/mFIT | B7: Source | C7: kWh | D7: Total Cost | K7: Class A customer Volumes for GA (TLF included) | M7: =-B64 -> 0 | P7: RPPT2 | Q7: =E21 -> 0.1209853527 | R7: =R6 -> 0.02845050667 | S7: =S6 -> 0.07139999866 | T7: =R7+S7 -> 0.09985050533 | U7: =+Q7-T7 -> 0.02113484733 | V7: =M19 -> 672348.9217 | W7: =Q7*V7 -> 81344.3714 | X7: =R7*V7 -> 19128.66748 | Y7: =+V7*S7 -> 48005.71211 | Z7: =W7-X7-Y7 -> 14209.99181
B8: FIT | C8: 416915.44 | D8: 6661.46 | E8: =D8/C8 -> 0.01597796426 | M8: =+M5+M6+M7 -> 22429851.08 | N8: =+N5+N6+N7 -> 22429851.08 | P8: RPPTOUMID | Q8: =E23 -> 0.1319953595 | R8: =E43 -> 0.02554680569 | S8: =S7 -> 0.07139999866 | T8: 0.09694680435 | U8: 0.03504855518 | V8: 1648839.735 | W8: 217639.1936 | X8: 42122.58832 | Y8: 117727.1549 | Z8: 57789.45044
B9: microFIT | C9: 22322.18 | D9: 332.06 | E9: =D9/C9 -> 0.01487578722 | P9: RPPTOUOFF | Q9: =E24 -> 0.08699678405 | R9: =R8 -> 0.02554680569 | S9: 0.07139999866 | T9: 0.09694680435 | U9: -0.009950020303 | V9: 5629854.046 | W9: 489779.1967 | X9: 143824.7874 | Y9: 401971.5714 | Z9: -56017.16206
B10: WHOLESALE | C10: 21990613.46 | D10: 569611.47 | E10: =D10/C10 -> 0.02590248203 | K10: Estimated Retail Volume Revenue Data (TLF Included) | L10: RPP/non-RPP Ratios | M10: GA Volumes | N10: Energy Volumes | P10: RPPTOUON | Q10: 0.1799957701 | R10: =R9 -> 0.02554680569 | S10: 0.07139999866 | T10: 0.09694680435 | U10: 0.08304896575 | V10: 1728779.726 | W10: 311173.0381 | X10: 44164.79974 | Y10: 123434.8701 | Z10: 143573.3682
A11: Total Wholesale Electricity | B11: Grand Total | C11: 22429851.08 | D11: 576604.99 | K11: Estimated Retail Revenue Data (Net of Retail Billed/Unbilled) | M11: =+M15 -> 22429851.08 | N11: =+N15 -> 22429851.08 | P11: RPPULOMID | Q11: 0 | R11: 0 | S11: 0 | T11: 0 | U11: 0 | V11: 0 | W11: 0 | X11: 0 | Y11: 0 | Z11: 0
P12: RPPULOOFF | Q12: 0 | R12: 0 | S12: 0 | T12: 0 | U12: 0 | V12: 0 | W12: 0 | X12: 0 | Y12: 0 | Z12: 0
K13: Estimated RPP Sales Quantities | L13: =SUM(C20:C25)/(C30-B64) -> 0.4668762042 | M13: =M8*L13 -> 10471963.73 | N13: =M13 -> 10471963.73 | P13: RPPULOON | Q13: 0 | R13: 0 | S13: 0 | T13: 0 | U13: 0 | V13: 0 | W13: 0 | X13: 0 | Y13: 0 | Z13: 0
A14: RPP Revenue Volume and Price Data | K14: Estimated non-RPP Sales Quantities | L14: =1-L13 -> 0.5331237958 | M14: =M8*L14 -> 11957887.35 | N14: =N8-N13 -> 11957887.35 | P14: RPPULOOVN | Q14: 0 | R14: 0 | S14: 0 | T14: 0 | U14: 0 | V14: 0 | W14: 0 | X14: 0 | Y14: 0 | Z14: 0
B15: bill_year | C15: 2017 | K15: Estimated Retail Revenue kWh Volumes | L15: =+L13+L14 -> 1 | M15: =+M13+M14 -> 22429851.08 | N15: =+N13+N14 -> 22429851.08 | V15: =SUM(V6:V14) -> 10471963.73 | W15: =SUM(W6:W14) -> 1181550.882 | X15: =SUM(X6:X14) -> 271777.6644 | Y15: =SUM(Y6:Y14) -> 747698.1966 | Z15: =SUM(Z6:Z14) -> 162075.0215
B16: bill_month | C16: 3 | Z16: =W15-X15-Y15-Z15 -> 0
K17: Estimated RPP Revenue Volume and Price Data | L17: Actual % | M17: kWh Volumes
B18: Row Labels | C18: usagebilled | D18: amountbilled | E18: Rate | K18: RPPT1 | L18: =C20/SUM($C$20:$C$25) -> 0.07564400765 | M18: =$M$13*L18 -> 792141.3048
B19: RPPTIER | K19: RPPT2 | L19: =C21/SUM($C$20:$C$25) -> 0.06420466484 | M19: =$M$13*L19 -> 672348.9217
B20: RPPT1 | C20: 779079.3736 | D20: 80269.29924 | E20: =D20/C20 -> 0.1030309644 | K20: RPPTOUMID | L20: =C23/SUM($C$20:$C$25) -> 0.1574527736 | M20: 1648839.735
B21: RPPT2 | C21: 661262.2945 | D21: 80003.0519 | E21: =D21/C21 -> 0.1209853527 | K21: RPPTOUOFF | L21: =C24/SUM($C$20:$C$25) -> 0.5376120649 | M21: 5629854.046
B22: RPPTOU | K22: RPPTOUON | L22: 0.165086489 | M22: 1728779.726
B23: RPPTOUMID | C23: 1621651.365 | D23: 214050.4549 | E23: 0.1319953595 | K23: RPPULOMID | L23: 0 | M23: 0
B24: RPPTOUOFF | C24: 5537021.157 | D24: 481703.0339 | E24: 0.08699678405 | K24: RPPULOOFF | L24: 0 | M24: 0
B25: RPPTOUON | C25: 1700273.193 | D25: 306041.9829 | E25: 0.1799957701 | K25: RPPULOON | L25: 0 | M25: 0
B26: RETAIL | K26: RPPULOOVN | L26: 0 | M26: 0
B27: NSLS | C27: 4188765.773 | D27: 105052.2259 | E27: 0.02507951784 | L27: =SUM(L18:L26) -> 1 | M27: =SUM(M18:M26) -> 10471963.73
B28: INTERVAL
B29: HOEP | C29: 7571943.242 | D29: 195374.9386 | E29: 0.02580248325
B30: Grand Total | C30: 22059996.4 | D30: 1462494.987
K31: Global Adjustment | L31: per kWh
C32: =C30/C11-1 -> -0.01648939539 | K32: Class B - GA actual8 | L32: =B69/100 -> 0.07139999866 | N32: GA Posted Price
K33: Class B - GA actual IESO billed | L33: =+M33/M8 -> 0.06995097758 | M33: =B76 -> 1568990.01 | N33: GA Billed by IESO CT 148
A37: RPP COP Volume and Price Data
B38: bill_year | C38: 2017
B39: bill_month | C39: 3
B41: Row Labels | C41: usagebilled | D41: amountbilled | E41: Rate
B42: RPPTIERED | C42: 1387820.871 | D42: 39484.20694 | E42: =D42/C42 -> 0.02845050667
B43: RPPTOU | C43: 7160900.612 | D43: 182938.1365 | E43: 0.02554680569
B44: Grand Total | C44: 8548721.483 | D44: 222422.3434
C46: =SUM(C20:C25)-C44 -> 1750565.9
C47: =C46/C44 -> 0.2047751705
A60: Year | B60: 2017
A62: Class A | B62: Value
A63: kWh
A64: =A69 -> 201703 | B64: 0
A67: ga_actual | B67: year
A68: month | B68: 2017
A69: 201703 | B69: 7.139999866
A72: chargetype | B72: 148
A74: Sum of chargeamount | B74: year
A75: month | B75: 2017
A76: 201703 | B76: 1568990.01

Sheet I7 Input Rev 03 Init
A1: Reverse IESO Posted
A5: =Admin!B14 -> 201703
A6: RPP Revenue Prices | B6: kWh Volumes | C6: $ RPP Settlement
A7: RPPTiered_1 | B7: 791845.15 | C7: 1687.424957
A8: RPPTiered_2 | B8: 782299.56 | C8: -12417.95702
A9: RPPTOU_MID | B9: 1656106.2 | C9: -42579.67546
A10: RPPTOU_OFF | B10: 5632675.56 | C10: 108750.3545
A11: RPPTOU_ON | B11: 1754048.63 | C11: -129296.5006
A12: Grand Total | B12: 10616975.1 | C12: -73856.35365

Sheet I8 Input 04 Trueup Sett
A1: Date: | B1: =Admin!B8+3 -> 201704 | C1: Trueup | K1: ="Data for 1st True up of RPP Settlement based on Actual IESO Invoice" -> Data for 1st True up of RPP Settlement based on Actual IESO Invoice | P1: For Reconciliation
A3: Wholesale Electricty | B3: Year | C3: 2017 | E3: Rate | P3: Actual RPP Revenue and GA
B4: dateref | C4: 201704 | K4: Wholesale Volume data per IESO Power Bill: | L4: GA RPP/non-RPP Ratios | M4: GA Volumes | N4: Energy Volumes | P4: =B1 -> 201704
K5: AQEW | M5: =C10 -> 18291643.18 | N5: =+M5 -> 18291643.18 | P5: RPP Revenue Prices | Q5: RPP Rate | R5: Estimated RPP Energy Price | S5: GA actual IESO billed | T5: Total Commodity | U5: Difference | V5: kWh Volumes | W5: $ Estimated RPP Revenue | X5: $ Estimated RPP Energy | Y5: $ Estimated GA | Z5: $ Estimated RPP Settlement
B6: Wholesale | K6: Embedded Generation | M6: =SUM(C8:C9) -> 573989.4 | N6: =+M6 -> 573989.4 | P6: RPPT1 | Q6: =E20 -> 0.1024716066 | R6: =E42 -> 0.01403532036 | S6: =L32 -> 0.1077999973 | T6: =R6+S6 -> 0.1218353177 | U6: =+Q6-T6 -> -0.01936371105 | V6: =M18 -> 657065.6515 | W6: =Q6*V6 -> 67330.57297 | X6: =R6*V6 -> 9222.126915 | Y6: =+V6*S6 -> 70831.67548 | Z6: =W6-X6-Y6 -> -12723.22942
A7: FIT/mFIT | B7: Source | C7: kWh | D7: Total Cost | K7: Class A customer Volumes for GA (TLF included) | M7: =-B64 -> 0 | P7: RPPT2 | Q7: =E21 -> 0.1198394034 | R7: =R6 -> 0.01403532036 | S7: =S6 -> 0.1077999973 | T7: =R7+S7 -> 0.1218353177 | U7: =+Q7-T7 -> -0.001995914242 | V7: =M19 -> 382205.009 | W7: =Q7*V7 -> 45803.22027 | X7: =R7*V7 -> 5364.369743 | Y7: =+V7*S7 -> 41201.69895 | Z7: =W7-X7-Y7 -> -762.8484206
B8: FIT | C8: 549687.63 | D8: 3063.83 | E8: =D8/C8 -> 0.005573765595 | M8: =+M5+M6+M7 -> 18865632.58 | N8: =+N5+N6+N7 -> 18865632.58 | P8: RPPTOUMID | Q8: =E23 -> 0.1287477532 | R8: =E43 -> 0.0142052534 | S8: =S7 -> 0.1077999973 | T8: 0.1220052507 | U8: 0.006742502431 | V8: 1343251.842 | W8: 172940.6566 | X8: 19081.2328 | Y8: 144802.545 | Z8: 9056.87881
B9: microFIT | C9: 24301.77 | D9: 127.43 | E9: =D9/C9 -> 0.005243650977 | P9: RPPTOUOFF | Q9: =E24 -> 0.08560065769 | R9: =R8 -> 0.0142052534 | S9: 0.1077999973 | T9: 0.1220052507 | U9: -0.03640459304 | V9: 4517163.23 | W9: 386672.1433 | X9: 64167.44834 | Y9: 486950.1841 | Z9: -164445.4891
B10: WHOLESALE | C10: 18291643.18 | D10: 208452.39 | E10: =D10/C10 -> 0.01139604507 | K10: Estimated Retail Volume Revenue Data (TLF Included) | L10: RPP/non-RPP Ratios | M10: GA Volumes | N10: Energy Volumes | P10: RPPTOUON | Q10: 0.1763252748 | R10: =R9 -> 0.0142052534 | S10: 0.1077999973 | T10: 0.1220052507 | U10: 0.05432002408 | V10: 1360952.592 | W10: 239970.3398 | X10: 19332.67644 | Y10: 146710.6858 | Z10: 73926.97757
A11: Total Wholesale Electricity | B11: Grand Total | C11: 18865632.58 | D11: 211643.65 | K11: Estimated Retail Revenue Data (Net of Retail Billed/Unbilled) | M11: =+M15 -> 18865632.58 | N11: =+N15 -> 18865632.58 | P11: RPPULOMID | Q11: 0 | R11: 0 | S11: 0 | T11: 0 | U11: 0 | V11: 0 | W11: 0 | X11: 0 | Y11: 0 | Z11: 0
P12: RPPULOOFF | Q12: 0 | R12: 0 | S12: 0 | T12: 0 | U12: 0 | V12: 0 | W12: 0 | X12: 0 | Y12: 0 | Z12: 0
K13: Estimated RPP Sales Quantities | L13: =SUM(C20:C25)/(C30-B64) -> 0.4378670203 | M13: =M8*L13 -> 8260638.324 | N13: =M13 -> 8260638.324 | P13: RPPULOON | Q13: 0 | R13: 0 | S13: 0 | T13: 0 | U13: 0 | V13: 0 | W13: 0 | X13: 0 | Y13: 0 | Z13: 0
A14: RPP Revenue Volume and Price Data | K14: Estimated non-RPP Sales Quantities | L14: =1-L13 -> 0.5621329797 | M14: =M8*L14 -> 10604994.26 | N14: =N8-N13 -> 10604994.26 | P14: RPPULOOVN | Q14: 0 | R14: 0 | S14: 0 | T14: 0 | U14: 0 | V14: 0 | W14: 0 | X14: 0 | Y14: 0 | Z14: 0
B15: bill_year | C15: 2017 | K15: Estimated Retail Revenue kWh Volumes | L15: =+L13+L14 -> 1 | M15: =+M13+M14 -> 18865632.58 | N15: =+N13+N14 -> 18865632.58 | V15: =SUM(V6:V14) -> 8260638.324 | W15: =SUM(W6:W14) -> 912716.933 | X15: =SUM(X6:X14) -> 117167.8542 | Y15: =SUM(Y6:Y14) -> 890496.7893 | Z15: =SUM(Z6:Z14) -> -94947.71054
B16: bill_month | C16: 4 | Z16: =W15-X15-Y15-Z15 -> 0
K17: Estimated RPP Revenue Volume and Price Data | L17: Actual % | M17: kWh Volumes
B18: Row Labels | C18: usagebilled | D18: amountbilled | E18: Rate | K18: RPPT1 | L18: =C20/SUM($C$20:$C$25) -> 0.0795417528 | M18: =$M$13*L18 -> 657065.6515
B19: RPPTIER | K19: RPPT2 | L19: =C21/SUM($C$20:$C$25) -> 0.04626821729 | M19: =$M$13*L19 -> 382205.009
B20: RPPT1 | C20: 671169.8422 | D20: 68775.85206 | E20: =D20/C20 -> 0.1024716066 | K20: RPPTOUMID | L20: =C23/SUM($C$20:$C$25) -> 0.1626087222 | M20: 1343251.842
B21: RPPT2 | C21: 390409.2003 | D21: 46786.40567 | E21: =D21/C21 -> 0.1198394034 | K21: RPPTOUOFF | L21: =C24/SUM($C$20:$C$25) -> 0.5468298033 | M21: 4517163.23
B22: RPPTOU | K22: RPPTOUON | L22: 0.1647515045 | M22: 1360952.592
B23: RPPTOUMID | C23: 1372085.308 | D23: 176652.9006 | E23: 0.1287477532 | K23: RPPULOMID | L23: 0 | M23: 0
B24: RPPTOUOFF | C24: 4614126.039 | D24: 394972.2236 | E24: 0.08560065769 | K24: RPPULOOFF | L24: 0 | M24: 0
B25: RPPTOUON | C25: 1390166.012 | D25: 245121.4041 | E25: 0.1763252748 | K25: RPPULOON | L25: 0 | M25: 0
B26: RETAIL | K26: RPPULOOVN | L26: 0 | M26: 0
B27: NSLS | C27: 3669452.216 | D27: 48562.32484 | E27: 0.01323421644 | L27: =SUM(L18:L26) -> 1 | M27: =SUM(M18:M26) -> 8260638.324
B28: INTERVAL
B29: HOEP | C29: 7163182.705 | D29: 83520.96101 | E29: 0.01165975579
B30: Grand Total | C30: 19270591.32 | D30: 1064392.072
K31: Global Adjustment | L31: per kWh
C32: =C30/C11-1 -> 0.02146542083 | K32: Class B - GA actual8 | L32: =B69/100 -> 0.1077999973 | N32: GA Posted Price
K33: Class B - GA actual IESO billed | L33: =+M33/M8 -> 0.1044544466 | M33: =B76 -> 1970599.21 | N33: GA Billed by IESO CT 148
A37: RPP COP Volume and Price Data
B38: bill_year | C38: 2017
B39: bill_month | C39: 4
B41: Row Labels | C41: usagebilled | D41: amountbilled | E41: Rate
B42: RPPTIERED | C42: 217912.9923 | D42: 3058.478656 | E42: =D42/C42 -> 0.01403532036
B43: RPPTOU | C43: 5755787.851 | D43: 81762.42497 | E43: 0.0142052534
B44: Grand Total | C44: 5973700.843 | D44: 84820.90362
C46: =SUM(C20:C25)-C44 -> 2464255.559
C47: =C46/C44 -> 0.4125174031
A60: Year | B60: 2017
A62: Class A | B62: Value
A63: kWh
A64: =A69 -> 201704 | B64: 0
A67: ga_actual | B67: year
A68: month | B68: 2017
A69: 201704 | B69: 10.77999973
A72: chargetype | B72: 148
A74: Sum of chargeamount | B74: year
A75: month | B75: 2017
A76: 201704 | B76: 1970599.21

Sheet I9 Input Rev 04 Init
A1: Reverse IESO Posted
A5: =Admin!B17 -> 201704
A6: RPP Revenue Prices | B6: kWh Volumes | C6: $ RPP Settlement
A7: RPPTiered_1 | B7: 686534.4 | C7: -36.3594656
A8: RPPTiered_2 | B8: 574029.85 | C8: -10330.96695
A9: RPPTOU_MID | B9: 1551753.91 | C9: -47125.96548
A10: RPPTOU_OFF | B10: 5327192.9 | C10: 77932.60844
A11: RPPTOU_ON | B11: 1638577.8 | C11: -128415.7664
A12: Grand Total | B12: 9778088.86 | C12: -107976.4499

Sheet I10 Input 05 Trueup Sett
A1: Date: | B1: =Admin!B8+4 -> 201705 | C1: Trueup | K1: ="Data for 1st True up of RPP Settlement based on Actual IESO Invoice" -> Data for 1st True up of RPP Settlement based on Actual IESO Invoice | P1: For Reconciliation
A3: Wholesale Electricty | B3: Year | C3: 2017 | E3: Rate | P3: Actual RPP Revenue and GA
B4: dateref | C4: 201705 | K4: Wholesale Volume data per IESO Power Bill: | L4: GA RPP/non-RPP Ratios | M4: GA Volumes | N4: Energy Volumes | P4: =B1 -> 201705
K5: AQEW | M5: =C10 -> 18534327.65 | N5: =+M5 -> 18534327.65 | P5: RPP Revenue Prices | Q5: RPP Rate | R5: Estimated RPP Energy Price | S5: GA actual IESO billed | T5: Total Commodity | U5: Difference | V5: kWh Volumes | W5: $ Estimated RPP Revenue | X5: $ Estimated RPP Energy | Y5: $ Estimated GA | Z5: $ Estimated RPP Settlement
B6: Wholesale | K6: Embedded Generation | M6: =SUM(C8:C9) -> 652179.92 | N6: =+M6 -> 652179.92 | P6: RPPT1 | Q6: =E20 -> 0.09204518723 | R6: =E42 -> 0.002972581481 | S6: =L32 -> 0.1231000042 | T6: =R6+S6 -> 0.1260725857 | U6: =+Q6-T6 -> -0.03402739844 | V6: =M18 -> 582059.2631 | W6: =Q6*V6 -> 53575.75385 | X6: =R6*V6 -> 1730.218586 | Y6: =+V6*S6 -> 71651.49773 | Z6: =W6-X6-Y6 -> -19805.96246
A7: FIT/mFIT | B7: Source | C7: kWh | D7: Total Cost | K7: Class A customer Volumes for GA (TLF included) | M7: =-B64 -> 0 | P7: RPPT2 | Q7: =E21 -> 0.1068904642 | R7: =R6 -> 0.002972581481 | S7: =S6 -> 0.1231000042 | T7: =R7+S7 -> 0.1260725857 | U7: =+Q7-T7 -> -0.0191821215 | V7: =M19 -> 377161.8276 | W7: =Q7*V7 -> 40315.00282 | X7: =R7*V7 -> 1121.144264 | Y7: =+V7*S7 -> 46428.62256 | Z7: =W7-X7-Y7 -> -7234.764002
B8: FIT | C8: 625527.91 | D8: 1547.29 | E8: =D8/C8 -> 0.00247357468 | M8: =+M5+M6+M7 -> 19186507.57 | N8: =+N5+N6+N7 -> 19186507.57 | P8: RPPTOUMID | Q8: =E23 -> 0.1154981472 | R8: =E43 -> 0.003936823381 | S8: =S7 -> 0.1231000042 | T8: 0.1270368276 | U8: -0.01153868041 | V8: 1306422.191 | W8: 150889.3424 | X8: 5143.153425 | Y8: 160820.5771 | Z8: -15074.38813
B9: microFIT | C9: 26652.01 | D9: 64.66 | E9: =D9/C9 -> 0.002426083436 | P9: RPPTOUOFF | Q9: =E24 -> 0.0784990986 | R9: =R8 -> 0.003936823381 | S9: 0.1231000042 | T9: 0.1270368276 | U9: -0.04853772898 | V9: 4390834.891 | W9: 344676.5811 | X9: 17285.94146 | Y9: 540511.7936 | Z9: -213121.154
B10: WHOLESALE | C10: 18534327.65 | D10: 62514.7 | E10: =D10/C10 -> 0.003372914366 | K10: Estimated Retail Volume Revenue Data (TLF Included) | L10: RPP/non-RPP Ratios | M10: GA Volumes | N10: Energy Volumes | P10: RPPTOUON | Q10: 0.1601852037 | R10: =R9 -> 0.003936823381 | S10: 0.1231000042 | T10: 0.1270368276 | U10: 0.03314837608 | V10: 1297500.723 | W10: 207840.4175 | X10: 5108.031182 | Y10: 159722.3444 | Z10: 43010.04192
A11: Total Wholesale Electricity | B11: Grand Total | C11: 19186507.57 | D11: 64126.65 | K11: Estimated Retail Revenue Data (Net of Retail Billed/Unbilled) | M11: =+M15 -> 19186507.57 | N11: =+N15 -> 19186507.57 | P11: RPPULOMID | Q11: 0 | R11: 0 | S11: 0 | T11: 0 | U11: 0 | V11: 0 | W11: 0 | X11: 0 | Y11: 0 | Z11: 0
P12: RPPULOOFF | Q12: 0 | R12: 0 | S12: 0 | T12: 0 | U12: 0 | V12: 0 | W12: 0 | X12: 0 | Y12: 0 | Z12: 0
K13: Estimated RPP Sales Quantities | L13: =SUM(C20:C25)/(C30-B64) -> 0.4145610589 | M13: =M8*L13 -> 7953978.895 | N13: =M13 -> 7953978.895 | P13: RPPULOON | Q13: 0 | R13: 0 | S13: 0 | T13: 0 | U13: 0 | V13: 0 | W13: 0 | X13: 0 | Y13: 0 | Z13: 0
A14: RPP Revenue Volume and Price Data | K14: Estimated non-RPP Sales Quantities | L14: =1-L13 -> 0.5854389411 | M14: =M8*L14 -> 11232528.67 | N14: =N8-N13 -> 11232528.67 | P14: RPPULOOVN | Q14: 0 | R14: 0 | S14: 0 | T14: 0 | U14: 0 | V14: 0 | W14: 0 | X14: 0 | Y14: 0 | Z14: 0
B15: bill_year | C15: 2017 | K15: Estimated Retail Revenue kWh Volumes | L15: =+L13+L14 -> 1 | M15: =+M13+M14 -> 19186507.57 | N15: =+N13+N14 -> 19186507.57 | V15: =SUM(V6:V14) -> 7953978.895 | W15: =SUM(W6:W14) -> 797297.0977 | X15: =SUM(X6:X14) -> 30388.48892 | Y15: =SUM(Y6:Y14) -> 979134.8354 | Z15: =SUM(Z6:Z14) -> -212226.2266
B16: bill_month | C16: 5 | Z16: =W15-X15-Y15-Z15 -> 0
K17: Estimated RPP Revenue Volume and Price Data | L17: Actual % | M17: kWh Volumes
B18: Row Labels | C18: usagebilled | D18: amountbilled | E18: Rate | K18: RPPT1 | L18: =C20/SUM($C$20:$C$25) -> 0.0731783766 | M18: =$M$13*L18 -> 582059.2631
B19: RPPTIER | K19: RPPT2 | L19: =C21/SUM($C$20:$C$25) -> 0.04741800708 | M19: =$M$13*L19 -> 377161.8276
B20: RPPT1 | C20: 588074.6579 | D20: 54129.442 | E20: =D20/C20 -> 0.09204518723 | K20: RPPTOUMID | L20: =C23/SUM($C$20:$C$25) -> 0.164247631 | M20: 1306422.191
B21: RPPT2 | C21: 381059.6735 | D21: 40731.64538 | E21: =D21/C21 -> 0.1068904642 | K21: RPPTOUOFF | L21: =C24/SUM($C$20:$C$25) -> 0.5520299902 | M21: 4390834.891
B22: RPPTOU | K22: RPPTOUON | L22: 0.1631259951 | M22: 1297500.723
B23: RPPTOUMID | C23: 1319923.643 | D23: 152448.7351 | E23: 0.1154981472 | K23: RPPULOMID | L23: 0 | M23: 0
B24: RPPTOUOFF | C24: 4436212.755 | D24: 348238.7024 | E24: 0.0784990986 | K24: RPPULOOFF | L24: 0 | M24: 0
B25: RPPTOUON | C25: 1310909.974 | D25: 209988.3812 | E25: 0.1601852037 | K25: RPPULOON | L25: 0 | M25: 0
B26: RETAIL | K26: RPPULOOVN | L26: 0 | M26: 0
B27: NSLS | C27: 3901127.547 | D27: 14124.1283 | E27: 0.003620524613 | L27: =SUM(L18:L26) -> 1 | M27: =SUM(M18:M26) -> 7953978.895
B28: INTERVAL
B29: HOEP | C29: 7447485.69 | D29: 24100.75972 | E29: 0.003236093458
B30: Grand Total | C30: 19384793.94 | D30: 843761.7942
K31: Global Adjustment | L31: per kWh
C32: =C30/C11-1 -> 0.01033467764 | K32: Class B - GA actual8 | L32: =B69/100 -> 0.1231000042 | N32: GA Posted Price
K33: Class B - GA actual IESO billed | L33: =+M33/M8 -> 0.1188694822 | M33: =B76 -> 2280690.22 | N33: GA Billed by IESO CT 148
A37: RPP COP Volume and Price Data
B38: bill_year | C38: 2017
B39: bill_month | C39: 5
B41: Row Labels | C41: usagebilled | D41: amountbilled | E41: Rate
B42: RPPTIERED | C42: 919759.963 | D42: 2734.061433 | E42: =D42/C42 -> 0.002972581481
B43: RPPTOU | C43: 7065879.375 | D43: 27817.11913 | E43: 0.003936823381
B44: Grand Total | C44: 7985639.338 | D44: 30551.18056
C46: =SUM(C20:C25)-C44 -> 50541.36536
C47: =C46/C44 -> 0.006329031805
A60: Year | B60: 2017
A62: Class A | B62: Value
A63: kWh
A64: =A69 -> 201705 | B64: 0
A67: ga_actual | B67: year
A68: month | B68: 2017
A69: 201705 | B69: 12.31000042
A72: chargetype | B72: 148
A74: Sum of chargeamount | B74: year
A75: month | B75: 2017
A76: 201705 | B76: 2280690.22

Sheet I11 Input Rev 05 Init
A1: Reverse IESO Posted
A5: =Admin!B20 -> 201705
A6: RPP Revenue Prices | B6: kWh Volumes | C6: $ RPP Settlement
A7: RPPTiered_1 | B7: 709051.84 | C7: 12454.77888
A8: RPPTiered_2 | B8: 403289.34 | C8: -33.43387928
A9: RPPTOU_MID | B9: 1621182.12 | C9: -22524.95182
A10: RPPTOU_OFF | B10: 5561533.83 | C10: 167556.7795
A11: RPPTOU_ON | B11: 1664301.21 | C11: -102768.9037
A12: Grand Total | B12: 9959358.34 | C12: 54684.26892

Sheet I12 Input 06 Trueup Sett
A1: Date: | B1: =Admin!B8+5 -> 201706 | C1: Trueup | K1: ="Data for 1st True up of RPP Settlement based on Actual IESO Invoice" -> Data for 1st True up of RPP Settlement based on Actual IESO Invoice | P1: For Reconciliation
A3: Wholesale Electricty | B3: Year | C3: 2017 | E3: Rate | P3: Actual RPP Revenue and GA
B4: dateref | C4: 201706 | K4: Wholesale Volume data per IESO Power Bill: | L4: GA RPP/non-RPP Ratios | M4: GA Volumes | N4: Energy Volumes | P4: =B1 -> 201706
K5: AQEW | M5: =C10 -> 18529689.54 | N5: =+M5 -> 18529689.54 | P5: RPP Revenue Prices | Q5: RPP Rate | R5: Estimated RPP Energy Price | S5: GA actual IESO billed | T5: Total Commodity | U5: Difference | V5: kWh Volumes | W5: $ Estimated RPP Revenue | X5: $ Estimated RPP Energy | Y5: $ Estimated GA | Z5: $ Estimated RPP Settlement
B6: Wholesale | K6: Embedded Generation | M6: =SUM(C8:C9) -> 721717.92 | N6: =+M6 -> 721717.92 | P6: RPPT1 | Q6: =E20 -> 0.08928135355 | R6: =E42 -> 0.005940992071 | S6: =L32 -> 0.1185000038 | T6: =R6+S6 -> 0.1244409959 | U6: =+Q6-T6 -> -0.03515964234 | V6: =M18 -> 642773.105 | W6: =Q6*V6 -> 57387.65284 | X6: =R6*V6 -> 3818.70992 | Y6: =+V6*S6 -> 76168.6154 | Z6: =W6-X6-Y6 -> -22599.67248
A7: FIT/mFIT | B7: Source | C7: kWh | D7: Total Cost | K7: Class A customer Volumes for GA (TLF included) | M7: =-B64 -> 0 | P7: RPPT2 | Q7: =E21 -> 0.1041877957 | R7: =R6 -> 0.005940992071 | S7: =S6 -> 0.1185000038 | T7: =R7+S7 -> 0.1244409959 | U7: =+Q7-T7 -> -0.02025320021 | V7: =M19 -> 446122.3225 | W7: =Q7*V7 -> 46480.50138 | X7: =R7*V7 -> 2650.409181 | Y7: =+V7*S7 -> 52865.49692 | Z7: =W7-X7-Y7 -> -9035.404717
B8: FIT | C8: 692521.21 | D8: 3221.97 | E8: =D8/C8 -> 0.004652521762 | M8: =+M5+M6+M7 -> 19251407.46 | N8: =+N5+N6+N7 -> 19251407.46 | P8: RPPTOUMID | Q8: =E23 -> 0.1109137283 | R8: =E43 -> 0.006169916402 | S8: =S7 -> 0.1185000038 | T8: 0.1246699202 | U8: -0.01375619196 | V8: 1577646.812 | W8: 174982.6898 | X8: 9733.948943 | Y8: 186951.1533 | Z8: -21702.41239
B9: microFIT | C9: 29196.71 | D9: 136.34 | E9: =D9/C9 -> 0.004669704224 | P9: RPPTOUOFF | Q9: =E24 -> 0.07476431412 | R9: =R8 -> 0.006169916402 | S9: 0.1185000038 | T9: 0.1246699202 | U9: -0.0499056061 | V9: 5258632.07 | W9: 393158.0199 | X9: 32445.32026 | Y9: 623147.9203 | Z9: -262435.2207
B10: WHOLESALE | C10: 18529689.54 | D10: 106302.81 | E10: =D10/C10 -> 0.005736891046 | K10: Estimated Retail Volume Revenue Data (TLF Included) | L10: RPP/non-RPP Ratios | M10: GA Volumes | N10: Energy Volumes | P10: RPPTOUON | Q10: 0.1539665654 | R10: =R9 -> 0.006169916402 | S10: 0.1185000038 | T10: 0.1246699202 | U10: 0.02929664522 | V10: 1625817.344 | W10: 250321.5124 | X10: 10031.15709 | Y10: 192659.3614 | Z10: 47630.9939
A11: Total Wholesale Electricity | B11: Grand Total | C11: 19251407.46 | D11: 109661.12 | K11: Estimated Retail Revenue Data (Net of Retail Billed/Unbilled) | M11: =+M15 -> 19251407.46 | N11: =+N15 -> 19251407.46 | P11: RPPULOMID | Q11: 0 | R11: 0 | S11: 0 | T11: 0 | U11: 0 | V11: 0 | W11: 0 | X11: 0 | Y11: 0 | Z11: 0
P12: RPPULOOFF | Q12: 0 | R12: 0 | S12: 0 | T12: 0 | U12: 0 | V12: 0 | W12: 0 | X12: 0 | Y12: 0 | Z12: 0
K13: Estimated RPP Sales Quantities | L13: =SUM(C20:C25)/(C30-B64) -> 0.4961191369 | M13: =M8*L13 -> 9550991.653 | N13: =M13 -> 9550991.653 | P13: RPPULOON | Q13: 0 | R13: 0 | S13: 0 | T13: 0 | U13: 0 | V13: 0 | W13: 0 | X13: 0 | Y13: 0 | Z13: 0
A14: RPP Revenue Volume and Price Data | K14: Estimated non-RPP Sales Quantities | L14: =1-L13 -> 0.5038808631 | M14: =M8*L14 -> 9700415.807 | N14: =N8-N13 -> 9700415.807 | P14: RPPULOOVN | Q14: 0 | R14: 0 | S14: 0 | T14: 0 | U14: 0 | V14: 0 | W14: 0 | X14: 0 | Y14: 0 | Z14: 0
B15: bill_year | C15: 2017 | K15: Estimated Retail Revenue kWh Volumes | L15: =+L13+L14 -> 1 | M15: =+M13+M14 -> 19251407.46 | N15: =+N13+N14 -> 19251407.46 | V15: =SUM(V6:V14) -> 9550991.653 | W15: =SUM(W6:W14) -> 922330.3763 | X15: =SUM(X6:X14) -> 58679.54539 | Y15: =SUM(Y6:Y14) -> 1131792.547 | Z15: =SUM(Z6:Z14) -> -268141.7164
B16: bill_month | C16: 6 | Z16: =W15-X15-Y15-Z15 -> 0
K17: Estimated RPP Revenue Volume and Price Data | L17: Actual % | M17: kWh Volumes
B18: Row Labels | C18: usagebilled | D18: amountbilled | E18: Rate | K18: RPPT1 | L18: =C20/SUM($C$20:$C$25) -> 0.06729909609 | M18: =$M$13*L18 -> 642773.105
B19: RPPTIER | K19: RPPT2 | L19: =C21/SUM($C$20:$C$25) -> 0.04670952909 | M19: =$M$13*L19 -> 446122.3225
B20: RPPT1 | C20: 550158.2441 | D20: 49118.8727 | E20: =D20/C20 -> 0.08928135355 | K20: RPPTOUMID | L20: =C23/SUM($C$20:$C$25) -> 0.165181467 | M20: 1577646.812
B21: RPPT2 | C21: 381842.1644 | D21: 39783.2934 | E21: =D21/C21 -> 0.1041877957 | K21: RPPTOUOFF | L21: =C24/SUM($C$20:$C$25) -> 0.5505849299 | M21: 5258632.07
B22: RPPTOU | K22: RPPTOUON | L22: 0.170224978 | M22: 1625817.344
B23: RPPTOUMID | C23: 1350329.367 | D23: 149770.0645 | E23: 0.1109137283 | K23: RPPULOMID | L23: 0 | M23: 0
B24: RPPTOUOFF | C24: 4500934.721 | D24: 336509.2973 | E24: 0.07476431412 | K24: RPPULOOFF | L24: 0 | M24: 0
B25: RPPTOUON | C25: 1391559.18 | D25: 214253.5876 | E25: 0.1539665654 | K25: RPPULOON | L25: 0 | M25: 0
B26: RETAIL | K26: RPPULOOVN | L26: 0 | M26: 0
B27: NSLS | C27: 4153891.023 | D27: 23286.78984 | E27: 0.005606018479 | L27: =SUM(L18:L26) -> 1 | M27: =SUM(M18:M26) -> 9550991.653
B28: INTERVAL
B29: HOEP | C29: 4148826.82 | D29: 38023.26116 | E29: 0.009164822445
B30: Grand Total | C30: 16477541.52 | D30: 850745.1664
K31: Global Adjustment | L31: per kWh
C32: =C30/C11-1 -> -0.1440863971 | K32: Class B - GA actual8 | L32: =B69/100 -> 0.1185000038 | N32: GA Posted Price
K33: Class B - GA actual IESO billed | L33: =+M33/M8 -> 0.1141100849 | M33: =B76 -> 2196779.74 | N33: GA Billed by IESO CT 148
A37: RPP COP Volume and Price Data
B38: bill_year | C38: 2017
B39: bill_month | C39: 6
B41: Row Labels | C41: usagebilled | D41: amountbilled | E41: Rate
B42: RPPTIERED | C42: 929252.7565 | D42: 5520.683258 | E42: =D42/C42 -> 0.005940992071
B43: RPPTOU | C43: 7242015.693 | D43: 44682.6314 | E43: 0.006169916402
B44: Grand Total | C44: 8171268.449 | D44: 50203.31466
C46: =SUM(C20:C25)-C44 -> 3555.227415
C47: =C46/C44 -> 0.0004350888037
A60: Year | B60: 2017
A62: Class A | B62: Value
A63: kWh
A64: =A69 -> 201706 | B64: 0
A67: ga_actual | B67: year
A68: month | B68: 2017
A69: 201706 | B69: 11.85000038
A72: chargetype | B72: 148
A74: Sum of chargeamount | B74: year
A75: month | B75: 2017
A76: 201706 | B76: 2196779.74

Sheet I13 Input Rev 06 Init
A1: Reverse IESO Posted
A5: =Admin!B23 -> 201706
A6: RPP Revenue Prices | B6: kWh Volumes | C6: $ RPP Settlement
A7: RPPTiered_1 | B7: 560675.97 | C7: 19279.04
A8: RPPTiered_2 | B8: 388703.95 | C8: 7407.74
A9: RPPTOU_MID | B9: 1310339.77 | C9: 11450.93
A10: RPPTOU_OFF | B10: 4351333.72 | C10: 198779.58
A11: RPPTOU_ON | B11: 1296897.78 | C11: -46612.56
A12: Grand Total | B12: 7907951.19 | C12: 190304.73

Sheet I14 Input 07 Trueup Sett
A1: Date: | B1: =Admin!B8+6 -> 201707 | C1: Trueup | K1: ="Data for 1st True up of RPP Settlement based on Actual IESO Invoice" -> Data for 1st True up of RPP Settlement based on Actual IESO Invoice | P1: For Reconciliation
A3: Wholesale Electricty | B3: Year | C3: 2017 | E3: Rate | P3: Actual RPP Revenue and GA
B4: dateref | C4: 201707 | K4: Wholesale Volume data per IESO Power Bill: | L4: GA RPP/non-RPP Ratios | M4: GA Volumes | N4: Energy Volumes | P4: =B1 -> 201707
K5: AQEW | M5: =C10 -> 19814277.62 | N5: =+M5 -> 19814277.62 | P5: RPP Revenue Prices | Q5: RPP Rate | R5: Estimated RPP Energy Price | S5: GA actual IESO billed | T5: Total Commodity | U5: Difference | V5: kWh Volumes | W5: $ Estimated RPP Revenue | X5: $ Estimated RPP Energy | Y5: $ Estimated GA | Z5: $ Estimated RPP Settlement
B6: Wholesale | K6: Embedded Generation | M6: =SUM(C8:C9) -> 723258.78 | N6: =+M6 -> 723258.78 | P6: RPPT1 | Q6: =E20 -> 0.0789780491 | R6: =E42 -> 0.01407635867 | S6: =L32 -> 0.1127999973 | T6: =R6+S6 -> 0.126876356 | U6: =+Q6-T6 -> -0.0478983069 | V6: =M18 -> 565809.5065 | W6: =Q6*V6 -> 44686.53099 | X6: =R6*V6 -> 7964.537551 | Y6: =+V6*S6 -> 63823.31082 | Z6: =W6-X6-Y6 -> -27101.31739
A7: FIT/mFIT | B7: Source | C7: kWh | D7: Total Cost | K7: Class A customer Volumes for GA (TLF included) | M7: =-B64 -> -5850636.05 | P7: RPPT2 | Q7: =E21 -> 0.09159859524 | R7: =R6 -> 0.01407635867 | S7: =S6 -> 0.1127999973 | T7: =R7+S7 -> 0.126876356 | U7: =+Q7-T7 -> -0.03527776075 | V7: =M19 -> 390848.4995 | W7: =Q7*V7 -> 35801.17351 | X7: =R7*V7 -> 5501.723664 | Y7: =+V7*S7 -> 44087.7097 | Z7: =W7-X7-Y7 -> -13788.25986
B8: FIT | C8: 692639.31 | D8: 11689.6 | E8: =D8/C8 -> 0.01687689369 | M8: =+M5+M6+M7 -> 14686900.35 | N8: =+N5+N6+N7 -> 20537536.4 | P8: RPPTOUMID | Q8: =E23 -> 0.09781657604 | R8: =E43 -> 0.0142188268 | S8: =S7 -> 0.1127999973 | T8: 0.1270188241 | U8: -0.0292022481 | V8: 1547110.605 | W8: 151333.0621 | X8: 21998.09773 | Y8: 174514.0721 | Z8: -45179.10771
B9: microFIT | C9: 30619.47 | D9: 521.22 | E9: =D9/C9 -> 0.01702250235 | P9: RPPTOUOFF | Q9: =E24 -> 0.06638527552 | R9: =R8 -> 0.0142188268 | S9: 0.1127999973 | T9: 0.1270188241 | U9: -0.06063354862 | V9: 5035051.012 | W9: 334253.2487 | X9: 71592.51828 | Y9: 567953.7407 | Z9: -305293.0103
B10: WHOLESALE | C10: 19814277.62 | D10: 271459.38 | E10: =D10/C10 -> 0.0137001906 | K10: Estimated Retail Volume Revenue Data (TLF Included) | L10: RPP/non-RPP Ratios | M10: GA Volumes | N10: Energy Volumes | P10: RPPTOUON | Q10: 0.1356155429 | R10: =R9 -> 0.0142188268 | S10: 0.1127999973 | T10: 0.1270188241 | U10: 0.008596718791 | V10: 1683764.066 | W10: 228344.578 | X10: 23941.14964 | Y10: 189928.5822 | Z10: 14474.84619
A11: Total Wholesale Electricity | B11: Grand Total | C11: 20537536.4 | D11: 283670.2 | K11: Estimated Retail Revenue Data (Net of Retail Billed/Unbilled) | M11: =+M15 -> 14686900.35 | N11: =+N15 -> 20537536.4 | P11: RPPULOMID | Q11: 0 | R11: 0 | S11: 0 | T11: 0 | U11: 0 | V11: 0 | W11: 0 | X11: 0 | Y11: 0 | Z11: 0
P12: RPPULOOFF | Q12: 0 | R12: 0 | S12: 0 | T12: 0 | U12: 0 | V12: 0 | W12: 0 | X12: 0 | Y12: 0 | Z12: 0
K13: Estimated RPP Sales Quantities | L13: =SUM(C20:C25)/(C30-B64) -> 0.6279462289 | M13: =M8*L13 -> 9222583.689 | N13: =M13 -> 9222583.689 | P13: RPPULOON | Q13: 0 | R13: 0 | S13: 0 | T13: 0 | U13: 0 | V13: 0 | W13: 0 | X13: 0 | Y13: 0 | Z13: 0
A14: RPP Revenue Volume and Price Data | K14: Estimated non-RPP Sales Quantities | L14: =1-L13 -> 0.3720537711 | M14: =M8*L14 -> 5464316.661 | N14: =N8-N13 -> 11314952.71 | P14: RPPULOOVN | Q14: 0 | R14: 0 | S14: 0 | T14: 0 | U14: 0 | V14: 0 | W14: 0 | X14: 0 | Y14: 0 | Z14: 0
B15: bill_year | C15: 2017 | K15: Estimated Retail Revenue kWh Volumes | L15: =+L13+L14 -> 1 | M15: =+M13+M14 -> 14686900.35 | N15: =+N13+N14 -> 20537536.4 | V15: =SUM(V6:V14) -> 9222583.689 | W15: =SUM(W6:W14) -> 794418.5933 | X15: =SUM(X6:X14) -> 130998.0269 | Y15: =SUM(Y6:Y14) -> 1040307.415 | Z15: =SUM(Z6:Z14) -> -376886.8491
B16: bill_month | C16: 7 | Z16: =W15-X15-Y15-Z15 -> 0
K17: Estimated RPP Revenue Volume and Price Data | L17: Actual % | M17: kWh Volumes
B18: Row Labels | C18: usagebilled | D18: amountbilled | E18: Rate | K18: RPPT1 | L18: =C20/SUM($C$20:$C$25) -> 0.06135043341 | M18: =$M$13*L18 -> 565809.5065
B19: RPPTIER | K19: RPPT2 | L19: =C21/SUM($C$20:$C$25) -> 0.04237950152 | M19: =$M$13*L19 -> 390848.4995
B20: RPPT1 | C20: 551839.3737 | D20: 43583.19715 | E20: =D20/C20 -> 0.0789780491 | K20: RPPTOUMID | L20: =C23/SUM($C$20:$C$25) -> 0.1677524061 | M20: 1547110.605
B21: RPPT2 | C21: 381198.2455 | D21: 34917.2238 | E21: =D21/C21 -> 0.09159859524 | K21: RPPTOUOFF | L21: =C24/SUM($C$20:$C$25) -> 0.5459479883 | M21: 5035051.012
B22: RPPTOU | K22: RPPTOUON | L22: 0.1825696706 | M22: 1683764.066
B23: RPPTOUMID | C23: 1508911.634 | D23: 147596.5696 | E23: 0.09781657604 | K23: RPPULOMID | L23: 0 | M23: 0
B24: RPPTOUOFF | C24: 4910732.968 | D24: 326000.361 | E24: 0.06638527552 | K24: RPPULOOFF | L24: 0 | M24: 0
B25: RPPTOUON | C25: 1642191.05 | D25: 222706.6309 | E25: 0.1356155429 | K25: RPPULOON | L25: 0 | M25: 0
B26: RETAIL | K26: RPPULOOVN | L26: 0 | M26: 0
B27: NSLS | C27: 3936064.775 | D27: 53305.64696 | E27: 0.01354287848 | L27: =SUM(L18:L26) -> 1 | M27: =SUM(M18:M26) -> 9222583.689
B28: INTERVAL
B29: HOEP | C29: 7243971.098 | D29: 92716.52257 | E29: 0.01279912928
B30: Grand Total | C30: 20174909.15 | D30: 920826.152
K31: Global Adjustment | L31: per kWh
C32: =C30/C11-1 -> -0.017656804 | K32: Class B - GA actual8 | L32: =B69/100 -> 0.1127999973 | N32: GA Posted Price
K33: Class B - GA actual IESO billed | L33: =+M33/M8 -> 0.1122525741 | M33: =B76 -> 1648642.37 | N33: GA Billed by IESO CT 148
A37: RPP COP Volume and Price Data
B38: bill_year | C38: 2017
B39: bill_month | C39: 7
B41: Row Labels | C41: usagebilled | D41: amountbilled | E41: Rate
B42: RPPTIERED | C42: 960254.4036 | D42: 13516.8854 | E42: =D42/C42 -> 0.01407635867
B43: RPPTOU | C43: 8060384.283 | D43: 114609.2081 | E43: 0.0142188268
B44: Grand Total | C44: 9020638.686 | D44: 128126.0935
C46: =SUM(C20:C25)-C44 -> -25765.41483
C47: =C46/C44 -> -0.002856273899
A60: Year | B60: 2017
A62: Class A | B62: Value
A63: kWh
A64: 201707 | B64: 5850636.05
A67: ga_actual | B67: year
A68: month | B68: 2017
A69: 201707 | B69: 11.27999973
A72: chargetype | B72: 148
A74: Sum of chargeamount | B74: year
A75: month | B75: 2017
A76: 201707 | B76: 1648642.37
A80: Posted | B80: 2227010.94

Sheet I15 Input Rev 07 Init
A1: Reverse IESO Posted
A5: =Admin!B26 -> 201707
A6: RPP Revenue Prices | B6: kWh Volumes | C6: $ RPP Settlement
A7: RPPTiered_1 | B7: 625910.37 | C7: 21757.79
A8: RPPTiered_2 | B8: 410137.69 | C8: 7981.03
A9: RPPTOU_MID | B9: 1127895.82 | C9: 12475.99
A10: RPPTOU_OFF | B10: 3814504.1 | C10: 181064.98
A11: RPPTOU_ON | B11: 1163260.89 | C11: -38021.77
A12: Grand Total | B12: 7141708.87 | C12: 185258.02

Sheet I16 Input 08 Trueup Sett
A1: Date: | B1: =Admin!B8+7 -> 201708 | C1: Trueup | K1: ="Data for 1st True up of RPP Settlement based on Actual IESO Invoice" -> Data for 1st True up of RPP Settlement based on Actual IESO Invoice | P1: For Reconciliation
A3: Wholesale Electricty | B3: Year | C3: 2017 | E3: Rate | P3: Actual RPP Revenue and GA
B4: dateref | C4: 201708 | K4: Wholesale Volume data per IESO Power Bill: | L4: GA RPP/non-RPP Ratios | M4: GA Volumes | N4: Energy Volumes | P4: =B1 -> 201708
K5: AQEW | M5: =C10 -> 20365731.67 | N5: =+M5 -> 20365731.67 | P5: RPP Revenue Prices | Q5: RPP Rate | R5: Estimated RPP Energy Price | S5: GA actual IESO billed | T5: Total Commodity | U5: Difference | V5: kWh Volumes | W5: $ Estimated RPP Revenue | X5: $ Estimated RPP Energy | Y5: $ Estimated GA | Z5: $ Estimated RPP Settlement
B6: Wholesale | K6: Embedded Generation | M6: =SUM(C8:C9) -> 764907.61 | N6: =+M6 -> 764907.61 | P6: RPPT1 | Q6: =E20 -> 0.07737046003 | R6: =E42 -> 0.01955067124 | S6: =L32 -> 0.1010999966 | T6: =R6+S6 -> 0.1206506678 | U6: =+Q6-T6 -> -0.04328020778 | V6: =M18 -> 245713.3582 | W6: =Q6*V6 -> 19010.95556 | X6: =R6*V6 -> 4803.861087 | Y6: =+V6*S6 -> 24841.61967 | Z6: =W6-X6-Y6 -> -10634.5252
A7: FIT/mFIT | B7: Source | C7: kWh | D7: Total Cost | K7: Class A customer Volumes for GA (TLF included) | M7: =-B64 -> -6513600.04 | P7: RPPT2 | Q7: =E21 -> 0.0900004057 | R7: =R6 -> 0.01955067124 | S7: =S6 -> 0.1010999966 | T7: =R7+S7 -> 0.1206506678 | U7: =+Q7-T7 -> -0.0306502621 | V7: =M19 -> 126630.5412 | W7: =Q7*V7 -> 11396.80008 | X7: =R7*V7 -> 2475.71208 | Y7: =+V7*S7 -> 12802.34728 | Z7: =W7-X7-Y7 -> -3881.259277
B8: FIT | C8: 733454.41 | D8: 14864.08 | E8: =D8/C8 -> 0.02026585402 | M8: =+M5+M6+M7 -> 14617039.24 | N8: =+N5+N6+N7 -> 21130639.28 | P8: RPPTOUMID | Q8: =E23 -> 0.0950030182 | R8: =E43 -> 0.01687058145 | S8: =S7 -> 0.1010999966 | T8: 0.117970578 | U8: -0.02296755982 | V8: 1920300.546 | W8: 182434.3477 | X8: 32396.58678 | Y8: 194142.3786 | Z8: -44104.61767
B9: microFIT | C9: 31453.2 | D9: 636.31 | E9: =D9/C9 -> 0.02023037402 | P9: RPPTOUOFF | Q9: =E24 -> 0.06500132638 | R9: =R8 -> 0.01687058145 | S9: 0.1010999966 | T9: 0.117970578 | U9: -0.05296925164 | V9: 6732370.349 | W9: 437613.0024 | X9: 113579.0024 | Y9: 680642.6192 | Z9: -356608.6192
B10: WHOLESALE | C10: 20365731.67 | D10: 356010.57 | E10: =D10/C10 -> 0.01748086323 | K10: Estimated Retail Volume Revenue Data (TLF Included) | L10: RPP/non-RPP Ratios | M10: GA Volumes | N10: Energy Volumes | P10: RPPTOUON | Q10: 0.1320031426 | R10: =R9 -> 0.01687058145 | S10: 0.1010999966 | T10: 0.117970578 | U10: 0.01403256455 | V10: 2041877.091 | W10: 269534.1927 | X10: 34447.65378 | Y10: 206433.7669 | Z10: 28652.77208
A11: Total Wholesale Electricity | B11: Grand Total | C11: 21130639.28 | D11: 371510.96 | K11: Estimated Retail Revenue Data (Net of Retail Billed/Unbilled) | M11: =+M15 -> 14617039.24 | N11: =+N15 -> 21130639.28 | P11: RPPULOMID | Q11: 0 | R11: 0 | S11: 0 | T11: 0 | U11: 0 | V11: 0 | W11: 0 | X11: 0 | Y11: 0 | Z11: 0
P12: RPPULOOFF | Q12: 0 | R12: 0 | S12: 0 | T12: 0 | U12: 0 | V12: 0 | W12: 0 | X12: 0 | Y12: 0 | Z12: 0
K13: Estimated RPP Sales Quantities | L13: =SUM(C20:C25)/(C30-B64) -> 0.7571226774 | M13: =M8*L13 -> 11066891.89 | N13: =M13 -> 11066891.89 | P13: RPPULOON | Q13: 0 | R13: 0 | S13: 0 | T13: 0 | U13: 0 | V13: 0 | W13: 0 | X13: 0 | Y13: 0 | Z13: 0
A14: RPP Revenue Volume and Price Data | K14: Estimated non-RPP Sales Quantities | L14: =1-L13 -> 0.2428773226 | M14: =M8*L14 -> 3550147.354 | N14: =N8-N13 -> 10063747.39 | P14: RPPULOOVN | Q14: 0 | R14: 0 | S14: 0 | T14: 0 | U14: 0 | V14: 0 | W14: 0 | X14: 0 | Y14: 0 | Z14: 0
B15: bill_year | C15: 2017 | K15: Estimated Retail Revenue kWh Volumes | L15: =+L13+L14 -> 1 | M15: =+M13+M14 -> 14617039.24 | N15: =+N13+N14 -> 21130639.28 | V15: =SUM(V6:V14) -> 11066891.89 | W15: =SUM(W6:W14) -> 919989.2985 | X15: =SUM(X6:X14) -> 187702.8161 | Y15: =SUM(Y6:Y14) -> 1118862.732 | Z15: =SUM(Z6:Z14) -> -386576.2492
B16: bill_month | C16: 8 | Z16: =W15-X15-Y15-Z15 -> 0
K17: Estimated RPP Revenue Volume and Price Data | L17: Actual % | M17: kWh Volumes
B18: Row Labels | C18: usagebilled | D18: amountbilled | E18: Rate | K18: RPPT1 | L18: =C20/SUM($C$20:$C$25) -> 0.02220256245 | M18: =$M$13*L18 -> 245713.3582
B19: RPPTIER | K19: RPPT2 | L19: =C21/SUM($C$20:$C$25) -> 0.01144228592 | M19: =$M$13*L19 -> 126630.5412
B20: RPPT1 | C20: 150707.1968 | D20: 11660.28515 | E20: =D20/C20 -> 0.07737046003 | K20: RPPTOUMID | L20: =C23/SUM($C$20:$C$25) -> 0.1735176024 | M20: 1920300.546
B21: RPPT2 | C21: 77668.27993 | D21: 6990.176704 | E21: =D21/C21 -> 0.0900004057 | K21: RPPTOUOFF | L21: =C24/SUM($C$20:$C$25) -> 0.608334338 | M21: 6732370.349
B22: RPPTOU | K22: RPPTOUON | L22: 0.1845032112 | M22: 2041877.091
B23: RPPTOUMID | C23: 1177807.81 | D23: 111895.2968 | E23: 0.0950030182 | K23: RPPULOMID | L23: 0 | M23: 0
B24: RPPTOUOFF | C24: 4129269.448 | D24: 268407.9911 | E24: 0.06500132638 | K24: RPPULOOFF | L24: 0 | M24: 0
B25: RPPTOUON | C25: 1252376.243 | D25: 165317.5998 | E25: 0.1320031426 | K25: RPPULOON | L25: 0 | M25: 0
B26: RETAIL | K26: RPPULOOVN | L26: 0 | M26: 0
B27: NSLS | C27: 3373368.168 | D27: 59321.24122 | E27: 0.01758516659 | L27: =SUM(L18:L26) -> 1 | M27: =SUM(M18:M26) -> 11066891.89
B28: INTERVAL
B29: HOEP | C29: 5317698.981 | D29: 88591.67227 | E29: 0.0166597757
B30: Grand Total | C30: 15478896.13 | D30: 712184.2631
K31: Global Adjustment | L31: per kWh
C32: =C30/C11-1 -> -0.2674667376 | K32: Class B - GA actual8 | L32: =B69/100 -> 0.1010999966 | N32: GA Posted Price
K33: Class B - GA actual IESO billed | L33: =+M33/M8 -> 0.101095398 | M33: =B76 -> 1477715.4 | N33: GA Billed by IESO CT 148
A37: RPP COP Volume and Price Data
B38: bill_year | C38: 2017
B39: bill_month | C39: 8
B41: Row Labels | C41: usagebilled | D41: amountbilled | E41: Rate
B42: RPPTIERED | C42: 225638.6265 | D42: 4411.386606 | E42: =D42/C42 -> 0.01955067124
B43: RPPTOU | C43: 6555953.716 | D43: 110602.7512 | E43: 0.01687058145
B44: Grand Total | C44: 6781592.343 | D44: 115014.1378
C46: =SUM(C20:C25)-C44 -> 6236.635396
C47: =C46/C44 -> 0.0009196417421
A60: Year | B60: 2017
A62: Class A | B62: Value
A63: kWh
A64: 201708 | B64: 6513600.04
A67: ga_actual | B67: year
A68: month | B68: 2017
A69: 201708 | B69: 10.10999966
A72: chargetype | B72: 148
A74: Sum of chargeamount | B74: year
A75: month | B75: 2017
A76: 201708 | B76: 1477715.4
A79: Posted | B79: 2058850.98

Sheet I17 Input Rev 08 Init
A1: Reverse IESO Posted
A5: =Admin!B29 -> 201708
A6: RPP Revenue Prices | B6: kWh Volumes | C6: $ RPP Settlement
A7: RPPTiered_1 | B7: 451477.45 | C7: 23329.73
A8: RPPTiered_2 | B8: 379900.41 | C8: 14530.73
A9: RPPTOU_MID | B9: 1711299.65 | C9: 46186.5
A10: RPPTOU_OFF | B10: 5464580.84 | C10: 323761.96
A11: RPPTOU_ON | B11: 1835832.94 | C11: -20874.47
A12: Grand Total | B12: 9843091.29 | C12: 386934.45

Sheet I18 Input 09 Trueup Sett
A1: Date: | B1: =Admin!B8+8 -> 201709 | C1: Trueup | K1: ="Data for 1st True up of RPP Settlement based on Actual IESO Invoice" -> Data for 1st True up of RPP Settlement based on Actual IESO Invoice | P1: For Reconciliation
A3: Wholesale Electricty | B3: Year | C3: 2017 | E3: Rate | P3: Actual RPP Revenue and GA
B4: dateref | C4: 201709 | K4: Wholesale Volume data per IESO Power Bill: | L4: GA RPP/non-RPP Ratios | M4: GA Volumes | N4: Energy Volumes | P4: =B1 -> 201709
K5: AQEW | M5: =C10 -> 18873800.57 | N5: =+M5 -> 18873800.57 | P5: RPP Revenue Prices | Q5: RPP Rate | R5: Estimated RPP Energy Price | S5: GA actual IESO billed | T5: Total Commodity | U5: Difference | V5: kWh Volumes | W5: $ Estimated RPP Revenue | X5: $ Estimated RPP Energy | Y5: $ Estimated GA | Z5: $ Estimated RPP Settlement
B6: Wholesale | K6: Embedded Generation | M6: =SUM(C8:C9) -> 663227.87 | N6: =+M6 -> 663227.87 | P6: RPPT1 | Q6: =E20 -> 0.07709712463 | R6: =E42 -> 0.02246299457 | S6: =L32 -> 0.08859999657 | T6: =R6+S6 -> 0.1110629911 | U6: =+Q6-T6 -> -0.0339658665 | V6: =M18 -> 396639.0252 | W6: =Q6*V6 -> 30579.72836 | X6: =R6*V6 -> 8909.70027 | Y6: =+V6*S6 -> 35142.21627 | Z6: =W6-X6-Y6 -> -13472.18818
A7: FIT/mFIT | B7: Source | C7: kWh | D7: Total Cost | K7: Class A customer Volumes for GA (TLF included) | M7: =-B64 -> -5983923.4 | P7: RPPT2 | Q7: =E21 -> 0.09000012432 | R7: =R6 -> 0.02246299457 | S7: =S6 -> 0.08859999657 | T7: =R7+S7 -> 0.1110629911 | U7: =+Q7-T7 -> -0.02106286681 | V7: =M19 -> 251351.1767 | W7: =Q7*V7 -> 22621.63715 | X7: =R7*V7 -> 5646.100117 | Y7: =+V7*S7 -> 22269.71339 | Z7: =W7-X7-Y7 -> -5294.176358
B8: FIT | C8: 633596.48 | D8: 15588.57 | E8: =D8/C8 -> 0.02460330903 | M8: =+M5+M6+M7 -> 13553105.04 | N8: =+N5+N6+N7 -> 19537028.44 | P8: RPPTOUMID | Q8: =E23 -> 0.09500050609 | R8: =E43 -> 0.01969825615 | S8: =S7 -> 0.08859999657 | T8: 0.1082982527 | U8: -0.01329774663 | V8: 1099694.54 | W8: 104471.5379 | X8: 21662.06474 | Y8: 97432.93248 | Z8: -14623.45937
B9: microFIT | C9: 29631.39 | D9: 736.51 | E9: =D9/C9 -> 0.02485573576 | P9: RPPTOUOFF | Q9: =E24 -> 0.06500036726 | R9: =R8 -> 0.01969825615 | S9: 0.08859999657 | T9: 0.1082982527 | U9: -0.04329788546 | V9: 3463305.925 | W9: 225116.1571 | X9: 68221.08725 | Y9: 306848.8931 | Z9: -149953.8233
B10: WHOLESALE | C10: 18873800.57 | D10: 440483.34 | E10: =D10/C10 -> 0.02333834875 | K10: Estimated Retail Volume Revenue Data (TLF Included) | L10: RPP/non-RPP Ratios | M10: GA Volumes | N10: Energy Volumes | P10: RPPTOUON | Q10: 0.132000559 | R10: =R9 -> 0.01969825615 | S10: 0.08859999657 | T10: 0.1082982527 | U10: 0.0237023063 | V10: 1217901.756 | W10: 160763.7126 | X10: 23990.54076 | Y10: 107906.0914 | Z10: 28867.08046
A11: Total Wholesale Electricity | B11: Grand Total | C11: 19537028.44 | D11: 456808.42 | K11: Estimated Retail Revenue Data (Net of Retail Billed/Unbilled) | M11: =+M15 -> 13553105.04 | N11: =+N15 -> 19537028.44 | P11: RPPULOMID | Q11: 0 | R11: 0 | S11: 0 | T11: 0 | U11: 0 | V11: 0 | W11: 0 | X11: 0 | Y11: 0 | Z11: 0
P12: RPPULOOFF | Q12: 0 | R12: 0 | S12: 0 | T12: 0 | U12: 0 | V12: 0 | W12: 0 | X12: 0 | Y12: 0 | Z12: 0
K13: Estimated RPP Sales Quantities | L13: =SUM(C20:C25)/(C30-B64) -> 0.4743483065 | M13: =M8*L13 -> 6428892.423 | N13: =M13 -> 6428892.423 | P13: RPPULOON | Q13: 0 | R13: 0 | S13: 0 | T13: 0 | U13: 0 | V13: 0 | W13: 0 | X13: 0 | Y13: 0 | Z13: 0
A14: RPP Revenue Volume and Price Data | K14: Estimated non-RPP Sales Quantities | L14: =1-L13 -> 0.5256516935 | M14: =M8*L14 -> 7124212.617 | N14: =N8-N13 -> 13108136.02 | P14: RPPULOOVN | Q14: 0 | R14: 0 | S14: 0 | T14: 0 | U14: 0 | V14: 0 | W14: 0 | X14: 0 | Y14: 0 | Z14: 0
B15: bill_year | C15: 2017 | K15: Estimated Retail Revenue kWh Volumes | L15: =+L13+L14 -> 1 | M15: =+M13+M14 -> 13553105.04 | N15: =+N13+N14 -> 19537028.44 | V15: =SUM(V6:V14) -> 6428892.423 | W15: =SUM(W6:W14) -> 543552.7731 | X15: =SUM(X6:X14) -> 128429.4931 | Y15: =SUM(Y6:Y14) -> 569599.8466 | Z15: =SUM(Z6:Z14) -> -154476.5667
B16: bill_month | C16: 9 | Z16: =W15-X15-Y15-Z15 -> 0
K17: Estimated RPP Revenue Volume and Price Data | L17: Actual % | M17: kWh Volumes
B18: Row Labels | C18: usagebilled | D18: amountbilled | E18: Rate | K18: RPPT1 | L18: =C20/SUM($C$20:$C$25) -> 0.06169632327 | M18: =$M$13*L18 -> 396639.0252
B19: RPPTIER | K19: RPPT2 | L19: =C21/SUM($C$20:$C$25) -> 0.03909711971 | M19: =$M$13*L19 -> 251351.1767
B20: RPPT1 | C20: 617278.6021 | D20: 47590.40532 | E20: =D20/C20 -> 0.07709712463 | K20: RPPTOUMID | L20: =C23/SUM($C$20:$C$25) -> 0.1710550539 | M20: 1099694.54
B21: RPPT2 | C21: 391171.0475 | D21: 35205.44291 | E21: =D21/C21 -> 0.09000012432 | K21: RPPTOUOFF | L21: =C24/SUM($C$20:$C$25) -> 0.5387095781 | M21: 3463305.925
B22: RPPTOU | K22: RPPTOUON | L22: 0.189441925 | M22: 1217901.756
B23: RPPTOUMID | C23: 1711424.911 | D23: 162586.2327 | E23: 0.09500050609 | K23: RPPULOMID | L23: 0 | M23: 0
B24: RPPTOUOFF | C24: 5389849.47 | D24: 350342.1951 | E24: 0.06500036726 | K24: RPPULOOFF | L24: 0 | M24: 0
B25: RPPTOUON | C25: 1895387.609 | D25: 250192.2239 | E25: 0.132000559 | K25: RPPULOON | L25: 0 | M25: 0
B26: RETAIL | K26: RPPULOOVN | L26: 0 | M26: 0
B27: NSLS | C27: 5268001.11 | D27: 117631.7772 | E27: 0.02232948983 | L27: =SUM(L18:L26) -> 1 | M27: =SUM(M18:M26) -> 6428892.423
B28: INTERVAL
B29: HOEP | C29: 11803141.97 | D29: 264394.9233 | E29: 0.02240038491
B30: Grand Total | C30: 27076254.72 | D30: 1227943.2
K31: Global Adjustment | L31: per kWh
C32: =C30/C11-1 -> 0.3858942162 | K32: Class B - GA actual8 | L32: =B69/100 -> 0.08859999657 | N32: GA Posted Price
K33: Class B - GA actual IESO billed | L33: =+M33/M8 -> 0.08847389484 | M33: =B76 -> 1199095.99 | N33: GA Billed by IESO CT 148
A37: RPP COP Volume and Price Data
B38: bill_year | C38: 2017
B39: bill_month | C39: 9
B41: Row Labels | C41: usagebilled | D41: amountbilled | E41: Rate
B42: RPPTIERED | C42: 900009.1006 | D42: 20216.89954 | E42: =D42/C42 -> 0.02246299457
B43: RPPTOU | C43: 7318358.824 | D43: 144158.9067 | E43: 0.01969825615
B44: Grand Total | C44: 8218367.925 | D44: 164375.8063
C46: =SUM(C20:C25)-C44 -> 1786743.715
C47: =C46/C44 -> 0.2174085818
A60: Year | B60: 2017
A62: Class A | B62: Value
A63: kWh
A64: 201709 | B64: 5983923.4
A67: ga_actual | B67: year
A68: month | B68: 2017
A69: 201709 | B69: 8.859999657
A72: chargetype | B72: 148
A74: Sum of chargeamount | B74: year
A75: month | B75: 2017
A76: 201709 | B76: 1199095.99
A79: Posted | B79: 1670722.75

Sheet I19 Input Rev 09 Init
A1: Reverse IESO Posted
A5: =Admin!B32 -> 201709
A6: RPP Revenue Prices | B6: kWh Volumes | C6: $ RPP Settlement
A7: RPPTiered_1 | B7: 583923.19 | C7: 24922.62
A8: RPPTiered_2 | B8: 498881.79 | C8: 14808.23
A9: RPPTOU_MID | B9: 1200648.1 | C9: 31155.94
A10: RPPTOU_OFF | B10: 4049462.11 | C10: 226657.25
A11: RPPTOU_ON | B11: 1357817.19 | C11: -14996.39
A12: Grand Total | B12: 7690732.38 | C12: 282547.65

Sheet I20 Input 10 Trueup Sett
A1: Date: | B1: =Admin!B8+9 -> 201710 | C1: Trueup | K1: ="Data for 1st True up of RPP Settlement based on Actual IESO Invoice" -> Data for 1st True up of RPP Settlement based on Actual IESO Invoice | P1: For Reconciliation
A3: Wholesale Electricty | B3: Year | C3: 2017 | E3: Rate | P3: Actual RPP Revenue and GA
B4: dateref | C4: 201710 | K4: Wholesale Volume data per IESO Power Bill: | L4: GA RPP/non-RPP Ratios | M4: GA Volumes | N4: Energy Volumes | P4: =B1 -> 201710
K5: AQEW | M5: =C10 -> 19169810.36 | N5: =+M5 -> 19169810.36 | P5: RPP Revenue Prices | Q5: RPP Rate | R5: Estimated RPP Energy Price | S5: GA actual IESO billed | T5: Total Commodity | U5: Difference | V5: kWh Volumes | W5: $ Estimated RPP Revenue | X5: $ Estimated RPP Energy | Y5: $ Estimated GA | Z5: $ Estimated RPP Settlement
B6: Wholesale | K6: Embedded Generation | M6: =SUM(C8:C9) -> 396122.71 | N6: =+M6 -> 396122.71 | P6: RPPT1 | Q6: =E20 -> 0.07706794427 | R6: =E42 -> 0.00967740243 | S6: =L32 -> 0.1256000042 | T6: =R6+S6 -> 0.1352774066 | U6: =+Q6-T6 -> -0.05820946236 | V6: =M18 -> 563854.214 | W6: =Q6*V6 -> 43455.08514 | X6: =R6*V6 -> 5456.644141 | Y6: =+V6*S6 -> 70820.09164 | Z6: =W6-X6-Y6 -> -32821.65064
A7: FIT/mFIT | B7: Source | C7: kWh | D7: Total Cost | K7: Class A customer Volumes for GA (TLF included) | M7: =-B64 -> -6367321.45 | P7: RPPT2 | Q7: =E21 -> 0.0900002487 | R7: =R6 -> 0.00967740243 | S7: =S6 -> 0.1256000042 | T7: =R7+S7 -> 0.1352774066 | U7: =+Q7-T7 -> -0.04527715792 | V7: =M19 -> 426649.7907 | W7: =Q7*V7 -> 38398.58727 | X7: =R7*V7 -> 4128.861721 | Y7: =+V7*S7 -> 53587.2155 | Z7: =W7-X7-Y7 -> -19317.48995
B8: FIT | C8: 378154.84 | D8: 2611.94 | E8: =D8/C8 -> 0.006907064841 | M8: =+M5+M6+M7 -> 13198611.62 | N8: =+N5+N6+N7 -> 19565933.07 | P8: RPPTOUMID | Q8: =E23 -> 0.09500129098 | R8: =E43 -> 0.01352728517 | S8: =S7 -> 0.1256000042 | T8: 0.1391272894 | U8: -0.04412599839 | V8: 1392843.49 | W8: 132321.9297 | X8: 18841.39109 | Y8: 174941.1482 | Z8: -61460.60959
B9: microFIT | C9: 17967.87 | D9: 123.68 | E9: =D9/C9 -> 0.006883397976 | P9: RPPTOUOFF | Q9: =E24 -> 0.06500032334 | R9: =R8 -> 0.01352728517 | S9: 0.1256000042 | T9: 0.1391272894 | U9: -0.07412696603 | V9: 4524761.482 | W9: 294110.9593 | X9: 61207.73889 | Y9: 568310.0611 | Z9: -335406.8406
B10: WHOLESALE | C10: 19169810.36 | D10: 166786.91 | E10: =D10/C10 -> 0.008700498694 | K10: Estimated Retail Volume Revenue Data (TLF Included) | L10: RPP/non-RPP Ratios | M10: GA Volumes | N10: Energy Volumes | P10: RPPTOUON | Q10: 0.1320007349 | R10: =R9 -> 0.01352728517 | S10: 0.1256000042 | T10: 0.1391272894 | U10: -0.007126554447 | V10: 1412028.217 | W10: 186388.7624 | X10: 19100.90836 | Y10: 177350.75 | Z10: -10062.89597
A11: Total Wholesale Electricity | B11: Grand Total | C11: 19565933.07 | D11: 169522.53 | K11: Estimated Retail Revenue Data (Net of Retail Billed/Unbilled) | M11: =+M15 -> 13198611.62 | N11: =+N15 -> 19565933.07 | P11: RPPULOMID | Q11: 0 | R11: 0 | S11: 0 | T11: 0 | U11: 0 | V11: 0 | W11: 0 | X11: 0 | Y11: 0 | Z11: 0
P12: RPPULOOFF | Q12: 0 | R12: 0 | S12: 0 | T12: 0 | U12: 0 | V12: 0 | W12: 0 | X12: 0 | Y12: 0 | Z12: 0
K13: Estimated RPP Sales Quantities | L13: =SUM(C20:C25)/(C30-B64) -> 0.6303797272 | M13: =M8*L13 -> 8320137.193 | N13: =M13 -> 8320137.193 | P13: RPPULOON | Q13: 0 | R13: 0 | S13: 0 | T13: 0 | U13: 0 | V13: 0 | W13: 0 | X13: 0 | Y13: 0 | Z13: 0
A14: RPP Revenue Volume and Price Data | K14: Estimated non-RPP Sales Quantities | L14: =1-L13 -> 0.3696202728 | M14: =M8*L14 -> 4878474.427 | N14: =N8-N13 -> 11245795.88 | P14: RPPULOOVN | Q14: 0 | R14: 0 | S14: 0 | T14: 0 | U14: 0 | V14: 0 | W14: 0 | X14: 0 | Y14: 0 | Z14: 0
B15: bill_year | C15: 2017 | K15: Estimated Retail Revenue kWh Volumes | L15: =+L13+L14 -> 1 | M15: =+M13+M14 -> 13198611.62 | N15: =+N13+N14 -> 19565933.07 | V15: =SUM(V6:V14) -> 8320137.193 | W15: =SUM(W6:W14) -> 694675.3238 | X15: =SUM(X6:X14) -> 108735.5442 | Y15: =SUM(Y6:Y14) -> 1045009.266 | Z15: =SUM(Z6:Z14) -> -459069.4868
B16: bill_month | C16: 10 | Z16: =W15-X15-Y15-Z15 -> 0
K17: Estimated RPP Revenue Volume and Price Data | L17: Actual % | M17: kWh Volumes
B18: Row Labels | C18: usagebilled | D18: amountbilled | E18: Rate | K18: RPPT1 | L18: =C20/SUM($C$20:$C$25) -> 0.06776982169 | M18: =$M$13*L18 -> 563854.214
B19: RPPTIER | K19: RPPT2 | L19: =C21/SUM($C$20:$C$25) -> 0.05127917734 | M19: =$M$13*L19 -> 426649.7907
B20: RPPT1 | C20: 595368.7084 | D20: 45883.84244 | E20: =D20/C20 -> 0.07706794427 | K20: RPPTOUMID | L20: =C23/SUM($C$20:$C$25) -> 0.1674063128 | M20: 1392843.49
B21: RPPT2 | C21: 450495.7638 | D21: 40544.73078 | E21: =D21/C21 -> 0.0900002487 | K21: RPPTOUOFF | L21: =C24/SUM($C$20:$C$25) -> 0.5438325567 | M21: 4524761.482
B22: RPPTOU | K22: RPPTOUON | L22: 0.1697121314 | M22: 1412028.217
B23: RPPTOUMID | C23: 1470691.198 | D23: 139717.5625 | E23: 0.09500129098 | K23: RPPULOMID | L23: 0 | M23: 0
B24: RPPTOUOFF | C24: 4777655.877 | D24: 310549.1768 | E24: 0.06500032334 | K24: RPPULOOFF | L24: 0 | M24: 0
B25: RPPTOUON | C25: 1490948.183 | D25: 196806.2559 | E25: 0.1320007349 | K25: RPPULOON | L25: 0 | M25: 0
B26: RETAIL | K26: RPPULOOVN | L26: 0 | M26: 0
B27: NSLS | C27: 4320980.639 | D27: 40247.80789 | E27: 0.009314507805 | L27: =SUM(L18:L26) -> 1 | M27: =SUM(M18:M26) -> 8320137.193
B28: INTERVAL
B29: HOEP | C29: 7197479.078 | D29: 62871.71941 | E29: 0.008735241705
B30: Grand Total | C30: 20303619.45 | D30: 836621.0956
K31: Global Adjustment | L31: per kWh
C32: =C30/C11-1 -> 0.03770259125 | K32: Class B - GA actual8 | L32: =B69/100 -> 0.1256000042 | N32: GA Posted Price
K33: Class B - GA actual IESO billed | L33: =+M33/M8 -> 0.1262424896 | M33: =B76 -> 1666225.59 | N33: GA Billed by IESO CT 148
A37: RPP COP Volume and Price Data
B38: bill_year | C38: 2017
B39: bill_month | C39: 10
B41: Row Labels | C41: usagebilled | D41: amountbilled | E41: Rate
B42: RPPTIERED | C42: 1040962.003 | D42: 10073.80822 | E42: =D42/C42 -> 0.00967740243
B43: RPPTOU | C43: 6690926.441 | D43: 90510.07002 | E43: 0.01352728517
B44: Grand Total | C44: 7731888.444 | D44: 100583.8782
C46: =SUM(C20:C25)-C44 -> 1053271.286
C47: =C46/C44 -> 0.1362243253
A60: Year | B60: 2017
A62: Class A | B62: Value
A63: kWh
A64: 201710 | B64: 6367321.45
A67: ga_actual | B67: year
A68: month | B68: 2017
A69: 201710 | B69: 12.56000042
A72: chargetype | B72: 148
A74: Sum of chargeamount | B74: year
A75: month | B75: 2017
A76: 201710 | B76: 1666225.59

Sheet I21 Input Rev 10 Init
A1: Reverse IESO Posted
A5: =Admin!B35 -> 201710
A6: RPP Revenue Prices | B6: kWh Volumes | C6: $ RPP Settlement
A7: RPPTiered_1 | B7: 496760.62 | C7: 18115.21
A8: RPPTiered_2 | B8: 385600.12 | C8: 9045.91
A9: RPPTOU_MID | B9: 1637740.7 | C9: 30123.66
A10: RPPTOU_OFF | B10: 5406671.21 | C10: 261613.3
A11: RPPTOU_ON | B11: 1744816.76 | C11: -32498.81
A12: Grand Total | B12: 9671589.41 | C12: 286399.27

Sheet I22 Input 11 Trueup Sett
A1: Date: | B1: =Admin!B8+10 -> 201711 | C1: Trueup | K1: ="Data for 1st True up of RPP Settlement based on Actual IESO Invoice" -> Data for 1st True up of RPP Settlement based on Actual IESO Invoice | P1: For Reconciliation
A3: Wholesale Electricty | B3: Year | C3: 2017 | E3: Rate | P3: Actual RPP Revenue and GA
B4: dateref | C4: 201711 | K4: Wholesale Volume data per IESO Power Bill: | L4: GA RPP/non-RPP Ratios | M4: GA Volumes | N4: Energy Volumes | P4: =B1 -> 201711
K5: AQEW | M5: =C10 -> 20523019.26 | N5: =+M5 -> 20523019.26 | P5: RPP Revenue Prices | Q5: RPP Rate | R5: Estimated RPP Energy Price | S5: GA actual IESO billed | T5: Total Commodity | U5: Difference | V5: kWh Volumes | W5: $ Estimated RPP Revenue | X5: $ Estimated RPP Energy | Y5: $ Estimated GA | Z5: $ Estimated RPP Settlement
B6: Wholesale | K6: Embedded Generation | M6: =SUM(C8:C9) -> 229013.3 | N6: =+M6 -> 229013.3 | P6: RPPT1 | Q6: =E21 -> 0.07703264878 | R6: =E43 -> 0.01472733015 | S6: =L32 -> 0.09699999809 | T6: =R6+S6 -> 0.1117273282 | U6: =+Q6-T6 -> -0.03469467946 | V6: =M18 -> 761241.5492 | W6: =Q6*V6 -> 58640.4529 | X6: =R6*V6 -> 11211.05562 | Y6: =+V6*S6 -> 73840.42882 | Z6: =W6-X6-Y6 -> -26411.03154
A7: FIT/mFIT | B7: Source | C7: kWh | D7: Total Cost | K7: Class A customer Volumes for GA (TLF included) | M7: =-B64 -> -5962889.24 | P7: RPPT2 | Q7: =E22 -> 0.09000018535 | R7: =R6 -> 0.01472733015 | S7: =S6 -> 0.09699999809 | T7: =R7+S7 -> 0.1117273282 | U7: =+Q7-T7 -> -0.0217271429 | V7: =M19 -> 491734.5808 | W7: =Q7*V7 -> 44256.20342 | X7: =R7*V7 -> 7241.937519 | Y7: =+V7*S7 -> 47698.2534 | Z7: =W7-X7-Y7 -> -10683.98751
B8: FIT | C8: 217919.96 | D8: 2554.05 | E8: =D8/C8 -> 0.0117201288 | M8: =+M5+M6+M7 -> 14789143.32 | N8: =+N5+N6+N7 -> 20752032.56 | P8: RPPTOUMID | Q8: =E24 -> 0.09499999889 | R8: =E44 -> 0.01405646697 | S8: =S7 -> 0.09699999809 | T8: 0.1110564651 | U8: -0.01605646617 | V8: 1479210.264 | W8: 140524.9734 | X8: 20792.47021 | Y8: 143483.3927 | Z8: -23750.88956
B9: microFIT | C9: 11093.34 | D9: 124.71 | E9: =D9/C9 -> 0.01124188026 | P9: RPPTOUOFF | Q9: =E25 -> 0.06500014817 | R9: =R8 -> 0.01405646697 | S9: 0.09699999809 | T9: 0.1110564651 | U9: -0.04605631689 | V9: 4908495.144 | W9: 319052.9116 | X9: 68996.09984 | Y9: 476124.0196 | Z9: -226067.2078
B10: WHOLESALE | C10: 20523019.26 | D10: 290916.23 | E10: =D10/C10 -> 0.0141751185 | K10: Estimated Retail Volume Revenue Data (TLF Included) | L10: RPP/non-RPP Ratios | M10: GA Volumes | N10: Energy Volumes | P10: RPPTOUON | Q10: 0.1320002636 | R10: =R9 -> 0.01405646697 | S10: 0.09699999809 | T10: 0.1110564651 | U10: 0.02094379858 | V10: 1557392.094 | W10: 205576.167 | X10: 21891.43052 | Y10: 151067.0302 | Z10: 32617.70633
A11: Total Wholesale Electricity | B11: Grand Total | C11: 20752032.56 | D11: 293594.99 | K11: Estimated Retail Revenue Data (Net of Retail Billed/Unbilled) | M11: =+M15 -> 14789143.32 | N11: =+N15 -> 20752032.56 | P11: RPPULOMID | Q11: 0 | R11: 0 | S11: 0 | T11: 0 | U11: 0 | V11: 0 | W11: 0 | X11: 0 | Y11: 0 | Z11: 0
P12: RPPULOOFF | Q12: 0 | R12: 0 | S12: 0 | T12: 0 | U12: 0 | V12: 0 | W12: 0 | X12: 0 | Y12: 0 | Z12: 0
K13: Estimated RPP Sales Quantities | L13: =SUM(C21:C26)/(C31-B64) -> 0.6219476972 | M13: =M8*L13 -> 9198073.631 | N13: =M13 -> 9198073.631 | P13: RPPULOON | Q13: 0 | R13: 0 | S13: 0 | T13: 0 | U13: 0 | V13: 0 | W13: 0 | X13: 0 | Y13: 0 | Z13: 0
A14: RPP Revenue Volume and Price Data | K14: Estimated non-RPP Sales Quantities | L14: =1-L13 -> 0.3780523028 | M14: =M8*L14 -> 5591069.689 | N14: =N8-N13 -> 11553958.93 | P14: RPPULOOVN | Q14: 0 | R14: 0 | S14: 0 | T14: 0 | U14: 0 | V14: 0 | W14: 0 | X14: 0 | Y14: 0 | Z14: 0
K15: Estimated Retail Revenue kWh Volumes | L15: =+L13+L14 -> 1 | M15: =+M13+M14 -> 14789143.32 | N15: =+N13+N14 -> 20752032.56 | V15: =SUM(V6:V14) -> 9198073.631 | W15: =SUM(W6:W14) -> 768050.7084 | X15: =SUM(X6:X14) -> 130132.9937 | Y15: =SUM(Y6:Y14) -> 892213.1247 | Z15: =SUM(Z6:Z14) -> -254295.4101
B16: bill_year | C16: 2017
B17: bill_month | C17: 11 | K17: Estimated RPP Revenue Volume and Price Data | L17: Actual % | M17: kWh Volumes
K18: RPPT1 | L18: =C21/SUM($C$21:$C$26) -> 0.0827609758 | M18: =$M$13*L18 -> 761241.5492
B19: Row Labels | C19: usagebilled | D19: amountbilled | E19: Rate | K19: RPPT2 | L19: =C22/SUM($C$21:$C$26) -> 0.05346060496 | M19: =$M$13*L19 -> 491734.5808
B20: RPPTIER | K20: RPPTOUMID | L20: =C24/SUM($C$21:$C$26) -> 0.1608173975 | M20: 1479210.264
B21: RPPT1 | C21: 749661.4253 | D21: 57748.40528 | E21: =D21/C21 -> 0.07703264878 | K21: RPPTOUOFF | L21: =C25/SUM($C$21:$C$26) -> 0.5336438194 | M21: 4908495.144
B22: RPPT2 | C22: 484254.2385 | D22: 43582.97122 | E22: =D22/C22 -> 0.09000018535 | K22: RPPTOUON | L22: 0.1693172023 | M22: 1557392.094
B23: RPPTOU | K23: RPPULOMID | L23: 0 | M23: 0
B24: RPPTOUMID | C24: 1456708.289 | D24: 138387.2858 | E24: =D24/C24 -> 0.09499999889 | K24: RPPULOOFF | L24: 0 | M24: 0
B25: RPPTOUOFF | C25: 4833826.358 | D25: 314199.4295 | E25: 0.06500014817 | K25: RPPULOON | L25: 0 | M25: 0
B26: RPPTOUON | C26: 1533700.805 | D26: 202448.9106 | E26: 0.1320002636 | K26: RPPULOOVN | L26: 0 | M26: 0
B27: RETAIL | L27: =SUM(L18:L26) -> 1 | M27: =SUM(M18:M26) -> 9198073.631
B28: NSLS | C28: 4218442.986 | D28: 60513.17479 | E28: =D28/C28 -> 0.01434490759
B29: INTERVAL
B30: HOEP | C30: 7250463.727 | D30: 100141.4288 | E30: 0.01381172744
B31: Grand Total | C31: 20527057.83 | D31: 917021.606 | E31: 0.04467379659 | K31: Global Adjustment | L31: per kWh
C32: =C31/C11-1 -> -0.01084109377 | K32: Class B - GA actual8 | L32: =B69/100 -> 0.09699999809 | N32: GA Posted Price
K33: Class B - GA actual IESO billed | L33: =+M33/M8 -> 0.09730778375 | M33: =B76 -> 1439098.76 | N33: GA Billed by IESO CT 148
A38: RPP COP Volume and Price Data
B39: bill_year | C39: 2017
B40: bill_month | C40: 11
B42: Row Labels | C42: usagebilled | D42: amountbilled | E42: Rate
B43: RPPTIERED | C43: 1229083.123 | D43: 18101.11293 | E43: =D43/C43 -> 0.01472733015
B44: RPPTOU | C44: 7821277.301 | D44: 109939.526 | E44: 0.01405646697
B45: Grand Total | C45: 9050360.423 | D45: 128040.6389
C47: =SUM(C21:C26)-C45 -> 7790.69228
C48: =C47/C45 -> 0.0008608156931
A60: Year | B60: 2017
A62: Class A | B62: Value
A63: kWh
A64: 201711 | B64: 5962889.24
A67: ga_actual | B67: year
A68: month | B68: 2017
A69: 201711 | B69: 9.699999809
A72: chargetype | B72: 148
A74: Sum of chargeamount | B74: year
A75: month | B75: 2017
A76: 201711 | B76: 1439098.76

Sheet I23 Input Rev 11 Init
A1: Reverse IESO Posted
A5: =Admin!B38 -> 201711
A6: RPP Revenue Prices | B6: kWh Volumes | C6: $ RPP Settlement
A7: RPPTiered_1 | B7: 565013.29 | C7: 30510.3
A8: RPPTiered_2 | B8: 420773.61 | C8: 17251.64
A9: RPPTOU_MID | B9: 1165990.96 | C9: 41410.09
A10: RPPTOU_OFF | B10: 3829653.78 | C10: 250907.19
A11: RPPTOU_ON | B11: 1204159.89 | C11: -1767.91
A12: Grand Total | B12: 7185591.53 | C12: 338311.31

Sheet I24 Input 12 Trueup Sett
A1: Date: | B1: =Admin!B8+11 -> 201712 | C1: Trueup | K1: ="Data for 1st True up of RPP Settlement based on Actual IESO Invoice" -> Data for 1st True up of RPP Settlement based on Actual IESO Invoice | P1: For Reconciliation
A3: Wholesale Electricty | B3: Year | C3: 2017 | E3: Rate | P3: Actual RPP Revenue and GA
B4: dateref | C4: 201712 | K4: Wholesale Volume data per IESO Power Bill: | L4: GA RPP/non-RPP Ratios | M4: GA Volumes | N4: Energy Volumes | P4: =B1 -> 201712
K5: AQEW | M5: =C10 -> 22764446.94 | N5: =+M5 -> 22764446.94 | P5: RPP Revenue Prices | Q5: RPP Rate | R5: Estimated RPP Energy Price | S5: GA actual IESO billed | T5: Total Commodity | U5: Difference | V5: kWh Volumes | W5: $ Estimated RPP Revenue | X5: $ Estimated RPP Energy | Y5: $ Estimated GA | Z5: $ Estimated RPP Settlement
B6: Wholesale | K6: Embedded Generation | M6: =SUM(C8:C9) -> 118004.7 | N6: =+M6 -> 118004.7 | P6: RPPT1 | Q6: =E21 -> 0.07700346525 | R6: =E43 -> 0.02129672421 | S6: =L32 -> 0.09210000038 | T6: =R6+S6 -> 0.1133967246 | U6: =+Q6-T6 -> -0.03639325934 | V6: =M18 -> 797776.6592 | W6: =Q6*V6 -> 61431.56725 | X6: =R6*V6 -> 16990.02949 | Y6: =+V6*S6 -> 73475.23062 | Z6: =W6-X6-Y6 -> -29033.69285
A7: FIT/mFIT | B7: Source | C7: kWh | D7: Total Cost | K7: Class A customer Volumes for GA (TLF included) | M7: =-B64 -> -5311367.6 | P7: RPPT2 | Q7: =E22 -> 0.0900000877 | R7: =R6 -> 0.02129672421 | S7: =S6 -> 0.09210000038 | T7: =R7+S7 -> 0.1133967246 | U7: =+Q7-T7 -> -0.02339663689 | V7: =M19 -> 659429.8274 | W7: =Q7*V7 -> 59348.74229 | X7: =R7*V7 -> 14043.69517 | Y7: =+V7*S7 -> 60733.48735 | Z7: =W7-X7-Y7 -> -15428.44023
B8: FIT | C8: 111387.08 | D8: 2205.89 | E8: =D8/C8 -> 0.01980382285 | M8: =+M5+M6+M7 -> 17571084.04 | N8: =+N5+N6+N7 -> 22882451.64 | P8: RPPTOUMID | Q8: =E24 -> 0.09499970577 | R8: =E44 -> 0.0232041059 | S8: =S7 -> 0.09210000038 | T8: 0.1153041063 | U8: -0.02030440052 | V8: 1656557.355 | W8: 157372.4613 | X8: 38438.9323 | Y8: 152568.933 | Z8: -33635.40401
B9: microFIT | C9: 6617.62 | D9: 147.08 | E9: =D9/C9 -> 0.0222255131 | P9: RPPTOUOFF | Q9: =E25 -> 0.06408093417 | R9: =R8 -> 0.0232041059 | S9: 0.09210000038 | T9: 0.1153041063 | U9: -0.05122317212 | V9: 6509676.384 | W9: 417146.1438 | X9: 151051.2202 | Y9: 599541.1975 | Z9: -333446.2739
B10: WHOLESALE | C10: 22764446.94 | D10: 471563.97 | E10: =D10/C10 -> 0.02071493198 | K10: Estimated Retail Volume Revenue Data (TLF Included) | L10: RPP/non-RPP Ratios | M10: GA Volumes | N10: Energy Volumes | P10: RPPTOUON | Q10: 0.1320004083 | R10: =R9 -> 0.0232041059 | S10: 0.09210000038 | T10: 0.1153041063 | U10: 0.01669630199 | V10: 1747638.61 | W10: 230689.01 | X10: 40552.39139 | Y10: 160957.5166 | Z10: 29179.102
A11: Total Wholesale Electricity | B11: Grand Total | C11: 22882451.64 | D11: 473916.94 | K11: Estimated Retail Revenue Data (Net of Retail Billed/Unbilled) | M11: =+M15 -> 17571084.04 | N11: =+N15 -> 22882451.64 | P11: RPPULOMID | Q11: 0 | R11: =E45 -> 0 | S11: 0.09210000038 | T11: 0.09210000038 | U11: -0.09210000038 | V11: 0 | W11: 0 | X11: 0 | Y11: 0 | Z11: 0
P12: RPPULOOFF | Q12: 0 | R12: =R11 -> 0 | S12: 0.09210000038 | T12: 0.09210000038 | U12: -0.09210000038 | V12: 0 | W12: 0 | X12: 0 | Y12: 0 | Z12: 0
K13: Estimated RPP Sales Quantities | L13: =SUM(C21:C26)/(C31-B64) -> 0.6471472568 | M13: =M8*L13 -> 11371078.84 | N13: =M13 -> 11371078.84 | P13: RPPULOON | Q13: 0 | R13: =R12 -> 0 | S13: 0.09210000038 | T13: 0.09210000038 | U13: -0.09210000038 | V13: 0 | W13: 0 | X13: 0 | Y13: 0 | Z13: 0
A14: RPP Revenue Volume and Price Data | K14: Estimated non-RPP Sales Quantities | L14: =1-L13 -> 0.3528527432 | M14: =M8*L14 -> 6200005.204 | N14: =N8-N13 -> 11511372.8 | P14: RPPULOOVN | Q14: 0 | R14: 0 | S14: 0.09210000038 | T14: 0.09210000038 | U14: -0.09210000038 | V14: 0 | W14: 0 | X14: 0 | Y14: 0 | Z14: 0
K15: Estimated Retail Revenue kWh Volumes | L15: =+L13+L14 -> 1 | M15: =+M13+M14 -> 17571084.04 | N15: =+N13+N14 -> 22882451.64 | V15: =SUM(V6:V14) -> 11371078.84 | W15: =SUM(W6:W14) -> 925987.9247 | X15: =SUM(X6:X14) -> 261076.2686 | Y15: =SUM(Y6:Y14) -> 1047276.365 | Z15: =SUM(Z6:Z14) -> -382364.709
B16: bill_year | C16: 2017
B17: bill_month | C17: 12 | K17: Estimated RPP Revenue Volume and Price Data | L17: Actual % | M17: kWh Volumes
K18: RPPT1 | L18: =C21/SUM($C$21:$C$26) -> 0.07015839664 | M18: =$M$13*L18 -> 797776.6592
B19: Row Labels | C19: usagebilled | D19: amountbilled | E19: Rate | K19: RPPT2 | L19: =C22/SUM($C$21:$C$26) -> 0.05799184377 | M19: =$M$13*L19 -> 659429.8274
B20: RPPTIER | K20: RPPTOUMID | L20: =C24/SUM($C$21:$C$26) -> 0.1456816348 | M20: 1656557.355
B21: RPPT1 | C21: 838412.9758 | D21: 64560.70445 | E21: =D21/C21 -> 0.07700346525 | K21: RPPTOUOFF | L21: =C25/SUM($C$21:$C$26) -> 0.5724765854 | M21: 6509676.384
B22: RPPT2 | C22: 693019.1772 | D22: 62371.78672 | E22: 0.0900000877 | K22: RPPTOUON | L22: 0.1536915393 | M22: 1747638.61
B23: RPPTOU | K23: RPPULOMID | L23: 0 | M23: 0
B24: RPPTOUMID | C24: 1740937.348 | D24: 165388.5358 | E24: 0.09499970577 | K24: RPPULOOFF | L24: 0 | M24: 0
B25: RPPTOUOFF | C25: 6841259.501 | D25: 438394.2997 | E25: 0.06408093417 | K25: RPPULOON | L25: 0 | M25: 0
B26: RPPTOUON | C26: 1836658.005 | D26: 242439.6066 | E26: 0.1320004083 | K26: RPPULOOVN | L26: 0 | M26: 0
B27: RETAIL | L27: =SUM(L18:L26) -> 1 | M27: =SUM(M18:M26) -> 11371078.84
B28: NSLS | C28: 3832345.685 | D28: 75279.2623 | E28: 0.01964312943
B29: INTERVAL
B30: HOEP | C30: 7994836.527 | D30: 146270.3614 | E30: 0.01829560378
B31: Grand Total | C31: 23777469.22 | D31: 1194704.557 | E31: 0.05024523619 | K31: Global Adjustment | L31: per kWh
C32: =C31/C11-1 -> 0.03911371009 | K32: Class B - GA actual8 | L32: =B69/100 -> 0.09210000038 | N32: GA Posted Price
K33: Class B - GA actual IESO billed | L33: =+M33/M8 -> 0.09310910279 | M33: =B76 -> 1636027.87 | N33: GA Billed by IESO CT 148
A38: RPP COP Volume and Price Data
B39: bill_year | C39: 2017
B40: bill_month | C40: 12
B42: Row Labels | C42: usagebilled | D42: amountbilled | E42: Rate
B43: RPPTIERED | C43: 1524263.047 | D43: 32461.80972 | E43: =D43/C43 -> 0.02129672421
B44: RPPTOU | C44: 10317361.38 | D44: 239405.1462 | E44: 0.0232041059
B45: Grand Total | C45: 11841624.43 | D45: 271866.9559
C47: =SUM(C21:C26)-C45 -> 108662.5758
C48: =C47/C45 -> 0.009176323436
A60: Year | B60: 2017
A62: Class A | B62: Value
A63: kWh
A64: 201712 | B64: 5311367.6
A67: ga_actual | B67: year
A68: month | B68: 2017
A69: 201712 | B69: 9.210000038
A72: chargetype | B72: 148
A74: Sum of chargeamount | B74: year
A75: month | B75: 2017
A76: 201712 | B76: 1636027.87
A79: Posted | B79: 2094965.08

Sheet I25 Input Rev 12 Init
A1: Reverse IESO Posted
A5: =Admin!B41 -> 201712
A6: RPP Revenue Prices | B6: kWh Volumes | C6: $ RPP Settlement
A7: RPPTiered_1 | B7: 768426.8 | C7: 14365.01
A8: RPPTiered_2 | B8: 500919.86 | C8: 23640.04
A9: RPPTOU_MID | B9: 1672286.47 | C9: 29110.36
A10: RPPTOU_OFF | B10: 5460063.93 | C10: 355675.23
A11: RPPTOU_ON | B11: 1720062.43 | C11: -60549.1
A12: Grand Total | B12: 10121759.49 | C12: 362241.54

Sheet Rec1 1588 Commodity
A1: Lakefront Utilities Inc.
A2: =ProcessYear[Process Year]& " 1588 Commodity RSVA" -> 2017 1588 Commodity RSVA
A3: Commodity
B5: 4006-4055 | E5: 4705 | L5: 1588
B6: GL Revenue | C6: Unbilled | D6: Total Revenue | E6: Energy Cost (code 101) | F6: RPP GA (code 148) | G6: IESO RPP Settlement | H6: FIT/mFIT | I6: Misc | J6: IESO Code 118 - Energy Rebate | K6: Total Cost | L6: Variance | M6: Y.T.D. | N6: G.L. Balance
A7: Opening Balance
A8: January | B8: -1361730.05 | C8: =D8-B8 -> -88244.03642 | D8: =-'I1a ER Summary'!AF5 -> -1449974.086 | E8: ='I1a ER Summary'!K5 -> 479880.53 | F8: ='I1a ER Summary'!E5 -> 904731.9663 | G8: ='I1a ER Summary'!F5 -> 94482.06866 | H8: ='I1a ER Summary'!M5 -> 3484.39 | K8: =SUM(E8:J8) -> 1482578.955 | L8: =D8+K8 -> 32604.86852 | M8: =L8 -> 32604.86852 | N8: =N7+L8 -> 32604.86852
A9: February | B9: -1658591.89 | C9: =D9-B9 -> 341447.4077 | D9: =-'I1a ER Summary'!AF6 -> -1317144.482 | E9: ='I1a ER Summary'!K6 -> 426485.3 | F9: ='I1a ER Summary'!E6 -> 822563.4598 | G9: ='I1a ER Summary'!F6 -> 42696.75729 | H9: ='I1a ER Summary'!M6 -> 3961.83 | K9: 1295707.347 | L9: -21437.13526 | M9: =M8+L9 -> 11167.73326 | N9: =N8+L9 -> 11167.73326
A10: March | B10: -1415980.27 | C10: -46514.71732 | D10: =-'I1a ER Summary'!AF7 -> -1462494.987 | E10: ='I1a ER Summary'!K7 -> 569611.47 | F10: ='I1a ER Summary'!E7 -> 747698.1966 | G10: ='I1a ER Summary'!F7 -> 162075.0215 | H10: ='I1a ER Summary'!M7 -> 6993.52 | K10: 1486378.208 | L10: 23883.22071 | M10: =M9+L10 -> 35050.95397 | N10: 35050.95397
A11: April | B11: -1206838.3 | C11: 142446.2281 | D11: =-'I1a ER Summary'!AF8 -> -1064392.072 | E11: ='I1a ER Summary'!K8 -> 208452.39 | F11: ='I1a ER Summary'!E8 -> 890496.7893 | G11: ='I1a ER Summary'!F8 -> -94947.71054 | H11: ='I1a ER Summary'!M8 -> 3191.26 | K11: 1007192.729 | L11: -57199.34316 | M11: -22148.38919 | N11: -22148.38919
A12: May | B12: -1116786.23 | C12: 273024.4358 | D12: =-'I1a ER Summary'!AF9 -> -843761.7942 | E12: ='I1a ER Summary'!K9 -> 62514.7 | F12: ='I1a ER Summary'!E9 -> 979134.8354 | G12: ='I1a ER Summary'!F9 -> -212226.2266 | H12: ='I1a ER Summary'!M9 -> 1611.95 | K12: 831035.2588 | L12: -12726.53543 | M12: -34874.92462 | N12: -34874.92462
A13: June | B13: -828764.61 | C13: -21980.55642 | D13: =-'I1a ER Summary'!AF10 -> -850745.1664 | E13: ='I1a ER Summary'!K10 -> 106302.81 | F13: ='I1a ER Summary'!E10 -> 1131792.547 | G13: ='I1a ER Summary'!F10 -> -268141.7164 | H13: ='I1a ER Summary'!M10 -> 3358.31 | K13: 973311.9509 | L13: 122566.7845 | M13: 87691.8599 | N13: 87691.8599
A14: July | B14: -759207.97 | C14: -161618.182 | D14: =-'I1a ER Summary'!AF11 -> -920826.152 | E14: ='I1a ER Summary'!K11 -> 271459.38 | F14: ='I1a ER Summary'!E11 -> 1040307.415 | G14: ='I1a ER Summary'!F11 -> -376886.8491 | H14: ='I1a ER Summary'!M11 -> 12210.82 | K14: 947090.7664 | L14: 26264.61437 | M14: 113956.4743 | N14: 113956.4743
A15: August | B15: -1004218.64 | C15: 292034.3769 | D15: =-'I1a ER Summary'!AF12 -> -712184.2631 | E15: ='I1a ER Summary'!K12 -> 356010.57 | F15: ='I1a ER Summary'!E12 -> 1118862.732 | G15: ='I1a ER Summary'!F12 -> -386576.2492 | H15: ='I1a ER Summary'!M12 -> 15500.39 | K15: 1103797.442 | L15: 391613.1794 | M15: 505569.6536 | N15: 505569.6536
A16: September | B16: -563560.77 | C16: -664382.4303 | D16: =-'I1a ER Summary'!AF13 -> -1227943.2 | E16: ='I1a ER Summary'!K13 -> 440483.34 | F16: ='I1a ER Summary'!E13 -> 569599.8466 | G16: ='I1a ER Summary'!F13 -> -154476.5667 | H16: ='I1a ER Summary'!M13 -> 16325.08 | K16: 871931.6999 | L16: -356011.5004 | M16: 149558.1532 | N16: 149558.1532
A17: October | B17: -1353027.24 | C17: 516406.1444 | D17: =-'I1a ER Summary'!AF14 -> -836621.0956 | E17: ='I1a ER Summary'!K14 -> 166786.91 | F17: ='I1a ER Summary'!E14 -> 1045009.266 | G17: ='I1a ER Summary'!F14 -> -459069.4868 | H17: ='I1a ER Summary'!M14 -> 2735.62 | K17: 755462.3096 | L17: -81158.78607 | M17: 68399.36717 | N17: 68399.36717
A18: November | B18: -787346.11 | C18: -129675.496 | D18: =-'I1a ER Summary'!AF15 -> -917021.606 | E18: ='I1a ER Summary'!K15 -> 290916.23 | F18: ='I1a ER Summary'!E15 -> 892213.1247 | G18: ='I1a ER Summary'!F15 -> -254295.4101 | H18: ='I1a ER Summary'!M15 -> 2678.76 | K18: 931512.7046 | L18: 14491.09862 | M18: 82890.46579 | N18: 82890.46579
A19: December | B19: -917090.25 | C19: -277614.3069 | D19: =-'I1a ER Summary'!AF16 -> -1194704.557 | E19: ='I1a ER Summary'!K16 -> 471563.97 | F19: ='I1a ER Summary'!E16 -> 1047276.365 | G19: ='I1a ER Summary'!F16 -> -382364.709 | H19: ='I1a ER Summary'!M16 -> 2352.97 | K19: 1138828.596 | L19: -55875.96077 | M19: 27014.50502 | N19: 27014.50502
B20: =SUM(B8:B19) -> -12973142.33 | C20: =SUM(C8:C19) -> 175328.8675 | D20: -12797813.46 | E20: 3850467.6 | F20: 11189686.54 | G20: -2289731.077 | H20: 74404.9 | I20: 0 | J20: 0 | K20: 12824827.97 | L20: 27014.50502
A22: Per GL | F22: =10662126.11 -> 10662126.11 | G22: =165092.58-2031996.97 -> -1866904.39
A23: Adjustments | F23: =F20-F22 -> 527560.4345 | G23: =G20-G22 -> -422826.687
F25: 4705-0002 | G25: 4705-0001
E28: diff | F28: =F23+'Rec2 1589 Class B'!J23 -> -2090068.12

Sheet Rec2 1589 Class B
A1: Lakefront Utilities Inc.
A2: =ProcessYear[Process Year]& " 1589 ClassB RSVA" -> 2017 1589 ClassB RSVA
A3: Global Adjustment Class B Only
B5: 4006-4055 | E5: 4707 | K5: 1589
B6: Revenue - Class B only | C6: Unbilled | D6: Total Revenue | E6: IESO Code 148 | F6: RPP GA (code 148) | G6: Class B GA (Code 148) | H6: Class B Deferral | I6: Misc | J6: Class B GA | K6: Variance | L6: Y.T.D. | M6: G.L. Balance
A7: Opening Balance
A8: January | B8: -1121946.21 | C8: =D8-B8 -> 340079.8746 | D8: -781866.3354 | E8: ='I1a ER Summary'!Q5 -> 1803983.71 | F8: =-'Rec1 1588 Commodity'!F8 -> -904731.9663 | G8: =E8+F8 -> 899251.7437 | J8: =SUM(G8:I8) -> 899251.7437 | K8: =D8+J8 -> 117385.4084 | L8: =K8 -> 117385.4084 | M8: =M7+K8 -> 117385.4084
A9: February | B9: -815751.18 | C9: =D9-B9 -> -261490.4532 | D9: -1077241.633 | E9: ='I1a ER Summary'!Q6 -> 1717488.02 | F9: =-'Rec1 1588 Commodity'!F9 -> -822563.4598 | G9: =E9+F9 -> 894924.5602 | J9: =SUM(G9:I9) -> 894924.5602 | K9: =D9+J9 -> -182317.073 | L9: =L8+K9 -> -64931.66462 | M9: =M8+K9 -> -64931.66462
A10: March | B10: -1039364.97 | C10: 79322.71696 | D10: -960042.253 | E10: ='I1a ER Summary'!Q7 -> 1568990.01 | F10: =-'Rec1 1588 Commodity'!F10 -> -747698.1966 | G10: 821291.8134 | J10: 821291.8134 | K10: -138750.4396 | L10: =L9+K10 -> -203682.1042 | M10: -203682.1042
A11: April | B11: -1002272.1 | C11: 483765.2273 | D11: -518506.8727 | E11: ='I1a ER Summary'!Q8 -> 1970599.21 | F11: =-'Rec1 1588 Commodity'!F11 -> -890496.7893 | G11: 1080102.421 | J11: 1080102.421 | K11: 561595.5481 | L11: 357913.4438 | M11: 357913.4438
A12: May | B12: -505504.99 | C12: -660192.3442 | D12: -1165697.334 | E12: ='I1a ER Summary'!Q9 -> 2280690.22 | F12: =-'Rec1 1588 Commodity'!F12 -> -979134.8354 | G12: 1301555.385 | J12: 1301555.385 | K12: 135858.0505 | L12: 493771.4943 | M12: 493771.4943
A13: June | B13: -1193311.31 | C13: -122524.1979 | D13: -1315835.508 | E13: ='I1a ER Summary'!Q10 -> 2196779.74 | F13: =-'Rec1 1588 Commodity'!F13 -> -1131792.547 | G13: 1064987.193 | J13: 1064987.193 | K13: -250848.3152 | L13: 242923.1791 | M13: 242923.1791
A14: July | B14: -1323548.89 | C14: 800066.3222 | D14: -523482.5678 | E14: ='I1a ER Summary'!Q11 -> 1648642.37 | F14: =-'Rec1 1588 Commodity'!F14 -> -1040307.415 | G14: 608334.9545 | J14: 608334.9545 | K14: 84852.38671 | L14: 327775.5658 | M14: 327775.5658
A15: August | B15: -485939.74 | C15: 239156.0136 | D15: -246783.7264 | E15: ='I1a ER Summary'!Q12 -> 1477715.4 | F15: =-'Rec1 1588 Commodity'!F15 -> -1118862.732 | G15: 358852.6683 | J15: 358852.6683 | K15: 112068.9419 | L15: 439844.5077 | M15: 439844.5077
A16: September | B16: -210589.11 | C16: -868379.4711 | D16: -1078968.581 | E16: ='I1a ER Summary'!Q13 -> 1199095.99 | F16: =-'Rec1 1588 Commodity'!F16 -> -569599.8466 | G16: 629496.1434 | J16: 629496.1434 | K16: -449472.4378 | L16: -9627.930075 | M16: -9627.930075
A17: October | B17: -1092163.19 | C17: 544186.8087 | D17: -547976.3813 | E17: ='I1a ER Summary'!Q14 -> 1666225.59 | F17: =-'Rec1 1588 Commodity'!F17 -> -1045009.266 | G17: 621216.3236 | J17: 621216.3236 | K17: 73239.94235 | L17: 63612.01227 | M17: 63612.01227
A18: November | B18: -528547.21 | C18: -57947.26765 | D18: -586494.4777 | E18: ='I1a ER Summary'!Q15 -> 1439098.76 | F18: =-'Rec1 1588 Commodity'!F18 -> -892213.1247 | G18: 546885.6353 | J18: 546885.6353 | K18: -39608.84236 | L18: 24003.16991 | M18: 24003.16991
A19: December | B19: -600147.24 | C19: 120190.5434 | D19: -479956.6966 | E19: ='I1a ER Summary'!Q16 -> 1636027.87 | F19: =-'Rec1 1588 Commodity'!F19 -> -1047276.365 | G19: 588751.5049 | J19: 588751.5049 | K19: 108794.8083 | L19: 132797.9782 | M19: 132797.9782
B20: =SUM(B8:B19) -> -9919086.14 | C20: 636233.7727 | D20: -9282852.367 | E20: 20605336.89 | F20: -11189686.54 | G20: 9415650.345 | H20: 0 | I20: 0 | J20: 9415650.345 | K20: 132797.9782
A22: Per GL | J22: 12033278.9
A23: Adjustments | J23: =J20-J22 -> -2617628.555
E24: Explanation of Difference
D25: PER GL 1588 | E25: ='Rec1 1588 Commodity'!F22 -> 10662126.11 | J25: 4707-0000
D26: Per GL 1589 | E26: =J22 -> 12033278.9
D27: Posted | E27: =SUM(E25:E26) -> 22695405.01
I28: diff | J28: =J23+'Rec1 1588 Commodity'!F23 -> -2090068.12
D29: Feb 2018 Adj | E29: =E20-E27 -> -2090068.12

Sheet Rev1UFE
A1: Lakefront Utilities Inc.
A2: 2023 RSVA
A3: Unaccounted for Energy Summary For USoA 1588
C5: Total Energy Purchases | D5: Total Retail Sales | E5: Uaccounted for Energy | F5: UFE | G5: Total Energy Purchases | H5: Total Retail Sales | I5: UFE | J5: UFE | N5: Energy Purchases RPP and non-RPP | P5: RPP Settlement Amounts | T5: Energy Sales Revenue | V5: Energy Sales Volumes | X5: Energy Sales/kWh
B6: Version | C6: kWH | D6: kWh | E6: kWh | F6: % | G6: $ Amount | H6: $ Amount | I6: $ Amount | J6: % | K6: Revenue Per kWh | L6: UFE $ Cost per kWh | N6: Energy for RPP and non-RPP | O6: Final GA for RPP | P6: Initial Settlement | Q6: First True-Up | R6: Final True-Up | S6: RPP Settlement Amount | T6: RPP Sales | U6: Non-RPP Sales | V6: RPP kWh | W6: Non-RPP kWH | X6: RPP | Y6: Non-RPP
A7: January | B7: Final | C7: ='I1a ER Summary'!S5 -> 22097534.35 | D7: ='I1a ER Summary'!T5 -> 21855738.14 | E7: =+C7-D7 -> 241796.2057 | F7: =+E7/C7 -> 0.01094222558 | G7: =+N7+O7+S7 -> 1482578.955 | H7: =+T7+U7 -> 1449974.086 | I7: =+G7-H7 -> 32604.86852 | J7: =+I7/G7 -> 0.0219919947 | K7: =+H7/D7 -> 0.06634294741 | L7: =+I7/E7 -> 0.1348444175 | N7: ='I1a ER Summary'!O5 -> 483364.92 | O7: ='I1a ER Summary'!E5 -> 904731.9663 | P7: 0 | Q7: 0 | R7: ='I1a ER Summary'!F5 -> 94482.06866 | S7: =SUM(P7:R7) -> 94482.06866 | T7: ='I1a ER Summary'!C5 -> 1229398.516 | U7: ='I1a ER Summary'!AH5 -> 220575.5702 | V7: ='I1a ER Summary'!AJ5 -> 10872809.66 | W7: ='I1a ER Summary'!AK5 -> 10982928.49 | X7: =+T7/V7 -> 0.1130709131 | Y7: 0.02008349326
A8: February | B8: Final | C8: ='I1a ER Summary'!S6 -> 20280353.64 | D8: ='I1a ER Summary'!T6 -> 20515495.2 | E8: =+C8-D8 -> -235141.5635 | F8: =+E8/C8 -> -0.01159454947 | G8: =+N8+O8+S8 -> 1295707.347 | H8: =+T8+U8 -> 1317144.482 | I8: =+G8-H8 -> -21437.13526 | J8: =+I8/G8 -> -0.01654473544 | K8: =+H8/D8 -> 0.06420242208 | L8: 0.09116693342 | N8: ='I1a ER Summary'!O6 -> 430447.13 | O8: ='I1a ER Summary'!E6 -> 822563.4598 | P8: 0 | Q8: 0 | R8: ='I1a ER Summary'!F6 -> 42696.75729 | S8: 42696.75729 | T8: ='I1a ER Summary'!C6 -> 1071794.007 | U8: ='I1a ER Summary'!AH6 -> 245350.4758 | V8: ='I1a ER Summary'!AJ6 -> 9630794.901 | W8: ='I1a ER Summary'!AK6 -> 10884700.3 | X8: 0.1112882184 | Y8: 0.02254085725
A9: March | B9: Final | C9: ='I1a ER Summary'!S7 -> 22429851.08 | D9: ='I1a ER Summary'!T7 -> 22059996.4 | E9: 369854.683 | F9: 0.01648939539 | G9: 1486378.208 | H9: 1462494.987 | I9: 23883.22071 | J9: 0.01606806436 | K9: 0.06629624779 | L9: 0.06457460677 | N9: ='I1a ER Summary'!O7 -> 576604.99 | O9: ='I1a ER Summary'!E7 -> 747698.1966 | P9: 0 | Q9: 0 | R9: ='I1a ER Summary'!F7 -> 162075.0215 | S9: 162075.0215 | T9: ='I1a ER Summary'!C7 -> 1181550.882 | U9: ='I1a ER Summary'!AH7 -> 280944.1049 | V9: ='I1a ER Summary'!AJ7 -> 10299287.38 | W9: ='I1a ER Summary'!AK7 -> 11760709.01 | X9: 0.1147216151 | Y9: 0.0238883646
A10: April | B10: Final | C10: ='I1a ER Summary'!S8 -> 18865632.58 | D10: ='I1a ER Summary'!T8 -> 19270591.32 | E10: -404958.7426 | F10: -0.02146542083 | G10: 1007192.729 | H10: 1064392.072 | I10: -57199.34316 | J10: -0.0567908619 | K10: 0.05523401198 | L10: 0.141247335 | N10: ='I1a ER Summary'!O8 -> 211643.65 | O10: ='I1a ER Summary'!E8 -> 890496.7893 | P10: 0 | Q10: 0 | R10: ='I1a ER Summary'!F8 -> -94947.71054 | S10: -94947.71054 | T10: ='I1a ER Summary'!C8 -> 912716.933 | U10: ='I1a ER Summary'!AH8 -> 151675.1389 | V10: ='I1a ER Summary'!AJ8 -> 8437956.402 | W10: ='I1a ER Summary'!AK8 -> 10832634.92 | X10: 0.1081680077 | Y10: 0.01400168473
A11: May | B11: Final | C11: ='I1a ER Summary'!S9 -> 19186507.57 | D11: ='I1a ER Summary'!T9 -> 19384793.94 | E11: -198286.3708 | F11: -0.01033467764 | G11: 831035.2588 | H11: 843761.7942 | I11: -12726.53543 | J11: -0.01531407398 | K11: 0.04352699321 | L11: 0.06418260307 | N11: ='I1a ER Summary'!O9 -> 64126.65 | O11: ='I1a ER Summary'!E9 -> 979134.8354 | P11: 0 | Q11: 0 | R11: ='I1a ER Summary'!F9 -> -212226.2266 | S11: -212226.2266 | T11: ='I1a ER Summary'!C9 -> 797297.0977 | U11: ='I1a ER Summary'!AH9 -> 46464.69651 | V11: ='I1a ER Summary'!AJ9 -> 8036180.703 | W11: ='I1a ER Summary'!AK9 -> 11348613.24 | X11: 0.09921343573 | Y11: 0.004094306109
A12: June | B12: Final | C12: ='I1a ER Summary'!S10 -> 19251407.46 | D12: ='I1a ER Summary'!T10 -> 16477541.52 | E12: 2773865.941 | F12: 0.1440863971 | G12: 973311.9509 | H12: 850745.1664 | I12: 122566.7845 | J12: 0.125927545 | K12: 0.05163058855 | L12: 0.04418626824 | N12: ='I1a ER Summary'!O10 -> 109661.12 | O12: ='I1a ER Summary'!E10 -> 1131792.547 | P12: 0 | Q12: 0 | R12: ='I1a ER Summary'!F10 -> -268141.7164 | S12: -268141.7164 | T12: ='I1a ER Summary'!C10 -> 922330.3763 | U12: ='I1a ER Summary'!AH10 -> -71585.20991 | V12: ='I1a ER Summary'!AJ10 -> 8174823.677 | W12: ='I1a ER Summary'!AK10 -> 8302717.843 | X12: 0.1128257211 | Y12: -0.008621900836
A13: July | B13: Final | C13: ='I1a ER Summary'!S11 -> 20537536.4 | D13: ='I1a ER Summary'!T11 -> 20174909.15 | E13: 362627.2549 | F13: 0.017656804 | G13: 947090.7664 | H13: 920826.152 | I13: 26264.61437 | J13: 0.02773188727 | K13: 0.04564214616 | L13: 0.07242868266 | N13: ='I1a ER Summary'!O11 -> 283670.2 | O13: ='I1a ER Summary'!E11 -> 1040307.415 | P13: 0 | Q13: 0 | R13: ='I1a ER Summary'!F11 -> -376886.8491 | S13: -376886.8491 | T13: ='I1a ER Summary'!C11 -> 794418.5933 | U13: ='I1a ER Summary'!AH11 -> 126407.5588 | V13: ='I1a ER Summary'!AJ11 -> 8994873.272 | W13: ='I1a ER Summary'!AK11 -> 11180035.87 | X13: 0.08831904233 | Y13: 0.01130654322
A14: August | B14: Final | C14: ='I1a ER Summary'!S12 -> 21130639.28 | D14: ='I1a ER Summary'!T12 -> 15478896.13 | E14: 5651743.152 | F14: 0.2674667376 | G14: 1103797.442 | H14: 712184.2631 | I14: 391613.1794 | J14: 0.3547871777 | K14: 0.04601001629 | L14: 0.06929068941 | N14: ='I1a ER Summary'!O12 -> 371510.96 | O14: ='I1a ER Summary'!E12 -> 1118862.732 | P14: 0 | Q14: 0 | R14: ='I1a ER Summary'!F12 -> -386576.2492 | S14: -386576.2492 | T14: ='I1a ER Summary'!C12 -> 919989.2985 | U14: ='I1a ER Summary'!AH12 -> -207805.0354 | V14: ='I1a ER Summary'!AJ12 -> 6787828.978 | W14: ='I1a ER Summary'!AK12 -> 8691067.15 | X14: 0.1355351323 | Y14: -0.02391018639
A15: September | B15: Final | C15: ='I1a ER Summary'!S13 -> 19537028.44 | D15: ='I1a ER Summary'!T13 -> 27076254.72 | E15: -7539226.276 | F15: -0.3858942162 | G15: 871931.6999 | H15: 1227943.2 | I15: -356011.5004 | J15: -0.4083020498 | K15: 0.04535129445 | L15: 0.04722122501 | N15: ='I1a ER Summary'!O13 -> 456808.42 | O15: ='I1a ER Summary'!E13 -> 569599.8466 | P15: 0 | Q15: 0 | R15: ='I1a ER Summary'!F13 -> -154476.5667 | S15: -154476.5667 | T15: ='I1a ER Summary'!C13 -> 543552.7731 | U15: ='I1a ER Summary'!AH13 -> 684390.4273 | V15: ='I1a ER Summary'!AJ13 -> 10005111.64 | W15: ='I1a ER Summary'!AK13 -> 17071143.08 | X15: 0.05432750704 | Y15: 0.04009048628
A16: October | B16: Final | C16: ='I1a ER Summary'!S14 -> 19565933.07 | D16: ='I1a ER Summary'!T14 -> 20303619.45 | E16: -737686.3771 | F16: -0.03770259125 | G16: 755462.3096 | H16: 836621.0956 | I16: -81158.78607 | J16: -0.1074292986 | K16: 0.041205515 | L16: 0.1100180085 | N16: ='I1a ER Summary'!O14 -> 169522.53 | O16: ='I1a ER Summary'!E14 -> 1045009.266 | P16: 0 | Q16: 0 | R16: ='I1a ER Summary'!F14 -> -459069.4868 | S16: -459069.4868 | T16: ='I1a ER Summary'!C14 -> 694675.3238 | U16: ='I1a ER Summary'!AH14 -> 141945.7719 | V16: ='I1a ER Summary'!AJ14 -> 8785159.73 | W16: ='I1a ER Summary'!AK14 -> 11518459.72 | X16: 0.07907372718 | Y16: 0.01232332928
A17: November | B17: Final | C17: ='I1a ER Summary'!S15 -> 20752032.56 | D17: ='I1a ER Summary'!T15 -> 20527057.83 | E17: 224974.731 | F17: 0.01084109377 | G17: 931512.7046 | H17: 917021.606 | I17: 14491.09862 | J17: 0.01555652279 | K17: 0.04467379659 | L17: 0.06441211668 | N17: ='I1a ER Summary'!O15 -> 293594.99 | O17: ='I1a ER Summary'!E15 -> 892213.1247 | P17: 0 | Q17: 0 | R17: ='I1a ER Summary'!F15 -> -254295.4101 | S17: -254295.4101 | T17: ='I1a ER Summary'!C15 -> 768050.7084 | U17: ='I1a ER Summary'!AH15 -> 148970.8977 | V17: ='I1a ER Summary'!AJ15 -> 7524450.31 | W17: ='I1a ER Summary'!AK15 -> 13002607.52 | X17: 0.1020739957 | Y17: 0.01145700179
A18: December | B18: Final | C18: ='I1a ER Summary'!S16 -> 22882451.64 | D18: ='I1a ER Summary'!T16 -> 23777469.22 | E18: -895017.5796 | F18: -0.03911371009 | G18: 1138828.596 | H18: 1194704.557 | I18: -55875.96077 | J18: -0.04906441668 | K18: 0.05024523619 | L18: 0.06243001484 | N18: ='I1a ER Summary'!O16 -> 473916.94 | O18: ='I1a ER Summary'!E16 -> 1047276.365 | P18: 0 | Q18: 0 | R18: ='I1a ER Summary'!F16 -> -382364.709 | S18: -382364.709 | T18: ='I1a ER Summary'!C16 -> 925987.9247 | U18: ='I1a ER Summary'!AH16 -> 268716.6322 | V18: ='I1a ER Summary'!AJ16 -> 10113629 | W18: ='I1a ER Summary'!AK16 -> 13663840.22 | X18: 0.09155842325 | Y18: 0.01966625985
A19: Total | C19: =SUM(C7:C18) -> 246516908.1 | D19: =SUM(D7:D18) -> 246902363 | E19: =SUM(E7:E18) -> -385454.9422 | F19: -0.001563604481 | G19: =SUM(G7:G18) -> 12824827.97 | H19: =SUM(H7:H18) -> 12797813.46 | I19: =SUM(I7:I18) -> 27014.50502 | J19: 0.002106422409 | K19: 0.05183349931 | L19: -0.07008472862 | N19: =SUM(N7:N18) -> 3924872.5 | O19: 11189686.54 | P19: 0 | Q19: 0 | R19: -2289731.077 | S19: -2289731.077 | T19: 11382095.66 | U19: 3626059.63 | V19: 107662905.7 | W19: 139239457.4 | X19: 0.1057197518 | Y19: 0.02604189716

Sheet Rev2 GA Purchases
A1: Lakefront Utilities Inc.
A2: 2023 RSVA
A3: Non-RPP Global Adjustment
B5: Non-RPP Class B GA | E5: RPP Class B GA | H5: Total Class B GA | M5: GA non-RPP Cost Amounts Booked
B6: Cost Amount | C6: kWh | D6: Avg Cost | E6: Cost Amount | F6: kWh | G6: Avg Cost | H6: Cost Amount | I6: kWh | J6: Avg Cost | M6: G/L 4707 | N6: True-Ups | O6: Total | P6: Difference
A7: January | B7: ='Rec2 1589 Class B'!J8 -> 899251.7437 | C7: ='I1a ER Summary'!AK5 -> 10982928.49 | D7: =+B7/C7 -> 0.08187722835 | E7: ='Rec1 1588 Commodity'!F8 -> 904731.9663 | F7: ='I1a ER Summary'!AJ5 -> 10872809.66 | G7: =+E7/F7 -> 0.08321050352 | H7: =+B7+E7 -> 1803983.71 | I7: 21855738.14 | J7: =+H7/I7 -> 0.08254050712 | M7: 368354.797 | O7: =+M7+N7 -> 368354.797 | P7: =+O7-B7 -> -530896.9468
A8: February | B8: ='Rec2 1589 Class B'!J9 -> 894924.5602 | C8: ='I1a ER Summary'!AK6 -> 10884700.3 | D8: 0.08221857611 | E8: ='Rec1 1588 Commodity'!F9 -> 822563.4598 | F8: ='I1a ER Summary'!AJ6 -> 9630794.901 | G8: 0.08540971625 | H8: 1717488.02 | I8: 20515495.2 | J8: 0.08371662507 | M8: 517400.4514 | O8: =+M8+N8 -> 517400.4514 | P8: -377524.1089
A9: March | B9: ='Rec2 1589 Class B'!J10 -> 821291.8134 | C9: ='I1a ER Summary'!AK7 -> 11760709.01 | D9: 0.06983352895 | E9: ='Rec1 1588 Commodity'!F10 -> 747698.1966 | F9: ='I1a ER Summary'!AJ7 -> 10299287.38 | G9: 0.07259708063 | H9: 1568990.01 | I9: 22059996.4 | J9: 0.07112376547 | M9: 550805.5586 | O9: =+N9+M9 -> 550805.5586 | P9: -270486.2548
A10: April | B10: ='Rec2 1589 Class B'!J11 -> 1080102.421 | C10: ='I1a ER Summary'!AK8 -> 10832634.92 | D10: 0.09970818999 | E10: ='Rec1 1588 Commodity'!F11 -> 890496.7893 | F10: ='I1a ER Summary'!AJ8 -> 8437956.402 | G10: 0.1055346516 | H10: 1970599.21 | I10: 19270591.32 | J10: 0.1022594054 | M10: 582775.4046 | O10: 582775.4046 | P10: -497327.0161
A11: May | B11: ='Rec2 1589 Class B'!J12 -> 1301555.385 | C11: ='I1a ER Summary'!AK9 -> 11348613.24 | D11: 0.1146884961 | E11: ='Rec1 1588 Commodity'!F12 -> 979134.8354 | F11: ='I1a ER Summary'!AJ9 -> 8036180.703 | G11: 0.1218408186 | H11: 2280690.22 | I11: 19384793.94 | J11: 0.1176535705 | M11: 606116.3272 | O11: 606116.3272 | P11: -695439.0574
A12: June | B12: ='Rec2 1589 Class B'!J13 -> 1064987.193 | C12: ='I1a ER Summary'!AK10 -> 8302717.843 | D12: 0.1282697079 | E12: ='Rec1 1588 Commodity'!F13 -> 1131792.547 | F12: ='I1a ER Summary'!AJ10 -> 8174823.677 | G12: 0.1384485577 | H12: 2196779.74 | I12: 16477541.52 | J12: 0.1333196301 | M12: 513680.4991 | O12: 513680.4991 | P12: -551306.6936
A13: July | B13: ='Rec2 1589 Class B'!J14 -> 608334.9545 | C13: ='I1a ER Summary'!AK11 -> 11180035.87 | D13: 0.05441261204 | E13: ='Rec1 1588 Commodity'!F14 -> 1040307.415 | F13: ='I1a ER Summary'!AJ11 -> 8994873.272 | G13: 0.1156555945 | H13: 1648642.37 | I13: 20174909.15 | J13: 0.08171746193 | M13: 337855.3545 | O13: 337855.3545 | P13: -270479.6
A14: August | B14: ='Rec2 1589 Class B'!J15 -> 358852.6683 | C14: ='I1a ER Summary'!AK12 -> 8691067.15 | D14: 0.04128982807 | E14: ='Rec1 1588 Commodity'!F15 -> 1118862.732 | F14: ='I1a ER Summary'!AJ12 -> 6787828.978 | G14: 0.1648336656 | H14: 1477715.4 | I14: 15478896.13 | J14: 0.09546645884 | M14: 484646.4102 | O14: 484646.4102 | P14: 125793.7419
A15: September | B15: ='Rec2 1589 Class B'!J16 -> 629496.1434 | C15: ='I1a ER Summary'!AK13 -> 17071143.08 | D15: 0.03687486775 | E15: ='Rec1 1588 Commodity'!F16 -> 569599.8466 | F15: ='I1a ER Summary'!AJ13 -> 10005111.64 | G15: 0.05693088365 | H15: 1199095.99 | I15: 27076254.72 | J15: 0.04428588823 | M15: 351972.6143 | O15: 351972.6143 | P15: -277523.5291
A16: October | B16: ='Rec2 1589 Class B'!J17 -> 621216.3236 | C16: ='I1a ER Summary'!AK14 -> 11518459.72 | D16: 0.05393223911 | E16: ='Rec1 1588 Commodity'!F17 -> 1045009.266 | F16: ='I1a ER Summary'!AJ14 -> 8785159.73 | G16: 0.1189516524 | H16: 1666225.59 | I16: 20303619.45 | J16: 0.08206544623 | M16: 508645.545 | O16: 508645.545 | P16: -112570.7787
A17: November | B17: ='Rec2 1589 Class B'!J18 -> 546885.6353 | C17: ='I1a ER Summary'!AK15 -> 13002607.52 | D17: 0.04205968953 | E17: ='Rec1 1588 Commodity'!F18 -> 892213.1247 | F17: ='I1a ER Summary'!AJ15 -> 7524450.31 | G17: 0.1185751899 | H17: 1439098.76 | I17: 20527057.83 | J17: 0.07010740516 | M17: 446213.3479 | O17: 446213.3479 | P17: -100672.2874
A18: December | B18: ='Rec2 1589 Class B'!J19 -> 588751.5049 | C18: ='I1a ER Summary'!AK16 -> 13663840.22 | D18: 0.04308828964 | E18: ='Rec1 1588 Commodity'!F19 -> 1047276.365 | F18: ='I1a ER Summary'!AJ16 -> 10113629 | G18: 0.1035509969 | H18: 1636027.87 | I18: 23777469.22 | J18: 0.0688058033 | M18: 408485.058 | O18: 408485.058 | P18: -180266.4469
B19: =SUM(B7:B18) -> 9415650.345 | C19: =SUM(C7:C18) -> 139239457.4 | D19: 0.06762199828 | E19: =SUM(E7:E18) -> 11189686.54 | F19: =SUM(F7:F18) -> 107662905.7 | G19: 0.1039326078 | H19: =SUM(H7:H18) -> 20605336.89 | I19: =SUM(I7:I18) -> 246902363 | J19: 0.08345540577 | M19: =SUM(M7:M18) -> 5676951.368 | N19: =SUM(N7:N18) -> 0 | O19: =SUM(O7:O18) -> 5676951.368 | P19: =SUM(P7:P18) -> -3738698.978

Sheet Rev3 GA Analysis
F2: Consumption Data Excluding for Loss Factor (Data to agree with RRR as applicable)
F3: Year | H3: =ProcessYear[Process Year] -> 2017
F4: Total Metered excluding WMP | G4: C = A+B | H4: =H5+H6 -> 246902363 | I4: kWh | J4: 1
F5: RPP | G5: A | H5: ='Rev2 GA Purchases'!F19 -> 107662905.7 | I5: kWh | J5: 0.5303752085
F6: Non RPP | G6: B = D+E | H6: =H7+H8 -> 139239457.4 | I6: kWh | J6: 0.4696247915
F7: Non-RPP Class A | G7: D | H7: ='I1a ER Summary'!AN17 -> 35989737.78 | I7: kWh | J7: 0.1815554551
F8: Non-RPP Class B* | G8: E | H8: ='Rev2 GA Purchases'!C19-H7 -> 103249719.6 | I8: kWh | J8: 0.2880693364
F9: *Non-RPP Class B consumption reported in this table is not expected to directly agree with the Non-RPP Class B Including Loss Adjusted Billed Consumption in the GA Analysis of Expected Balance table below. The difference should be equal to the loss factor.
A12: Note 4 | B12: Analysis of Expected GA Amount
B13: Year | C13: =ProcessYear[Process Year] -> 2017
B14: Calendar Month | C14: Non-RPP Class B Including Loss Factor Billed Consumption (kWh) | D14: Deduct Previous Month Unbilled Loss Adjusted Consumption (kWh) | E14: Add Current Month Unbilled Loss Adjusted Consumption (kWh) | F14: Non-RPP Class B Including Loss Adjusted Consumption, Adjusted for Unbilled (kWh) | G14: GA Rate Billed ($/kWh) | H14: $ Consumption at GA Rate Billed | I14: GA Actual Rate Paid ($/kWh) | J14: $ Consumption at Actual Rate Paid | K14: Expected GA Variance ($) | M14: Revenue per Continuity Schedule | N14: Difference | P14: Expense per Continuity Schedule | Q14: Difference | S14: 2017
C15: F | D15: G | E15: H | F15: I = F-G+H | G15: J | H15: K = I*J | I15: L | J15: M = I*L | K15: =M-K | N15: =H-M | Q15: =J-P | S15: First Estimate | T15: Second Estimate | U15: Actual
B16: January | C16: ='I1a ER Summary'!AP5 -> 10982928.49 | F16: =C16-D16+E16 -> 10982928.49 | G16: =S16 -> 0.06687 | H16: =F16*G16 -> 734428.4279 | I16: =U16 -> 0.08227 | J16: =F16*I16 -> 903565.5266 | K16: =J16-H16 -> 169137.0987 | M16: ='Rec2 1589 Class B'!D8 -> -781866.3354 | N16: =H16+M16 -> -47437.90742 | P16: ='Rec2 1589 Class B'!J8 -> 899251.7437 | Q16: =J16-P16 -> 4313.782917 | S16: 0.06687 | T16: 0.08677 | U16: 0.08227
B17: February | C17: ='I1a ER Summary'!AP6 -> 10884700.3 | F17: =C17-D17+E17 -> 10884700.3 | G17: =S17 -> 0.10559 | H17: =F17*G17 -> 1149315.505 | I17: =U17 -> 0.08639 | J17: =F17*I17 -> 940329.2591 | K17: =J17-H17 -> -208986.2458 | M17: ='Rec2 1589 Class B'!D9 -> -1077241.633 | N17: =H17+M17 -> 72073.87175 | P17: ='Rec2 1589 Class B'!J9 -> 894924.5602 | Q17: =J17-P17 -> 45404.69892 | S17: 0.10559 | T17: 0.0843 | U17: 0.08639
B18: March | C18: ='I1a ER Summary'!AP7 -> 11760709.01 | F18: =C18-D18+E18 -> 11760709.01 | G18: 0.08409 | H18: =F18*G18 -> 988958.021 | I18: 0.07135 | J18: =F18*I18 -> 839126.5882 | K18: -149831.4328 | M18: ='Rec2 1589 Class B'!D10 -> -960042.253 | N18: 28915.76797 | P18: ='Rec2 1589 Class B'!J10 -> 821291.8134 | Q18: 17834.77474 | S18: 0.08409 | T18: 0.06886 | U18: 0.07135
B19: April | C19: ='I1a ER Summary'!AP8 -> 10832634.92 | F19: =C19-D19+E19 -> 10832634.92 | G19: 0.06874 | H19: =F19*G19 -> 744635.3244 | I19: 0.10778 | J19: =F19*I19 -> 1167541.392 | K19: 422906.0673 | M19: ='Rec2 1589 Class B'!D11 -> -518506.8727 | N19: 226128.4518 | P19: ='Rec2 1589 Class B'!J11 -> 1080102.421 | Q19: =J19-P19 -> 87438.97101 | S19: 0.06874 | T19: 0.10218 | U19: 0.10778
B20: May | C20: ='I1a ER Summary'!AP9 -> 11348613.24 | F20: 11348613.24 | G20: 0.10623 | H20: 1205563.184 | I20: 0.12307 | J20: =F20*I20 -> 1396673.831 | K20: =J20-H20 -> 191110.6469 | M20: ='Rec2 1589 Class B'!D12 -> -1165697.334 | N20: 39865.85008 | P20: ='Rec2 1589 Class B'!J12 -> 1301555.385 | Q20: =J20-P20 -> 95118.44654 | S20: 0.10623 | T20: 0.12776 | U20: 0.12307
B21: June | C21: ='I1a ER Summary'!AP10 -> 8302717.843 | F21: 8302717.843 | G21: 0.11954 | H21: 992506.8909 | I21: 0.11848 | J21: 983706.01 | K21: -8800.880913 | M21: ='Rec2 1589 Class B'!D13 -> -1315835.508 | N21: -323328.617 | P21: ='Rec2 1589 Class B'!J13 -> 1064987.193 | Q21: -81281.1827 | S21: 0.11954 | T21: 0.12563 | U21: 0.11848
B22: July | C22: ='I1a ER Summary'!AP11 -> 5329399.823 | F22: 5329399.823 | G22: 0.10652 | H22: 567687.6692 | I22: 0.1128 | J22: 601156.3001 | K22: 33468.63089 | M22: ='Rec2 1589 Class B'!D14 -> -523482.5678 | N22: 44205.10138 | P22: ='Rec2 1589 Class B'!J14 -> 608334.9545 | Q22: -7178.654439 | S22: 0.10652 | T22: 0.10197 | U22: 0.1128
B23: August | C23: ='I1a ER Summary'!AP12 -> 2177467.11 | F23: 2177467.11 | G23: 0.115 | H23: 250408.7176 | I23: 0.10109 | J23: 220120.1501 | K23: -30288.5675 | M23: ='Rec2 1589 Class B'!D15 -> -246783.7264 | N23: 3624.991174 | P23: ='Rec2 1589 Class B'!J15 -> 358852.6683 | Q23: -138732.5182 | S23: 0.115 | T23: 0.10476 | U23: 0.10109
B24: September | C24: ='I1a ER Summary'!AP13 -> 11087219.68 | F24: 11087219.68 | G24: 0.12739 | H24: 1412400.915 | I24: 0.08864 | J24: 982771.1521 | K24: -429629.7625 | M24: ='Rec2 1589 Class B'!D16 -> -1078968.581 | N24: 333432.3335 | P24: ='Rec2 1589 Class B'!J16 -> 629496.1434 | Q24: 353275.0088 | S24: 0.12739 | T24: 0.09895 | U24: 0.08864
B25: October | C25: ='I1a ER Summary'!AP14 -> 5151138.267 | F25: 5151138.267 | G25: 0.10212 | H25: 526034.2398 | I25: 0.12563 | J25: 647137.5005 | K25: 121103.2607 | M25: ='Rec2 1589 Class B'!D17 -> -547976.3813 | N25: -21942.14148 | P25: ='Rec2 1589 Class B'!J17 -> 621216.3236 | Q25: 25921.17682 | S25: 0.10212 | T25: 0.11973 | U25: 0.12563
B26: November | C26: ='I1a ER Summary'!AP15 -> 7039718.279 | F26: 7039718.279 | G26: 0.11164 | H26: 785914.1486 | I26: 0.09704 | J26: 683134.2618 | K26: -102779.8869 | M26: ='Rec2 1589 Class B'!D18 -> -586494.4777 | N26: 199419.671 | P26: ='Rec2 1589 Class B'!J18 -> 546885.6353 | Q26: 136248.6265 | S26: 0.11164 | T26: 0.09669 | U26: 0.09704
B27: December | C27: ='I1a ER Summary'!AP16 -> 8352472.618 | F27: 8352472.618 | G27: 0.08391 | H27: 700855.9774 | I27: 0.09207 | J27: 769012.1539 | K27: 68156.17656 | M27: ='Rec2 1589 Class B'!D19 -> -479956.6966 | N27: 220899.2807 | P27: ='Rec2 1589 Class B'!J19 -> 588751.5049 | Q27: 180260.649 | S27: 0.08391 | T27: 0.09669 | U27: 0.09207
B29: Net Change in Expected GA Balance in the Year (i.e. Transactions in the Year) | C29: =SUM(C16:C27) -> 103249719.6 | D29: 0 | E29: 0 | F29: =SUM(F16:F27) -> 103249719.6 | H29: =SUM(H16:H27) -> 10058709.02 | J29: =SUM(J16:J27) -> 10134274.13 | K29: =SUM(K16:K27) -> 75565.10463 | M29: =SUM(M16:M28) -> -9282852.367 | N29: =SUM(N16:N28) -> 775856.6534 | P29: =SUM(P16:P28) -> 9415650.345 | Q29: =SUM(Q16:Q28) -> 718623.7799
C36: Annual Non-RPP Class B Wholesale kWh * | D36: Annual Non-RPP Class B Retail billed kWh | E36: Annual Unaccounted for Energy Loss kWh | F36: Weighted Average GA Actual Rate Paid ($/kWh)** | G36: Expected GA Volume Variance ($)
C37: O | D37: P | E37: Q=O-P | F37: R | G37: P= Q*R
C38: =(Rev1UFE!C19-H7)*'Rev3 GA Analysis '!H8/(H5+H8) -> 103061024.8 | D38: =F29 -> 103249719.6 | E38: =C38-D38 -> -188694.7955 | F38: =H29/F29 -> 0.0974211752 | G38: =E38*F38 -> -18382.86873 | I38: =D38/C38 -> 1.001830904
C39: *Equal to (AQEW - Class A + embedded generation kWh)*(Non-RPP Class B retail kwh/Total retail Class B kWh)
C40: **Equal to annual Non-RPP Class B $ GA paid (i.e. non-RPP portion of CT 148 on IESO invoice) divided by Non-RPP Class B Wholesale kWh (as quantified in column O in the table above)
F41: Total Expected GA Variance | G41: =K29+G38 -> 57182.2359
A48: Note 5 | B48: Reconciling Items
B50: Item | C50: Applicability of Reconciling Item (Y/N) | D50: Amount (Quantify if it is a significant reconciling item) | E50: Explanation
A51: Net Change in Principal Balance in the GL (i.e. Transactions in the Year) | D51: =M29+P29 -> 132797.9782
A52: 1a | B52: Remove impacts to GA from prior year RPP Settlement true up process that are booked in current year | C52: N
A53: 1b | B53: Add impacts to GA from current year RPP Settlement true up process that are booked in subsequent year | C53: N
A54: 2a | B54: Remove prior year end unbilled to actual revenue differences | C54: N
A55: 2b | B55: Add current year end unbilled to actual revenue differences | C55: N
A56: 3a | B56: Remove difference between prior year accrual to forecast from long term load transfers | C56: N
A57: 3b | B57: Add difference between current year accrual to forecast from long term load transfers | C57: N
A58: 4 | B58: Remove GA balances pertaining to Class A customers | C58: N
A59: 5 | B59: Significant prior period billing adjustments included in current year GL balance but would not be included in the billing consumption used in the GA Analysis | C59: N
A60: 6 | B60: Differences in GA IESO posted rate and rate charged on IESO invoice | C60: N
A61: 7 | D61: 0
A62: 9
A63: 10
A64: Note 6 | B64: Adjusted Net Change in Principal Balance in the GL | D64: =SUM(D51:D63) -> 132797.9782
B65: Net Change in Expected GA Balance in the Year Per Analysis | D65: =G41 -> 57182.2359
B66: Unresolved Difference | D66: =D64-D65 -> 75615.74229
B67: Unresolved Difference as % of Expected GA Payments to IESO | D67: =IF(ISERROR(D66/J29),0,D66/J29) -> 0.007461387106 | E67: =IF(AND(D67<0.01,D67>-0.01),"","Unresolved differences of greater than + or - 1% should be explained") -> 
A70: Note 7 | B70: Summary of GA (if multiple years requested for disposition)
B72: Year | C72: Annual Net Change in Expected GA Balance from GA Analysis (cell K59) | D72: Net Change in Principal Balance in the GL (cell D65) | E72: Reconciling Items (sum of cells D66 to D78) | F72: Adjusted Net Change in Principal Balance in the GL | G72: Unresolved Difference | H72: Payments to IESO (cell J59) | I72: Unresolved Difference as % of Expected GA Payments to IESO
B73: 2023 | C73: =G41 -> 57182.2359 | D73: =D51 -> 132797.9782 | E73: =SUM(D52:D63) -> 0 | F73: =SUM(D73:E73) -> 132797.9782 | G73: =F73-C73 -> 75615.74229 | H73: =J29 -> 10134274.13 | I73: =IF(ISERROR(G73/H73),0,G73/H73) -> 0.007461387106
F74: =SUM(D74:E74) -> 0 | G74: =F74-C74 -> 0 | I74: =IF(ISERROR(G74/H74),0,G74/H74) -> 0
F75: =SUM(D75:E75) -> 0 | G75: =F75-C75 -> 0 | I75: =IF(ISERROR(G75/H75),0,G75/H75) -> 0
F76: =SUM(D76:E76) -> 0 | G76: =F76-C76 -> 0 | I76: =IF(ISERROR(G76/H76),0,G76/H76) -> 0
B77: Cumulative Balance | C77: =SUM(C73:C76) -> 57182.2359 | D77: 132797.9782 | E77: 0 | F77: 132797.9782 | G77: =SUM(G73:G76) -> 75615.74229 | H77: 10134274.13 | I77: N/A
B80: Additional Notes and Comments
B95: Account 1588 Reasonability Test
C97: Account 1588 - RSVA Power | F97: Account 4705 - Power Purchased | G97: Account 1588 as % of Account 4705
B98: Year | C98: Transactions1 | D98: Principal Adjustments1 | E98: Total Activity in Calendar Year
B99: 2023 | D99: ='Rec1 1588 Commodity'!L20 -> 27014.50502 | E99: =SUM(C99:D99) -> 27014.50502 | F99: ='Rec1 1588 Commodity'!K20 -> 12824827.97 | G99: =IFERROR(E99/F99,0) -> 0.002106422409
B102: Notes
B103: 1) The transactions should equal the "Transaction" column in the DVA Continuity Schedule. This is also expected to equal the transactions in the general ledger (excluding transactions relating to the removal of approved disposition amounts as that is shown in a separate column in the DVA Continuity Schedule)
B104: 2) Principal adjustments should equal the "Principal Adjustments" column in the DVA Continuity Schedule. Principal adjustments adjust the transactions in the general ledger to the amount that should be requested for disposition.
